FILE,Service Area Categorisation,Service Division Categorisation,Responsible Unit,Unit Code,Expenses Type,Expenses Sub Type,Expense  Code,Detailed Expenses Type,Transaction No,Amount,Invoice Date,Capital/Revenue,Supplier Name
2012 - FEB,Cultural Env Reg&Plan Services,Comm. Safety (Crime Reduction),CCTV                                    ,A01200,Supplies & Services           ,Services                      ,DF03,Consultants,1,"1,565.46",12/1/2011,R,GOODWILL ASSOCIATES LIMITED   
2012 - FEB,Cultural Env Reg&Plan Services,Comm. Safety (Crime Reduction),CCTV                                    ,A01200,Supplies & Services           ,Comms and Computing           ,DG15,Network Maintenance,2,"4,500.00",10/22/2008,R,VIRGIN MEDIA PAYMENTS LTD     
2012 - FEB,Adult Social Care,Other Adult Services,DAAT Commissioning                      ,A01300,Third Party Payments          ,Private Contractors           ,EH02,Miscellaneous Hired Services,3,"4,000.00",1/31/2012,R,OTTAWAY STRATEGIC MANAGEMENT  
2012 - FEB,Adult Social Care,Other Adult Services,Access and Engagement                   ,A01302,Third Party Payments          ,Private Contractors           ,EH02,Miscellaneous Hired Services,4,"9,749.78",12/6/2011,R,ETHNIC MINORITY CENTRE        
2012 - FEB,,,CCTV (match funding)                    ,CE002EA,Acquisition of Land and Existing Buildings,,A4,Other Acquisition Costs,5,625.25,11/17/2011,C,INTECH FURNITURE              
2012 - FEB,,,CCTV (match funding)                    ,CE002EA,New Construction Conversion and Renovation,,B1,Design and Supervision - Consultants Fee,6,"1,056.82",10/24/2011,C,GOODWILL ASSOCIATES LIMITED   
2012 - FEB,,,CCTV (match funding)                    ,CE002EA,New Construction Conversion and Renovation,,B1,Design and Supervision - Consultants Fee,7,"4,696.38",11/28/2011,C,GOODWILL ASSOCIATES LIMITED   
2012 - FEB,,,CCTV (match funding)                    ,CE002EA,New Construction Conversion and Renovation,,B1,Design and Supervision - Consultants Fee,8,641.82,10/24/2011,C,GOODWILL ASSOCIATES LIMITED   
2012 - FEB,,,CCTV (match funding)                    ,CE002EA,New Construction Conversion and Renovation,,B1,Design and Supervision - Consultants Fee,9,"3,176.38",7/1/2010,C,GOODWILL ASSOCIATES LIMITED   
2012 - FEB,,,CCTV (match funding)                    ,CE002EA,New Construction Conversion and Renovation,,B1,Design and Supervision - Consultants Fee,10,"2,103.64",7/1/2010,C,GOODWILL ASSOCIATES LIMITED   
2012 - FEB,,,CCTV (match funding)                    ,CE002EA,New Construction Conversion and Renovation,,B1,Design and Supervision - Consultants Fee,11,"3,182.00",1/19/2012,C,GOODWILL ASSOCIATES LIMITED   
2012 - FEB,,,CCTV - Safer Merton & Parking           ,CE002EG,New Construction Conversion and Renovation,,B2,Design and Supervision - Site Surveys,12,900,2/14/2012,C,THE SAFETY FORUM LTD          
2012 - FEB,,,Disabled Facilities Grant DCLG          ,CE004RA,Other Capital Expenditure,,E1,Grants,13,"2,007.08",2/2/2012,C,ABLE 2 OCCUP.THERAPY SERV.LTD 
2012 - FEB,,,Disabled Facilities Grant DCLG          ,CE004RA,Other Capital Expenditure,,E1,Grants,14,"5,385.00",2/14/2012,C,ASCENDIT LIFTS LTD            
2012 - FEB,,,Disabled Facilities Grant DCLG          ,CE004RA,Other Capital Expenditure,,E1,Grants,15,"1,305.96",2/14/2012,C,R E SHELLEY                   
2012 - FEB,,,Disabled Facilities Grant DCLG          ,CE004RA,Other Capital Expenditure,,E1,Grants,16,926.23,2/14/2012,C,CBS ADAPTATION                
2012 - FEB,,,Disabled Facilities Grant DCLG          ,CE004RA,Other Capital Expenditure,,E1,Grants,17,"3,149.50",2/14/2012,C,CBS ADAPTATION                
2012 - FEB,,,Disabled Facilities Grant DCLG          ,CE004RA,Other Capital Expenditure,,E1,Grants,18,"10,883.00",2/14/2012,C,PREMIER ADAPTATIONS LTD       
2012 - FEB,,,Disabled Facilities Grant DCLG          ,CE004RA,Other Capital Expenditure,,E1,Grants,19,"1,440.56",2/14/2012,C,ABLE 2 OCCUP.THERAPY SERV.LTD 
2012 - FEB,,,Disabled Facilities Grant DCLG          ,CE004RA,Other Capital Expenditure,,E1,Grants,20,719.14,2/14/2012,C,ABLE 2 OCCUP.THERAPY SERV.LTD 
2012 - FEB,,,Disabled Facilities Grant DCLG          ,CE004RA,Other Capital Expenditure,,E1,Grants,21,"4,782.09",2/14/2012,C,CARING SOLUTIONS LTD          
2012 - FEB,,,Disabled Facilities Grant DCLG          ,CE004RA,Other Capital Expenditure,,E1,Grants,22,"14,179.00",2/14/2012,C,DREW PARTNERSHIP LTD.         
2012 - FEB,,,Disabled Facilities Grant DCLG          ,CE004RA,Other Capital Expenditure,,E1,Grants,23,949.19,2/14/2012,C,SUTTON STAYING PUT            
2012 - FEB,,,Disabled Facilities Grant DCLG          ,CE004RA,Other Capital Expenditure,,E1,Grants,24,"1,016.38",2/14/2012,C,CBS ADAPTATION                
2012 - FEB,,,Disabled Facilities Grant DCLG          ,CE004RA,Other Capital Expenditure,,E1,Grants,25,"8,702.00",2/14/2012,C,TBS ADAPTATIONS LTD           
2012 - FEB,,,Disabled Facilities Grant DCLG          ,CE004RA,Other Capital Expenditure,,E1,Grants,26,"1,823.85",2/16/2012,C,S C PROPERTY MAINTENANCE      
2012 - FEB,,,Disabled Facilities Grant DCLG          ,CE004RA,Other Capital Expenditure,,E1,Grants,27,"2,022.00",2/16/2012,C,S C PROPERTY MAINTENANCE      
2012 - FEB,,,Disabled Facilities Grant DCLG          ,CE004RA,Other Capital Expenditure,,E1,Grants,28,"11,366.00",2/16/2012,C,ASCENDIT LIFTS LTD            
2012 - FEB,,,Disabled Facilities Grant DCLG          ,CE004RA,Other Capital Expenditure,,E1,Grants,29,"1,037.06",2/20/2012,C,ABLE 2 OCCUP.THERAPY SERV.LTD 
2012 - FEB,,,Disabled Facilities Grant DCLG          ,CE004RA,Other Capital Expenditure,,E1,Grants,30,"1,396.50",2/21/2012,C,TLC STAIRLIFTS                
2012 - FEB,,,Disabled Facilities Grant DCLG          ,CE004RA,Other Capital Expenditure,,E1,Grants,31,"9,587.00",2/23/2012,C,REDACTED
2012 - FEB,,,Disabled Facilities Grant DCLG          ,CE004RA,Other Capital Expenditure,,E1,Grants,32,896.44,2/23/2012,C,ABLE 2 OCCUP.THERAPY SERV.LTD 
2012 - FEB,,,Disabled Facilities Grant DCLG          ,CE004RA,Other Capital Expenditure,,E1,Grants,33,"6,924.46",2/23/2012,C,WANDLE HOUSING ASSOCIATION LTD
2012 - FEB,,,Disabled Facilities Grant DCLG          ,CE004RA,Other Capital Expenditure,,E1,Grants,34,712.13,2/23/2012,C,CBS ADAPTATION                
2012 - FEB,,,Disabled Facilities Grant DCLG          ,CE004RA,Other Capital Expenditure,,E1,Grants,35,"1,150.44",2/27/2012,C,R E SHELLEY                   
2012 - FEB,,,Disabled Facilities Grant DCLG          ,CE004RA,Other Capital Expenditure,,E1,Grants,36,"2,286.00",2/28/2012,C,R E SHELLEY                   
2012 - FEB,,,Disabled Facilities Grant DCLG          ,CE004RA,Other Capital Expenditure,,E1,Grants,37,"7,790.00",2/28/2012,C,NONDRIP                       
2012 - FEB,,,Disabled Facilities Grant DCLG          ,CE004RA,Other Capital Expenditure,,E1,Grants,38,"12,143.00",2/28/2012,C,WEALDEN REHAB                 
2012 - FEB,,,Disabled Facilities Grant DCLG          ,CE004RA,Other Capital Expenditure,,E1,Grants,39,"3,949.50",2/29/2012,C,ATRIUM DESIGN & INSTALLATION  
2012 - FEB,,,Disabled Facilities Grant DCLG          ,CE004RA,Other Capital Expenditure,,E1,Grants,40,"9,441.75",2/29/2012,C,ATRIUM DESIGN & INSTALLATION  
2012 - FEB,,,Small Repairs Grant                     ,CE005RA,Other Capital Expenditure,,E1,Grants,41,"1,495.58",2/7/2012,C,SCI WINDOWS AND DOORS         
2012 - FEB,,,Small Repairs Grant                     ,CE005RA,Other Capital Expenditure,,E1,Grants,42,"1,450.00",2/14/2012,C,MCCREARY BUILDERS             
2012 - FEB,,,Small Repairs Grant                     ,CE005RA,Other Capital Expenditure,,E1,Grants,43,"4,000.00",2/20/2012,C,WINDOWS AND MORE              
2012 - FEB,,,Small Repairs Grant                     ,CE005RA,Other Capital Expenditure,,E1,Grants,44,"1,850.00",2/23/2012,C,MADIGAS SERVICES              
2012 - FEB,,,B487 Landscape Ravensbury Park          ,CE009CA,New Construction Conversion and Renovation,,B4,Site Works - Contractor,45,"4,300.00",2/3/2012,C,LA BELLE ROOFING CO LTD       
2012 - FEB,,,Parks Investment                        ,CE013SA,New Construction Conversion and Renovation,,B4,Site Works - Contractor,46,620,1/24/2012,C,DAPPA MRP FLOORING            
2012 - FEB,,,Parks Investment                        ,CE013SA,New Construction Conversion and Renovation,,B4,Site Works - Contractor,47,940,1/24/2012,C,DAPPA MRP FLOORING            
2012 - FEB,,,Trees for Cities                        ,CE020SA,Acquisition of Land and Existing Buildings,,A4,Other Acquisition Costs,48,"2,772.00",2/6/2012,C,TRANSF'M L/SCAPE DESIGN & CONS
2012 - FEB,,,Bushey Road Bridge Repair               ,CE023FA,New Construction Conversion and Renovation,,B3,Design and Supervision - Other Expenses,49,"67,100.00",1/30/2012,C,NETWORK RAIL                  
2012 - FEB,,,Surface Water Drainage                  ,CE024FA,New Construction Conversion and Renovation,,B4,Site Works - Contractor,50,947.52,2/15/2012,C,FM CONWAY LTD                 
2012 - FEB,,,Wimbledon Park Watersport Cent          ,CE030SB,New Construction Conversion and Renovation,,B4,Site Works - Contractor,51,"6,650.00",1/24/2012,C,MORTON FAIRVIEW ELEC SERVICES 
2012 - FEB,,,Leisure Centre Plant & Machine          ,CE038MA,New Construction Conversion and Renovation,,B4,Site Works - Contractor,52,"36,900.00",2/1/2012,C,LIFESTYLE WINDOW SYSTEMS      
2012 - FEB,,,Leisure Centre Plant & Machine          ,CE038MA,New Construction Conversion and Renovation,,B4,Site Works - Contractor,53,"4,560.00",2/16/2012,C,LIFESTYLE WINDOW SYSTEMS      
2012 - FEB,,,Morden Park changing rooms              ,CE045AB,New Construction Conversion and Renovation,,B4,Site Works - Contractor,54,822,2/9/2012,C,REDACTED
2012 - FEB,,,Morden Park changing rooms              ,CE045AB,New Construction Conversion and Renovation,,B4,Site Works - Contractor,55,595,2/14/2012,C,REDACTED
2012 - FEB,,,Morden Park changing rooms              ,CE045AB,New Construction Conversion and Renovation,,B4,Site Works - Contractor,56,"3,910.00",2/14/2012,C,REDACTED
2012 - FEB,,,St Marks Car Park                       ,CE048AB,New Construction Conversion and Renovation,,B4,Site Works - Contractor,57,"12,500.00",2/17/2012,C,FM CONWAY LTD                 
2012 - FEB,,,St Marks Car Park                       ,CE048AB,New Construction Conversion and Renovation,,B4,Site Works - Contractor,58,"6,250.00",2/17/2012,C,FM CONWAY LTD                 
2012 - FEB,,,East Merton Investment                  ,CE058FA,Acquisition of Land and Existing Buildings,,A4,Other Acquisition Costs,59,"1,875.00",2/3/2012,C,AXIOM TRAFFIC LTD             
2012 - FEB,,,Town Centre Investment                  ,CE061FB,New Construction Conversion and Renovation,,B6,Site Works - Other Costs,60,"1,066.00",1/20/2012,C,UK POWER NETWORKS (OPERATIONS)
2012 - FEB,,,Street scene enhancements               ,CE066FE,New Construction Conversion and Renovation,,B1,Design and Supervision - Consultants Fee,61,"1,000.00",1/31/2012,C,MARCUS BEALE ARCHITECTS       
2012 - FEB,,,Street scene enhancements               ,CE066FE,New Construction Conversion and Renovation,,B1,Design and Supervision - Consultants Fee,62,"1,472.00",11/30/2011,C,MARCUS BEALE ARCHITECTS       
2012 - FEB,,,Street scene enhancements               ,CE066FE,New Construction Conversion and Renovation,,B1,Design and Supervision - Consultants Fee,63,"6,128.00",1/31/2012,C,MARCUS BEALE ARCHITECTS       
2012 - FEB,,,B591b Shop Front Improvement            ,CE066FG,New Construction Conversion and Renovation,,B4,Site Works - Contractor,64,766.75,2/6/2012,C,REDACTED
2012 - FEB,,,B591b Shop Front Improvement            ,CE066FG,Other Capital Expenditure,,E1,Grants,65,"10,000.00",1/31/2012,C,"CHIQUITAS LTD, T/AS T U CHICAS"
2012 - FEB,,,Street Lighting Replacement Pr          ,CE068FA,New Construction Conversion and Renovation,,B4,Site Works - Contractor,66,"1,664.55",1/20/2012,C,MAY GURNEY LTD T/A CARTLEDGE  
2012 - FEB,,,Street Light Energy Reduction           ,CE068FB,New Construction Conversion and Renovation,,B4,Site Works - Contractor,67,"9,899.37",1/20/2012,C,MAY GURNEY LTD T/A CARTLEDGE  
2012 - FEB,,,Street Light Energy Reduction           ,CE068FB,New Construction Conversion and Renovation,,B4,Site Works - Contractor,68,"2,915.51",1/20/2012,C,MAY GURNEY LTD T/A CARTLEDGE  
2012 - FEB,,,Street Light Energy Reduction           ,CE068FB,New Construction Conversion and Renovation,,B4,Site Works - Contractor,69,"3,465.35",1/20/2012,C,MAY GURNEY LTD T/A CARTLEDGE  
2012 - FEB,,,Street Light Energy Reduction           ,CE068FB,New Construction Conversion and Renovation,,B4,Site Works - Contractor,70,"5,824.02",1/27/2012,C,MAY GURNEY LTD T/A CARTLEDGE  
2012 - FEB,,,Street Light Energy Reduction           ,CE068FB,New Construction Conversion and Renovation,,B4,Site Works - Contractor,71,"2,033.94",1/27/2012,C,MAY GURNEY LTD T/A CARTLEDGE  
2012 - FEB,,,Traffic surveys & Safety Measu          ,CE075FA,New Construction Conversion and Renovation,,B2,Design and Supervision - Site Surveys,72,995,2/7/2012,C,AXIOM TRAFFIC LTD             
2012 - FEB,,,Alley Gating Scheme - Fly Tip           ,CE087FA,Other Capital Expenditure,,E1,Grants,73,"3,988.45",2/13/2012,C,THE H SCHEME                  
2012 - FEB,,,Re-use/recycling Site Maintena          ,CE090SA,Vehicles Plant Equipment and Machinery,,D3,Equipment,74,"11,278.90",2/17/2012,C,EGBERT H TAYLOR & CO LTD      
2012 - FEB,,,Waste Phase B - Replace RCVs            ,CE092EA,New Construction Conversion and Renovation,,B5,Site Works - Suppliers,75,"11,850.00",2/7/2012,C,BROXAP LIMITED                
2012 - FEB,,,Accesibility Programme                  ,CE104FD,New Construction Conversion and Renovation,,B1,Design and Supervision - Consultants Fee,76,965,1/31/2012,C,HYDER CONSULTING (UK) LTD     
2012 - FEB,,,Casualty Reduction & Schools            ,CE104RA,New Construction Conversion and Renovation,,B6,Site Works - Other Costs,77,643,1/26/2012,C,UK POWER NETWORKS (OPERATIONS)
2012 - FEB,,,School & Road Safety Campaigns          ,CE104RC,Other Capital Expenditure,,E4,TFL Other,78,"1,750.00",1/26/2012,C,MOTOR CYCLE INDUSTRY ASSOC.LTD
2012 - FEB,,,School & Road Safety Campaigns          ,CE104RC,Other Capital Expenditure,,E4,TFL Other,79,580,2/7/2012,C,BLAKES DRIVER TRAINING        
2012 - FEB,,,School & Road Safety Campaigns          ,CE104RC,Other Capital Expenditure,,E4,TFL Other,80,"6,932.00",1/8/2012,C,THE RIOT ACT                  
2012 - FEB,,,School & Road Safety Campaigns          ,CE104RC,Other Capital Expenditure,,E4,TFL Other,81,"3,207.00",12/15/2011,C,LIVING STREETS SERVICES LTD   
2012 - FEB,,,Incentivising Schools                   ,CE104RE,Other Capital Expenditure,,E4,TFL Other,82,"1,500.00",2/17/2012,C,HALFORDS                      
2012 - FEB,,,Bikeability cycle training Pro          ,CE104RG,Other Capital Expenditure,,E4,TFL Other,83,722.7,2/16/2012,C,REDACTED
2012 - FEB,,,Mobility Scooter Training               ,CE104RH,Other Capital Expenditure,,E4,TFL Other,84,"15,000.00",1/23/2012,C,MERTON COMMUNITY TRANSPORT    
2012 - FEB,,,TFL Slippage - Corridors&Neigh          ,CE104RK,New Construction Conversion and Renovation,,B1,Design and Supervision - Consultants Fee,85,"3,813.00",1/31/2012,C,REDACTED
2012 - FEB,,,Wim TC Accessibility & Streets          ,CE106FA,New Construction Conversion and Renovation,,B4,Site Works - Contractor,86,"4,913.17",1/31/2012,C,FM CONWAY LTD                 
2012 - FEB,,,Wim TC Accessibility & Streets          ,CE106FA,New Construction Conversion and Renovation,,B4,Site Works - Contractor,87,"21,158.50",1/31/2012,C,FM CONWAY LTD                 
2012 - FEB,,,Wim TC Accessibility & Streets          ,CE106FA,New Construction Conversion and Renovation,,B6,Site Works - Other Costs,88,680,1/27/2012,C,UK POWER NETWORKS (OPERATIONS)
2012 - FEB,,,Wim TC Accessibility & Streets          ,CE106FA,New Construction Conversion and Renovation,,B6,Site Works - Other Costs,89,680,1/27/2012,C,UK POWER NETWORKS (OPERATIONS)
2012 - FEB,,,Lower Downs Rd walking/cycling          ,CE106FB,New Construction Conversion and Renovation,,B4,Site Works - Contractor,90,"19,005.77",1/20/2012,C,MAY GURNEY LTD T/A CARTLEDGE  
2012 - FEB,,,Highway Asset Management                ,CE107EA,New Construction Conversion and Renovation,,B1,Design and Supervision - Consultants Fee,91,"25,000.00",2/9/2012,C,JACOBS UK LIMITED             
2012 - FEB,,,Highway Asset Management                ,CE107EA,New Construction Conversion and Renovation,,B1,Design and Supervision - Consultants Fee,92,"1,927.22",2/9/2012,C,JACOBS UK LIMITED             
2012 - FEB,,,Leisure Services Parks&OpenSp           ,CE110SA,New Construction Conversion and Renovation,,B4,Site Works - Contractor,93,"2,585.00",2/2/2012,C,TAYLOR BUILDING COMPANY LTD   
2012 - FEB,,,Leisure Services Parks&OpenSp           ,CE110SA,New Construction Conversion and Renovation,,B4,Site Works - Contractor,94,"1,600.00",2/11/2012,C,REDDINGTON & SONS             
2012 - FEB,,,Leisure Services Parks&OpenSp           ,CE110SA,New Construction Conversion and Renovation,,B4,Site Works - Contractor,95,980,2/4/2012,C,REDACTED
2012 - FEB,,,Leisure Services Parks&OpenSp           ,CE110SA,New Construction Conversion and Renovation,,B4,Site Works - Contractor,96,"6,940.00",2/4/2012,C,REDACTED
2012 - FEB,,,Marathon Trust BMX Track                ,CE114SA,New Construction Conversion and Renovation,,B1,Design and Supervision - Consultants Fee,97,"1,215.00",1/30/2012,C,MATERIALS SCIENCE CONS. LTD   
2012 - FEB,,,Marathon Trust BMX Track                ,CE114SA,New Construction Conversion and Renovation,,B2,Design and Supervision - Site Surveys,98,750,1/23/2012,C,ASHDOWN SITE INVESTIGATION    
2012 - FEB,,,Marathon Trust BMX Track                ,CE114SA,New Construction Conversion and Renovation,,B2,Design and Supervision - Site Surveys,99,650,2/7/2012,C,GED DUCKWORTH LTD             
2012 - FEB,,,Marathon Trust BMX Track                ,CE114SA,New Construction Conversion and Renovation,,B2,Design and Supervision - Site Surveys,100,760,1/24/2012,C,A.COLEBROOK ARBORICULTURE CON.
2012 - FEB,Cultural Env Reg&Plan Services,SMSS (Env),ES Support & Development                ,G00070,Supplies & Services           ,Expenses                      ,DH02,Conferences,101,710,2/9/2012,R,ASPECT TRAINING               
2012 - FEB,Cultural Env Reg&Plan Services,SMSS (Env),ES Support & Development                ,G00070,Supplies & Services           ,Expenses                      ,DH02,Conferences,102,820,2/3/2012,R,INSTITUTE OF ACOUSTICS        
2012 - FEB,Cultural Env Reg&Plan Services,SMSS (Env),Senior Mgt. - E.S.C.                    ,G00100,Supplies & Services           ,Services                      ,DF03,Consultants,103,"18,800.00",1/27/2012,R,REDQUADRANT LTD               
2012 - FEB,Highways & Transport Services,Structural Maintenance,C'way & F'way Mtce                      ,G00121,Employees                     ,Direct Employee Expenses      ,AA17,Agency Staff & Casual Paymts,104,"2,184.00",2/20/2012,R,RIDGEWAY CONSULTING LTD.      
2012 - FEB,Highways & Transport Services,Structural Maintenance,Footway maintenance                     ,G00124,Third Party Payments          ,Private Contractors           ,EH56,Carriageway/Fway Maint,105,"1,178.10",2/11/2012,R,NEWSQUEST (LONDON)LTD         
2012 - FEB,Highways & Transport Services,Env Safety&Routine Maintenance,Walk Sheets                             ,G00127,Third Party Payments          ,Private Contractors           ,EH56,Carriageway/Fway Maint,106,"28,715.65",2/15/2012,R,FM CONWAY LTD                 
2012 - FEB,Highways & Transport Services,Env Safety&Routine Maintenance,Traffic Signs.                          ,G00160,Third Party Payments          ,Private Contractors           ,EH01,Miscellaneous Agency Services,107,"3,488.28",1/20/2012,R,MAY GURNEY LTD T/A CARTLEDGE  
2012 - FEB,Highways & Transport Services,Env Safety&Routine Maintenance,Traffic Signs.                          ,G00160,Third Party Payments          ,Private Contractors           ,EH01,Miscellaneous Agency Services,108,806.08,1/19/2012,R,SIGNWAY SUPPLIES              
2012 - FEB,Highways & Transport Services,Env Safety&Routine Maintenance,Traffic Signs.                          ,G00160,Third Party Payments          ,Private Contractors           ,EH01,Miscellaneous Agency Services,109,"1,241.00",2/2/2012,R,UK POWER NETWORKS (OPERATIONS)
2012 - FEB,Highways & Transport Services,Env Safety&Routine Maintenance,Traffic Signs.                          ,G00160,Third Party Payments          ,Private Contractors           ,EH01,Miscellaneous Agency Services,110,"1,529.20",1/27/2012,R,MAY GURNEY LTD T/A CARTLEDGE  
2012 - FEB,Highways & Transport Services,Street Lights(Inc Energy Cost),Street Lighting .                       ,G00260,Premises Related Expenditure  ,Energy Costs                  ,BB02,Electricity,111,"53,028.14",2/16/2012,R,KENT COUNTY COUNCIL           
2012 - FEB,Highways & Transport Services,Street Lights(Inc Energy Cost),Street Lighting .                       ,G00260,Third Party Payments          ,Private Contractors           ,EH01,Miscellaneous Agency Services,112,"1,235.29",1/20/2012,R,MAY GURNEY LTD T/A CARTLEDGE  
2012 - FEB,Highways & Transport Services,Street Lights(Inc Energy Cost),Street Lighting .                       ,G00260,Third Party Payments          ,Private Contractors           ,EH01,Miscellaneous Agency Services,113,"4,701.10",1/20/2012,R,MAY GURNEY LTD T/A CARTLEDGE  
2012 - FEB,Highways & Transport Services,Street Lights(Inc Energy Cost),Street Lighting .                       ,G00260,Third Party Payments          ,Private Contractors           ,EH01,Miscellaneous Agency Services,114,"1,066.00",12/13/2011,R,UK POWER NETWORKS (OPERATIONS)
2012 - FEB,Highways & Transport Services,Street Lights(Inc Energy Cost),Street Lighting .                       ,G00260,Third Party Payments          ,Private Contractors           ,EH01,Miscellaneous Agency Services,115,643,1/10/2012,R,UK POWER NETWORKS (OPERATIONS)
2012 - FEB,Highways & Transport Services,Street Lights(Inc Energy Cost),Street Lighting .                       ,G00260,Third Party Payments          ,Private Contractors           ,EH01,Miscellaneous Agency Services,116,"4,828.10",1/27/2012,R,MAY GURNEY LTD T/A CARTLEDGE  
2012 - FEB,Highways & Transport Services,Street Lights(Inc Energy Cost),Street Lighting .                       ,G00260,Third Party Payments          ,Private Contractors           ,EH01,Miscellaneous Agency Services,117,"1,238.72",1/27/2012,R,MAY GURNEY LTD T/A CARTLEDGE  
2012 - FEB,Highways & Transport Services,Street Lights(Inc Energy Cost),Street Lighting .                       ,G00260,Third Party Payments          ,Private Contractors           ,EH01,Miscellaneous Agency Services,118,"12,395.67",1/27/2012,R,MAY GURNEY LTD T/A CARTLEDGE  
2012 - FEB,Highways & Transport Services,Parking Services,Coombe Lane                             ,G00292,Premises Related Expenditure  ,Energy Costs                  ,BB02,Electricity,119,504.8,12/9/2011,R,E.ON                          
2012 - FEB,Highways & Transport Services,Parking Services,Kenley Road                             ,G00295,Premises Related Expenditure  ,RepairsAlterations&MtceOfBldgs,BA06,Repairs & Maintenance General,120,980.99,1/24/2012,R,TEASDALE GROUP LTD            
2012 - FEB,Highways & Transport Services,Parking Services,Morden Station                          ,G00301,Premises Related Expenditure  ,Rents                         ,BC01,Miscellaneous Rents,121,"1,514.69",2/14/2012,R,SACKVILLE SPF IV (GP) NO 1 LTD
2012 - FEB,Highways & Transport Services,Parking Services,St. Georges Car Park WEST M/S           ,G00302,Premises Related Expenditure  ,Energy Costs                  ,BB02,Electricity,122,"1,371.36",2/2/2012,R,KENT COUNTY COUNCIL           
2012 - FEB,Highways & Transport Services,Parking Services,St. Georges Car Park WEST M/S           ,G00302,Premises Related Expenditure  ,Rents                         ,BC01,Miscellaneous Rents,123,"2,173.33",2/14/2012,R,SACKVILLE SPF IV (GP) NO 1 LTD
2012 - FEB,Highways & Transport Services,Parking Services,"St. Mks Rd, Multi Sty                   ",G00308,Premises Related Expenditure  ,RepairsAlterations&MtceOfBldgs,BA06,Repairs & Maintenance General,124,524.66,12/6/2011,R,TEASDALE GROUP LTD            
2012 - FEB,Highways & Transport Services,Parking Services,"St. Mks Rd, Multi Sty                   ",G00308,Premises Related Expenditure  ,RepairsAlterations&MtceOfBldgs,BA06,Repairs & Maintenance General,125,867,1/24/2012,R,TEASDALE GROUP LTD            
2012 - FEB,Highways & Transport Services,Parking Services,"St. Mks Rd, Multi Sty                   ",G00308,Premises Related Expenditure  ,Energy Costs                  ,BB02,Electricity,126,"2,087.70",2/2/2012,R,EDF ENERGY                    
2012 - FEB,Highways & Transport Services,Parking Services,"St. Mks Rd, Multi Sty                   ",G00308,Premises Related Expenditure  ,Energy Costs                  ,BB02,Electricity,127,572.94,2/2/2012,R,EDF ENERGY                    
2012 - FEB,Highways & Transport Services,Parking Services,On Street Parking.                      ,G00311,Premises Related Expenditure  ,RepairsAlterations&MtceOfBldgs,BA06,Repairs & Maintenance General,128,650.25,12/6/2011,R,TEASDALE GROUP LTD            
2012 - FEB,Highways & Transport Services,Parking Services,On Street Parking.                      ,G00311,Premises Related Expenditure  ,RepairsAlterations&MtceOfBldgs,BA06,Repairs & Maintenance General,129,654.19,1/24/2012,R,TEASDALE GROUP LTD            
2012 - FEB,Highways & Transport Services,Parking Services,On Street Parking.                      ,G00311,Premises Related Expenditure  ,RepairsAlterations&MtceOfBldgs,BA06,Repairs & Maintenance General,130,984.76,1/24/2012,R,TEASDALE GROUP LTD            
2012 - FEB,Highways & Transport Services,Parking Services,On Street Parking.                      ,G00311,Premises Related Expenditure  ,RepairsAlterations&MtceOfBldgs,BA06,Repairs & Maintenance General,131,634.13,1/30/2012,R,TEASDALE GROUP LTD            
2012 - FEB,Highways & Transport Services,Parking Services,Civil Enforcement Officers              ,G00330,Supplies & Services           ,Comms and Computing           ,DG14,Telephones - Mobile,132,560,2/3/2012,R,VODAFONE CORPORATE LTD        
2012 - FEB,Highways & Transport Services,Parking Services,Operational Running Costs               ,G00331,Supplies & Services           ,Prntng Stnry Gen Off Exp      ,DE01,External Printing,133,"3,243.60",1/27/2012,R,NAGELS UK LTD                 
2012 - FEB,Highways & Transport Services,Parking Services,Operational Running Costs               ,G00331,Supplies & Services           ,Services                      ,DF14,Doctors and other fees,134,503,2/24/2012,R,THE CHURCH LANE PRACTICE      
2012 - FEB,Highways & Transport Services,Parking Services,Operational Running Costs               ,G00331,Supplies & Services           ,Comms and Computing           ,DG04,Postage - General,135,660,11/16/2011,R,OVENDEN PAPERS LTD            
2012 - FEB,Highways & Transport Services,Parking Services,Operational Running Costs               ,G00331,Supplies & Services           ,Grants and Subscriptions      ,DJ54,Contributions,136,"1,010.00",2/7/2012,R,BRITISH PARKING ASSOCIATION   
2012 - FEB,Highways & Transport Services,Parking Services,Operational Running Costs               ,G00331,Third Party Payments          ,Other Agencies                ,EJ58,Parking Cttee for London,137,"2,422.00",2/3/2012,R,LONDON COUNCILS               
2012 - FEB,Highways & Transport Services,Structural Maintenance,Footpath Crossings.                     ,G00390,Third Party Payments          ,Private Contractors           ,EH01,Miscellaneous Agency Services,138,"6,178.68",2/15/2012,R,FM CONWAY LTD                 
2012 - FEB,Cultural Env Reg&Plan Services,Street Cleaning - Not highways,Street Cleansing (Inc. Gully)           ,G00492,Employees                     ,Indirect Employee Expenses    ,AB57,External Training Costs,139,690,2/17/2012,R,TRAIN-A-LIFT LTD              
2012 - FEB,Cultural Env Reg&Plan Services,Street Cleaning - Not highways,Street Cleansing (Inc. Gully)           ,G00492,Premises Related Expenditure  ,Rents                         ,BC01,Miscellaneous Rents,140,592.9,12/7/2010,R,MERTON PRIORY HOMES (RENT)    
2012 - FEB,Cultural Env Reg&Plan Services,Street Cleaning - Not highways,Street Cleansing (Inc. Gully)           ,G00492,Supplies & Services           ,Equip Furniture/Materials     ,DA01,Equipment - R & M,141,568.8,12/30/2011,R,N A BROWN LTD                 
2012 - FEB,Cultural Env Reg&Plan Services,Street Cleaning - Not highways,Street Cleansing (Inc. Gully)           ,G00492,Supplies & Services           ,Equip Furniture/Materials     ,DA01,Equipment - R & M,142,778.2,1/31/2012,R,N A BROWN LTD                 
2012 - FEB,Cultural Env Reg&Plan Services,Street Cleaning - Not highways,Street Cleansing (Inc. Gully)           ,G00492,Supplies & Services           ,Equip Furniture/Materials     ,DA01,Equipment - R & M,143,"1,200.00",2/15/2012,R,R.J.H.WELDING                 
2012 - FEB,Cultural Env Reg&Plan Services,Street Cleaning - Not highways,Street Cleansing (Inc. Gully)           ,G00492,Supplies & Services           ,Equip Furniture/Materials     ,DA08,Tools-Purchase,144,"1,189.90",2/14/2012,R,BELL BRUSH                    
2012 - FEB,Cultural Env Reg&Plan Services,Street Cleaning - Not highways,Street Cleansing (Inc. Gully)           ,G00492,Supplies & Services           ,Clothing Unfrms Laundry       ,DC02,Clothing & Uniforms,145,"1,708.50",2/3/2012,R,SAFETY MANAGEMENT             
2012 - FEB,Cultural Env Reg&Plan Services,Waste Disposal,Waste Disposal .                        ,G00550,Third Party Payments          ,Private Contractors           ,EH04,Accommodation Based Support,146,"326,106.92",2/15/2012,R,KINGSTON CORPORATION          
2012 - FEB,Cultural Env Reg&Plan Services,Waste Disposal,Waste Disposal .                        ,G00550,Third Party Payments          ,Private Contractors           ,EH10,Contract Payments,147,"40,194.33",2/15/2012,R,KINGSTON CORPORATION          
2012 - FEB,Cultural Env Reg&Plan Services,Waste Disposal,Waste Disposal .                        ,G00550,Third Party Payments          ,Private Contractors           ,EH90,Disposal of Waste from CA Site,148,600,1/19/2012,R,NORTHAMPTONSHIRE COUNTY COUNCI
2012 - FEB,Cultural Env Reg&Plan Services,Waste Disposal,Waste Disposal .                        ,G00550,Third Party Payments          ,Private Contractors           ,EH96,Hardcore Disposal - Country Waste,149,"1,359.60",1/31/2012,R,CORY ENVIRONMENTAL LIMITED    
2012 - FEB,Cultural Env Reg&Plan Services,Waste Disposal,Waste Disposal .                        ,G00550,Third Party Payments          ,Private Contractors           ,EH97,Detritus - Alt. Contractor,150,"1,204.00",2/15/2012,R,NEOLAY LTD                    
2012 - FEB,Cultural Env Reg&Plan Services,Waste Disposal,Garth Road Site                         ,G00580,Premises Related Expenditure  ,Energy Costs                  ,BB02,Electricity,151,"1,205.62",2/7/2011,R,EDF ENERGY 1 LIMITED          
2012 - FEB,Cultural Env Reg&Plan Services,Waste Disposal,Garth Road Site                         ,G00580,Premises Related Expenditure  ,Energy Costs                  ,BB02,Electricity,152,521.04,2/7/2011,R,EDF ENERGY 1 LIMITED          
2012 - FEB,Cultural Env Reg&Plan Services,Waste Disposal,Garth Road Site                         ,G00580,Third Party Payments          ,Private Contractors           ,EH63,Paper Haulage,153,"3,798.07",2/6/2012,R,KINGSTON CORPORATION          
2012 - FEB,Highways & Transport Services,Structural Maintenance,Grass Cut/Tr Mtce                       ,G00600,Premises Related Expenditure  ,Ground Maintenance Costs      ,BL03,Maintenance of Grounds,154,"1,140.00",1/31/2012,R,HILLIER NURSERIES LTD         
2012 - FEB,Highways & Transport Services,Structural Maintenance,Grass Cut/Tr Mtce                       ,G00600,Premises Related Expenditure  ,Ground Maintenance Costs      ,BL03,Maintenance of Grounds,155,"13,490.38",1/26/2012,R,VEOLIA ES (UK) LIMITED        
2012 - FEB,Highways & Transport Services,Structural Maintenance,Grass Cut/Tr Mtce                       ,G00600,Premises Related Expenditure  ,Ground Maintenance Costs      ,BL03,Maintenance of Grounds,156,"4,689.34",1/26/2012,R,VEOLIA ES (UK) LIMITED        
2012 - FEB,Highways & Transport Services,Structural Maintenance,Grass Cut/Tr Mtce                       ,G00600,Premises Related Expenditure  ,Ground Maintenance Costs      ,BL03,Maintenance of Grounds,157,"3,006.21",1/26/2012,R,VEOLIA ES (UK) LIMITED        
2012 - FEB,Highways & Transport Services,Structural Maintenance,Grass Cut/Tr Mtce                       ,G00600,Premises Related Expenditure  ,Ground Maintenance Costs      ,BL03,Maintenance of Grounds,158,"1,491.61",1/26/2012,R,VEOLIA ES (UK) LIMITED        
2012 - FEB,Highways & Transport Services,Structural Maintenance,Grass Cut/Tr Mtce                       ,G00600,Premises Related Expenditure  ,Ground Maintenance Costs      ,BL03,Maintenance of Grounds,159,915.58,1/23/2012,R,VEOLIA ES (UK) LIMITED        
2012 - FEB,Cultural Env Reg&Plan Services,Environmental Health,Dog Control.                            ,G00620,Third Party Payments          ,Private Contractors           ,EH02,Miscellaneous Hired Services,160,"2,200.00",11/30/2011,R,WOODLANDS ANIMAL CARE LTD     
2012 - FEB,Cultural Env Reg&Plan Services,Environmental Health,Dog Control.                            ,G00620,Third Party Payments          ,Private Contractors           ,EH02,Miscellaneous Hired Services,161,"1,671.21",2/9/2012,R,RIVERSIDE ANIMAL SERVICES     
2012 - FEB,Cultural Env Reg&Plan Services,Environmental Health,Dog Control.                            ,G00620,Third Party Payments          ,Private Contractors           ,EH02,Miscellaneous Hired Services,162,"3,180.43",2/9/2012,R,RIVERSIDE ANIMAL SERVICES     
2012 - FEB,Cultural Env Reg&Plan Services,Waste Collection,Recycling Activities                    ,G00640,Third Party Payments          ,Private Contractors           ,EH03,Term Contract,163,"43,000.87",2/7/2012,R,KINGSTON CORPORATION          
2012 - FEB,Cultural Env Reg&Plan Services,Waste Collection,Recycling Activities                    ,G00640,Third Party Payments          ,Private Contractors           ,EH18,Disposal of Kitchen Waste,164,"13,004.11",2/7/2012,R,KINGSTON CORPORATION          
2012 - FEB,Cultural Env Reg&Plan Services,Waste Collection,Recycling Activities                    ,G00640,Third Party Payments          ,Private Contractors           ,EH61,Green Waste Disposal,165,"6,542.76",1/31/2012,R,VIRIDOR WASTE KENT LTD        
2012 - FEB,Cultural Env Reg&Plan Services,Waste Collection,Recycling Activities                    ,G00640,Third Party Payments          ,Private Contractors           ,EH63,Paper Haulage,166,"76,068.17",2/7/2012,R,KINGSTON CORPORATION          
2012 - FEB,Cultural Env Reg&Plan Services,Waste Collection,Recycling Collection                    ,G00645,Supplies & Services           ,Clothing Unfrms Laundry       ,DC02,Clothing & Uniforms,167,"1,862.22",1/9/2012,R,SAFETY MANAGEMENT             
2012 - FEB,Cultural Env Reg&Plan Services,Waste Collection,Refuse Collection (Operations)          ,G00661,Transport Related Expenditure ,Direct Transport Costs        ,CA52,Reps Vehicles Ins Claims,168,750,1/29/2012,R,S.E.T.S SERVICES              
2012 - FEB,Cultural Env Reg&Plan Services,Waste Collection,Refuse Collection (Operations)          ,G00661,Transport Related Expenditure ,Direct Transport Costs        ,CA52,Reps Vehicles Ins Claims,169,545.05,1/16/2012,R,S.E.T.S SERVICES              
2012 - FEB,Cultural Env Reg&Plan Services,Waste Collection,Refuse Collection (Operations)          ,G00661,Supplies & Services           ,Equip Furniture/Materials     ,DA08,Tools-Purchase,170,"1,246.20",1/31/2012,R,BELL BRUSH                    
2012 - FEB,Cultural Env Reg&Plan Services,Waste Collection,Refuse Collection (Operations)          ,G00661,Supplies & Services           ,Equip Furniture/Materials     ,DA32,Wheeled Bins,171,"2,508.00",2/3/2012,R,SPIDER UK LTD                 
2012 - FEB,Cultural Env Reg&Plan Services,Waste Collection,Refuse Collection (Operations)          ,G00661,Supplies & Services           ,Equip Furniture/Materials     ,DA32,Wheeled Bins,172,"2,137.48",2/6/2012,R,UK WASTE CONTAINERS           
2012 - FEB,Cultural Env Reg&Plan Services,Consumer Protection,Trading Standards                       ,G00690,Supplies & Services           ,Services                      ,DF11,Counsel's fees,173,"4,050.00",12/12/2011,R,REDACTED
2012 - FEB,Cultural Env Reg&Plan Services,Consumer Protection,Trading Standards                       ,G00690,Supplies & Services           ,Miscellaneous Expenses        ,DL32,Expert reports,174,"2,423.75",11/3/2011,R,LONDON BOROUGH OF ENFIELD     
2012 - FEB,Cultural Env Reg&Plan Services,Cemetery Cremation & Mortuary,Mortuary                                ,G00700,Third Party Payments          ,Other Local Authorities       ,EB01,Payments to OLAs,175,"5,759.00",2/2/2012,R,ST GEORGES HEALTHCARE TRUST   
2012 - FEB,Cultural Env Reg&Plan Services,Cemetery Cremation & Mortuary,Mortuary                                ,G00700,Third Party Payments          ,Other Local Authorities       ,EB01,Payments to OLAs,176,"12,480.00",2/2/2012,R,ST GEORGES HEALTHCARE TRUST   
2012 - FEB,Cultural Env Reg&Plan Services,Environmental Health,Housing/Env                             ,G00730,Employees                     ,Direct Employee Expenses      ,AA17,Agency Staff & Casual Paymts,177,740.6,1/18/2012,R,REDACTED
2012 - FEB,Cultural Env Reg&Plan Services,Environmental Health,Housing/Env                             ,G00730,Employees                     ,Direct Employee Expenses      ,AA17,Agency Staff & Casual Paymts,178,901.6,1/25/2012,R,REDACTED
2012 - FEB,Cultural Env Reg&Plan Services,Environmental Health,Housing/Env                             ,G00730,Employees                     ,Direct Employee Expenses      ,AA17,Agency Staff & Casual Paymts,179,885.5,2/8/2012,R,REDACTED
2012 - FEB,Cultural Env Reg&Plan Services,Environmental Health,AIR QUALITY GRANT (DEFRA) MB            ,G00732,Third Party Payments          ,Private Contractors           ,EH02,Miscellaneous Hired Services,180,"3,480.00",2/6/2012,R,ENERGY SAVING TRUST LTD       
2012 - FEB,Cultural Env Reg&Plan Services,SMSS (Env),Waste Management                        ,G00900,Premises Related Expenditure  ,Energy Costs                  ,BB02,Electricity,181,600.45,2/15/2012,R,EDF ENERGY                    
2012 - FEB,Central Services,Gen Grants Bequest & Donations,Vestry Hall                             ,G40314,Employees                     ,Direct Employee Expenses      ,AA17,Agency Staff & Casual Paymts,182,"4,377.59",2/10/2012,R,PCL SECURITY LTD              
2012 - FEB,Central Services,Gen Grants Bequest & Donations,Vestry Hall                             ,G40314,Premises Related Expenditure  ,Energy Costs                  ,BB02,Electricity,183,"2,912.47",2/1/2012,R,EDF ENERGY                    
2012 - FEB,Central Services,Gen Grants Bequest & Donations,Vestry Hall                             ,G40314,Third Party Payments          ,Private Contractors           ,EH02,Miscellaneous Hired Services,184,"1,408.47",2/6/2012,R,DYNAMIQ CLEANING LIMITED      
2012 - FEB,Cultural Env Reg&Plan Services,Building Control,Building Control                        ,H01100,Supplies & Services           ,Prntng Stnry Gen Off Exp      ,DE05,Micro-filming,185,"1,882.10",1/25/2012,R,DOCUMENT SCANNING SOLUTIONS LT
2012 - FEB,Cultural Env Reg&Plan Services,Building Control,Building Control                        ,H01100,Supplies & Services           ,Services                      ,DF57,Consulting Engineers Fees,186,"1,265.00",2/6/2012,R,POOLE & COMPANY               
2012 - FEB,Cultural Env Reg&Plan Services,Development Control,Development Control                     ,H01130,Supplies & Services           ,Services                      ,DF11,Counsel's fees,187,"16,930.00",2/6/2012,R,LONDON BOROUGH OF SUTTON      
2012 - FEB,Cultural Env Reg&Plan Services,Development Control,Development Control                     ,H01130,Supplies & Services           ,Grants and Subscriptions      ,DJ04,Subscriptions,188,"1,002.00",10/31/2011,R,THOMSON REUTERS               
2012 - FEB,Cultural Env Reg&Plan Services,Development Control,Development Control                     ,H01130,Supplies & Services           ,Grants and Subscriptions      ,DJ04,Subscriptions,189,918,2/1/2012,R,HAYMARKET PUBLISHING SERV.LTD 
2012 - FEB,Cultural Env Reg&Plan Services,Planning Policy,Spatial Policy                          ,H01173,Third Party Payments          ,Private Contractors           ,EH10,Contract Payments,190,"20,000.00",1/27/2012,R,GREATER LONDON AUTHORITY      
2012 - FEB,Cultural Env Reg&Plan Services,Planning Policy,REGENERATION & INVESTMENT              ,H01174,Supplies & Services           ,Grants and Subscriptions      ,DJ04,Subscriptions,191,780,1/6/2012,R,MERTON CHAMBER OF COMMERCE    
2012 - FEB,Cultural Env Reg&Plan Services,Economic Development,(LABGI)-BUSINESS SUPPORT                ,H01210,Supplies & Services           ,Grants and Subscriptions      ,DJ54,Contributions,192,"30,293.00",1/5/2012,R,WANDSWORTH CORPORATION        
2012 - FEB,Cultural Env Reg&Plan Services,Economic Development,TOWN CENTRE MANAGEMENT                 ,H01223,Third Party Payments          ,Private Contractors           ,EH02,Miscellaneous Hired Services,193,600,2/7/2012,R,CAFFE D'ORO LTD               
2012 - FEB,CS -Oth Operating Inc & Expend,Trading A/c Surpluses/Deficits,Transport-Contract Hire                 ,J01374,Premises Related Expenditure  ,Energy Costs                  ,BB02,Electricity,194,"2,647.08",2/15/2012,R,EDF ENERGY                    
2012 - FEB,CS -Oth Operating Inc & Expend,Trading A/c Surpluses/Deficits,Transport-Contract Hire                 ,J01374,Premises Related Expenditure  ,Energy Costs                  ,BB03,Gas (incl. Butane),195,605.21,1/9/2012,R,KENT COUNTY COUNCIL           
2012 - FEB,CS -Oth Operating Inc & Expend,Trading A/c Surpluses/Deficits,Transport-Contract Hire                 ,J01374,Premises Related Expenditure  ,Energy Costs                  ,BB03,Gas (incl. Butane),196,732.14,1/9/2012,R,KENT COUNTY COUNCIL           
2012 - FEB,CS -Oth Operating Inc & Expend,Trading A/c Surpluses/Deficits,Transport-Contract Hire                 ,J01374,Transport Related Expenditure ,Direct Transport Costs        ,CA01,Petrol Derv & Oil,197,"39,456.51",1/30/2012,R,EMO OILS LTD                  
2012 - FEB,CS -Oth Operating Inc & Expend,Trading A/c Surpluses/Deficits,Transport-Contract Hire                 ,J01374,Transport Related Expenditure ,Direct Transport Costs        ,CA55,Specialist Maint. (Off Site),198,883.03,2/16/2012,R,FLEETSPEED COACHWORKS LTD.    
2012 - FEB,CS -Oth Operating Inc & Expend,Trading A/c Surpluses/Deficits,Transport-Contract Hire                 ,J01374,Transport Related Expenditure ,Direct Transport Costs        ,CA56,Specialist Maint. (On Site),199,571.65,2/15/2012,R,R.J.H.WELDING                 
2012 - FEB,CS -Oth Operating Inc & Expend,Trading A/c Surpluses/Deficits,Transport-Contract Hire                 ,J01374,Transport Related Expenditure ,Contract Hire and Op Leasing  ,CC53,Plant Hire for MRCS,200,650,1/13/2012,R,GO PLANT                      
2012 - FEB,CS -Oth Operating Inc & Expend,Trading A/c Surpluses/Deficits,Transport-Contract Hire                 ,J01374,Transport Related Expenditure ,Contract Hire and Op Leasing  ,CC53,Plant Hire for MRCS,201,535,1/23/2012,R,PHOENIX VEHICLE HIRE LTD      
2012 - FEB,CS -Oth Operating Inc & Expend,Trading A/c Surpluses/Deficits,Transport-Contract Hire                 ,J01374,Transport Related Expenditure ,Contract Hire and Op Leasing  ,CC53,Plant Hire for MRCS,202,"1,060.00",1/27/2012,R,GVS HIRE LTD                  
2012 - FEB,CS -Oth Operating Inc & Expend,Trading A/c Surpluses/Deficits,Transport-Contract Hire                 ,J01374,Transport Related Expenditure ,Contract Hire and Op Leasing  ,CC53,Plant Hire for MRCS,203,660,1/27/2012,R,GVS HIRE LTD                  
2012 - FEB,CS -Oth Operating Inc & Expend,Trading A/c Surpluses/Deficits,Transport-Contract Hire                 ,J01374,Transport Related Expenditure ,Contract Hire and Op Leasing  ,CC53,Plant Hire for MRCS,204,650,1/20/2012,R,GO PLANT                      
2012 - FEB,CS -Oth Operating Inc & Expend,Trading A/c Surpluses/Deficits,Transport-Contract Hire                 ,J01374,Transport Related Expenditure ,Contract Hire and Op Leasing  ,CC53,Plant Hire for MRCS,205,535,1/30/2012,R,PHOENIX VEHICLE HIRE LTD      
2012 - FEB,CS -Oth Operating Inc & Expend,Trading A/c Surpluses/Deficits,Transport-Contract Hire                 ,J01374,Transport Related Expenditure ,Contract Hire and Op Leasing  ,CC53,Plant Hire for MRCS,206,"2,464.00",1/27/2012,R,GVS HIRE LTD                  
2012 - FEB,CS -Oth Operating Inc & Expend,Trading A/c Surpluses/Deficits,Transport-Contract Hire                 ,J01374,Transport Related Expenditure ,Contract Hire and Op Leasing  ,CC53,Plant Hire for MRCS,207,"2,000.00",1/27/2012,R,NOBLET MUNICIPAL SERVICES LTD 
2012 - FEB,CS -Oth Operating Inc & Expend,Trading A/c Surpluses/Deficits,Transport-Contract Hire                 ,J01374,Transport Related Expenditure ,Contract Hire and Op Leasing  ,CC53,Plant Hire for MRCS,208,576,12/31/2011,R,B&T PLANT HIRE LTD            
2012 - FEB,CS -Oth Operating Inc & Expend,Trading A/c Surpluses/Deficits,Transport-Contract Hire                 ,J01374,Transport Related Expenditure ,Contract Hire and Op Leasing  ,CC53,Plant Hire for MRCS,209,720,1/31/2012,R,B&T PLANT HIRE LTD            
2012 - FEB,CS -Oth Operating Inc & Expend,Trading A/c Surpluses/Deficits,Transport-Contract Hire                 ,J01374,Transport Related Expenditure ,Contract Hire and Op Leasing  ,CC53,Plant Hire for MRCS,210,819.26,1/31/2012,R,SHB HIRE LTD                  
2012 - FEB,CS -Oth Operating Inc & Expend,Trading A/c Surpluses/Deficits,Transport-Contract Hire                 ,J01374,Transport Related Expenditure ,Contract Hire and Op Leasing  ,CC53,Plant Hire for MRCS,211,819.26,1/31/2012,R,SHB HIRE LTD                  
2012 - FEB,CS -Oth Operating Inc & Expend,Trading A/c Surpluses/Deficits,Transport-Contract Hire                 ,J01374,Transport Related Expenditure ,Contract Hire and Op Leasing  ,CC53,Plant Hire for MRCS,212,819.26,1/31/2012,R,SHB HIRE LTD                  
2012 - FEB,CS -Oth Operating Inc & Expend,Trading A/c Surpluses/Deficits,Transport-Contract Hire                 ,J01374,Transport Related Expenditure ,Contract Hire and Op Leasing  ,CC53,Plant Hire for MRCS,213,792,11/30/2011,R,B&T PLANT HIRE LTD            
2012 - FEB,CS -Oth Operating Inc & Expend,Trading A/c Surpluses/Deficits,Transport-Contract Hire                 ,J01374,Transport Related Expenditure ,Contract Hire and Op Leasing  ,CC53,Plant Hire for MRCS,214,650,2/3/2012,R,GO PLANT                      
2012 - FEB,CS -Oth Operating Inc & Expend,Trading A/c Surpluses/Deficits,Transport-Contract Hire                 ,J01374,Transport Related Expenditure ,Contract Hire and Op Leasing  ,CC53,Plant Hire for MRCS,215,535,2/6/2012,R,PHOENIX VEHICLE HIRE LTD      
2012 - FEB,CS -Oth Operating Inc & Expend,Trading A/c Surpluses/Deficits,Transport-Contract Hire                 ,J01374,Transport Related Expenditure ,Contract Hire and Op Leasing  ,CC53,Plant Hire for MRCS,216,535,2/13/2012,R,PHOENIX VEHICLE HIRE LTD      
2012 - FEB,CS -Oth Operating Inc & Expend,Trading A/c Surpluses/Deficits,Transport-Contract Hire                 ,J01374,Transport Related Expenditure ,Contract Hire and Op Leasing  ,CC53,Plant Hire for MRCS,217,650,2/10/2012,R,GO PLANT                      
2012 - FEB,CS -Oth Operating Inc & Expend,Trading A/c Surpluses/Deficits,Transport-Contract Hire                 ,J01374,Transport Related Expenditure ,Contract Hire and Op Leasing  ,CC55,Plant Hire for Parking,218,555.68,1/31/2012,R,REDACTED
2012 - FEB,CS -Oth Operating Inc & Expend,Trading A/c Surpluses/Deficits,Transport-Contract Hire                 ,J01374,Transport Related Expenditure ,Contract Hire and Op Leasing  ,CC58,Plant Hire - Ad Hoc,219,"2,068.43",2/4/2012,R,DAWSON RENTALS BUS AND COACH  
2012 - FEB,CS -Oth Operating Inc & Expend,Trading A/c Surpluses/Deficits,Transport-Contract Hire                 ,J01374,Transport Related Expenditure ,Contract Hire and Op Leasing  ,CC58,Plant Hire - Ad Hoc,220,931.12,1/26/2012,R,DAWSON RENTALS BUS AND COACH  
2012 - FEB,CS -Oth Operating Inc & Expend,Trading A/c Surpluses/Deficits,Transport-Contract Hire                 ,J01374,Transport Related Expenditure ,Contract Hire and Op Leasing  ,CC58,Plant Hire - Ad Hoc,221,931.12,1/26/2012,R,DAWSON RENTALS BUS AND COACH  
2012 - FEB,CS -Oth Operating Inc & Expend,Trading A/c Surpluses/Deficits,Transport-Contract Hire                 ,J01374,Transport Related Expenditure ,Contract Hire and Op Leasing  ,CC58,Plant Hire - Ad Hoc,222,527.5,1/24/2012,R,DAWSON RENTALS BUS AND COACH  
2012 - FEB,CS -Oth Operating Inc & Expend,Trading A/c Surpluses/Deficits,Transport-Contract Hire                 ,J01374,Transport Related Expenditure ,Contract Hire and Op Leasing  ,CC58,Plant Hire - Ad Hoc,223,527.5,1/24/2012,R,DAWSON RENTALS BUS AND COACH  
2012 - FEB,CS -Oth Operating Inc & Expend,Trading A/c Surpluses/Deficits,Transport-Contract Hire                 ,J01374,Transport Related Expenditure ,Contract Hire and Op Leasing  ,CC58,Plant Hire - Ad Hoc,224,"1,458.62",2/4/2012,R,DAWSON RENTALS BUS AND COACH  
2012 - FEB,CS -Oth Operating Inc & Expend,Trading A/c Surpluses/Deficits,Transport-Contract Hire                 ,J01374,Transport Related Expenditure ,Contract Hire and Op Leasing  ,CC58,Plant Hire - Ad Hoc,225,"1,458.62",2/4/2012,R,DAWSON RENTALS BUS AND COACH  
2012 - FEB,CS -Oth Operating Inc & Expend,Trading A/c Surpluses/Deficits,Transport-Contract Hire                 ,J01374,Transport Related Expenditure ,Contract Hire and Op Leasing  ,CC60,Vehicle Hire for LB Sutton,226,"1,500.00",1/31/2012,R,BARCLAYS ASSET & SALES FINANCE
2012 - FEB,CS -Oth Operating Inc & Expend,Trading A/c Surpluses/Deficits,Transport-Contract Hire                 ,J01374,Transport Related Expenditure ,Contract Hire and Op Leasing  ,CC60,Vehicle Hire for LB Sutton,227,"3,106.00",1/31/2012,R,BARCLAYS ASSET & SALES FINANCE
2012 - FEB,CS -Oth Operating Inc & Expend,Trading A/c Surpluses/Deficits,Transport-Contract Hire                 ,J01374,Transport Related Expenditure ,Contract Hire and Op Leasing  ,CC60,Vehicle Hire for LB Sutton,228,"1,020.00",1/31/2012,R,BARCLAYS ASSET & SALES FINANCE
2012 - FEB,CS -Oth Operating Inc & Expend,Trading A/c Surpluses/Deficits,Transport-Contract Hire                 ,J01374,Transport Related Expenditure ,Contract Hire and Op Leasing  ,CC60,Vehicle Hire for LB Sutton,229,"3,329.48",1/31/2012,R,BARCLAYS ASSET & SALES FINANCE
2012 - FEB,CS -Oth Operating Inc & Expend,Trading A/c Surpluses/Deficits,Transport-Contract Hire                 ,J01374,Transport Related Expenditure ,Contract Hire and Op Leasing  ,CC60,Vehicle Hire for LB Sutton,230,"1,020.00",1/31/2012,R,BARCLAYS ASSET & SALES FINANCE
2012 - FEB,CS -Oth Operating Inc & Expend,Trading A/c Surpluses/Deficits,Transport-Contract Hire                 ,J01374,Transport Related Expenditure ,Contract Hire and Op Leasing  ,CC60,Vehicle Hire for LB Sutton,231,"1,677.00",1/31/2012,R,BARCLAYS ASSET & SALES FINANCE
2012 - FEB,CS -Oth Operating Inc & Expend,Trading A/c Surpluses/Deficits,Transport-Contract Hire                 ,J01374,Transport Related Expenditure ,Contract Hire and Op Leasing  ,CC60,Vehicle Hire for LB Sutton,232,"2,060.00",1/31/2012,R,BRUNSWICK CARS LTD            
2012 - FEB,CS -Oth Operating Inc & Expend,Trading A/c Surpluses/Deficits,Transport-Contract Hire                 ,J01374,Transport Related Expenditure ,Contract Hire and Op Leasing  ,CC60,Vehicle Hire for LB Sutton,233,"3,580.00",1/31/2012,R,BRUNSWICK CARS LTD            
2012 - FEB,CS -Oth Operating Inc & Expend,Trading A/c Surpluses/Deficits,Transport-Contract Hire                 ,J01374,Transport Related Expenditure ,Contract Hire and Op Leasing  ,CC60,Vehicle Hire for LB Sutton,234,"2,380.00",1/31/2012,R,BRUNSWICK CARS LTD            
2012 - FEB,CS -Oth Operating Inc & Expend,Trading A/c Surpluses/Deficits,Transport-Contract Hire                 ,J01374,Transport Related Expenditure ,Contract Hire and Op Leasing  ,CC60,Vehicle Hire for LB Sutton,235,"2,800.00",1/31/2012,R,BRUNSWICK CARS LTD            
2012 - FEB,CS -Oth Operating Inc & Expend,Trading A/c Surpluses/Deficits,Transport-Contract Hire                 ,J01374,Transport Related Expenditure ,Contract Hire and Op Leasing  ,CC60,Vehicle Hire for LB Sutton,236,777,1/31/2012,R,CAPITAL CARS                  
2012 - FEB,CS -Oth Operating Inc & Expend,Trading A/c Surpluses/Deficits,Transport-Contract Hire                 ,J01374,Transport Related Expenditure ,Contract Hire and Op Leasing  ,CC64,Mini Cab Hire for Education,237,517,12/31/2011,R,GALPINS SERVICE               
2012 - FEB,CS -Oth Operating Inc & Expend,Trading A/c Surpluses/Deficits,Transport-Contract Hire                 ,J01374,Transport Related Expenditure ,Contract Hire and Op Leasing  ,CC64,Mini Cab Hire for Education,238,"9,296.00",1/29/2012,R,KINGSTON ACCESSIBILITY TRAN LT
2012 - FEB,CS -Oth Operating Inc & Expend,Trading A/c Surpluses/Deficits,Transport-Contract Hire                 ,J01374,Transport Related Expenditure ,Contract Hire and Op Leasing  ,CC64,Mini Cab Hire for Education,239,"1,040.00",1/31/2012,R,BARCLAYS ASSET & SALES FINANCE
2012 - FEB,CS -Oth Operating Inc & Expend,Trading A/c Surpluses/Deficits,Transport-Contract Hire                 ,J01374,Transport Related Expenditure ,Contract Hire and Op Leasing  ,CC64,Mini Cab Hire for Education,240,"1,980.00",1/31/2012,R,BARCLAYS ASSET & SALES FINANCE
2012 - FEB,CS -Oth Operating Inc & Expend,Trading A/c Surpluses/Deficits,Transport-Contract Hire                 ,J01374,Transport Related Expenditure ,Contract Hire and Op Leasing  ,CC64,Mini Cab Hire for Education,241,"2,560.00",1/31/2012,R,BARCLAYS ASSET & SALES FINANCE
2012 - FEB,CS -Oth Operating Inc & Expend,Trading A/c Surpluses/Deficits,Transport-Contract Hire                 ,J01374,Transport Related Expenditure ,Contract Hire and Op Leasing  ,CC64,Mini Cab Hire for Education,242,"6,220.00",1/31/2012,R,BARCLAYS ASSET & SALES FINANCE
2012 - FEB,CS -Oth Operating Inc & Expend,Trading A/c Surpluses/Deficits,Transport-Contract Hire                 ,J01374,Transport Related Expenditure ,Contract Hire and Op Leasing  ,CC64,Mini Cab Hire for Education,243,"2,800.00",1/31/2012,R,BARCLAYS ASSET & SALES FINANCE
2012 - FEB,CS -Oth Operating Inc & Expend,Trading A/c Surpluses/Deficits,Transport-Contract Hire                 ,J01374,Transport Related Expenditure ,Contract Hire and Op Leasing  ,CC64,Mini Cab Hire for Education,244,"1,258.00",1/31/2012,R,BARCLAYS ASSET & SALES FINANCE
2012 - FEB,CS -Oth Operating Inc & Expend,Trading A/c Surpluses/Deficits,Transport-Contract Hire                 ,J01374,Transport Related Expenditure ,Contract Hire and Op Leasing  ,CC64,Mini Cab Hire for Education,245,840,1/31/2012,R,BARCLAYS ASSET & SALES FINANCE
2012 - FEB,CS -Oth Operating Inc & Expend,Trading A/c Surpluses/Deficits,Transport-Contract Hire                 ,J01374,Transport Related Expenditure ,Contract Hire and Op Leasing  ,CC64,Mini Cab Hire for Education,246,"3,276.00",1/31/2012,R,BARCLAYS ASSET & SALES FINANCE
2012 - FEB,CS -Oth Operating Inc & Expend,Trading A/c Surpluses/Deficits,Transport-Contract Hire                 ,J01374,Transport Related Expenditure ,Contract Hire and Op Leasing  ,CC64,Mini Cab Hire for Education,247,"1,008.00",1/31/2012,R,BARCLAYS ASSET & SALES FINANCE
2012 - FEB,CS -Oth Operating Inc & Expend,Trading A/c Surpluses/Deficits,Transport-Contract Hire                 ,J01374,Transport Related Expenditure ,Contract Hire and Op Leasing  ,CC64,Mini Cab Hire for Education,248,950,1/31/2012,R,BARCLAYS ASSET & SALES FINANCE
2012 - FEB,CS -Oth Operating Inc & Expend,Trading A/c Surpluses/Deficits,Transport-Contract Hire                 ,J01374,Transport Related Expenditure ,Contract Hire and Op Leasing  ,CC64,Mini Cab Hire for Education,249,"1,216.00",1/30/2012,R,BARCLAYS ASSET & SALES FINANCE
2012 - FEB,CS -Oth Operating Inc & Expend,Trading A/c Surpluses/Deficits,Transport-Contract Hire                 ,J01374,Transport Related Expenditure ,Contract Hire and Op Leasing  ,CC64,Mini Cab Hire for Education,250,630,2/1/2012,R,BARCLAYS ASSET & SALES FINANCE
2012 - FEB,CS -Oth Operating Inc & Expend,Trading A/c Surpluses/Deficits,Transport-Contract Hire                 ,J01374,Transport Related Expenditure ,Contract Hire and Op Leasing  ,CC64,Mini Cab Hire for Education,251,"2,890.00",2/1/2012,R,BARCLAYS ASSET & SALES FINANCE
2012 - FEB,CS -Oth Operating Inc & Expend,Trading A/c Surpluses/Deficits,Transport-Contract Hire                 ,J01374,Transport Related Expenditure ,Contract Hire and Op Leasing  ,CC64,Mini Cab Hire for Education,252,"2,850.00",1/30/2012,R,BARCLAYS ASSET & SALES FINANCE
2012 - FEB,CS -Oth Operating Inc & Expend,Trading A/c Surpluses/Deficits,Transport-Contract Hire                 ,J01374,Transport Related Expenditure ,Contract Hire and Op Leasing  ,CC64,Mini Cab Hire for Education,253,"1,920.00",1/31/2012,R,BARCLAYS ASSET & SALES FINANCE
2012 - FEB,CS -Oth Operating Inc & Expend,Trading A/c Surpluses/Deficits,Transport-Contract Hire                 ,J01374,Transport Related Expenditure ,Contract Hire and Op Leasing  ,CC64,Mini Cab Hire for Education,254,950,1/31/2012,R,BARCLAYS ASSET & SALES FINANCE
2012 - FEB,CS -Oth Operating Inc & Expend,Trading A/c Surpluses/Deficits,Transport-Contract Hire                 ,J01374,Transport Related Expenditure ,Contract Hire and Op Leasing  ,CC64,Mini Cab Hire for Education,255,"2,394.00",1/31/2012,R,BARCLAYS ASSET & SALES FINANCE
2012 - FEB,CS -Oth Operating Inc & Expend,Trading A/c Surpluses/Deficits,Transport-Contract Hire                 ,J01374,Transport Related Expenditure ,Contract Hire and Op Leasing  ,CC64,Mini Cab Hire for Education,256,"1,632.00",1/31/2012,R,BARCLAYS ASSET & SALES FINANCE
2012 - FEB,CS -Oth Operating Inc & Expend,Trading A/c Surpluses/Deficits,Transport-Contract Hire                 ,J01374,Transport Related Expenditure ,Contract Hire and Op Leasing  ,CC64,Mini Cab Hire for Education,257,"2,394.00",1/31/2012,R,BARCLAYS ASSET & SALES FINANCE
2012 - FEB,CS -Oth Operating Inc & Expend,Trading A/c Surpluses/Deficits,Transport-Contract Hire                 ,J01374,Transport Related Expenditure ,Contract Hire and Op Leasing  ,CC64,Mini Cab Hire for Education,258,"2,720.00",1/31/2012,R,BARCLAYS ASSET & SALES FINANCE
2012 - FEB,CS -Oth Operating Inc & Expend,Trading A/c Surpluses/Deficits,Transport-Contract Hire                 ,J01374,Transport Related Expenditure ,Contract Hire and Op Leasing  ,CC64,Mini Cab Hire for Education,259,"2,840.00",1/31/2012,R,BARCLAYS ASSET & SALES FINANCE
2012 - FEB,CS -Oth Operating Inc & Expend,Trading A/c Surpluses/Deficits,Transport-Contract Hire                 ,J01374,Transport Related Expenditure ,Contract Hire and Op Leasing  ,CC64,Mini Cab Hire for Education,260,"2,491.48",1/31/2012,R,BARCLAYS ASSET & SALES FINANCE
2012 - FEB,CS -Oth Operating Inc & Expend,Trading A/c Surpluses/Deficits,Transport-Contract Hire                 ,J01374,Transport Related Expenditure ,Contract Hire and Op Leasing  ,CC64,Mini Cab Hire for Education,261,"2,660.00",1/31/2012,R,BARCLAYS ASSET & SALES FINANCE
2012 - FEB,CS -Oth Operating Inc & Expend,Trading A/c Surpluses/Deficits,Transport-Contract Hire                 ,J01374,Transport Related Expenditure ,Contract Hire and Op Leasing  ,CC64,Mini Cab Hire for Education,262,"1,728.00",1/31/2012,R,BARCLAYS ASSET & SALES FINANCE
2012 - FEB,CS -Oth Operating Inc & Expend,Trading A/c Surpluses/Deficits,Transport-Contract Hire                 ,J01374,Transport Related Expenditure ,Contract Hire and Op Leasing  ,CC64,Mini Cab Hire for Education,263,928,1/31/2012,R,BARCLAYS ASSET & SALES FINANCE
2012 - FEB,CS -Oth Operating Inc & Expend,Trading A/c Surpluses/Deficits,Transport-Contract Hire                 ,J01374,Transport Related Expenditure ,Contract Hire and Op Leasing  ,CC64,Mini Cab Hire for Education,264,"1,824.00",2/1/2012,R,BARCLAYS ASSET & SALES FINANCE
2012 - FEB,CS -Oth Operating Inc & Expend,Trading A/c Surpluses/Deficits,Transport-Contract Hire                 ,J01374,Transport Related Expenditure ,Contract Hire and Op Leasing  ,CC64,Mini Cab Hire for Education,265,"1,520.00",1/31/2012,R,BARCLAYS ASSET & SALES FINANCE
2012 - FEB,CS -Oth Operating Inc & Expend,Trading A/c Surpluses/Deficits,Transport-Contract Hire                 ,J01374,Transport Related Expenditure ,Contract Hire and Op Leasing  ,CC64,Mini Cab Hire for Education,266,"1,680.00",1/31/2012,R,BARCLAYS ASSET & SALES FINANCE
2012 - FEB,CS -Oth Operating Inc & Expend,Trading A/c Surpluses/Deficits,Transport-Contract Hire                 ,J01374,Transport Related Expenditure ,Contract Hire and Op Leasing  ,CC64,Mini Cab Hire for Education,267,"1,292.00",1/31/2012,R,BARCLAYS ASSET & SALES FINANCE
2012 - FEB,CS -Oth Operating Inc & Expend,Trading A/c Surpluses/Deficits,Transport-Contract Hire                 ,J01374,Transport Related Expenditure ,Contract Hire and Op Leasing  ,CC64,Mini Cab Hire for Education,268,"1,368.00",1/31/2012,R,BARCLAYS ASSET & SALES FINANCE
2012 - FEB,CS -Oth Operating Inc & Expend,Trading A/c Surpluses/Deficits,Transport-Contract Hire                 ,J01374,Transport Related Expenditure ,Contract Hire and Op Leasing  ,CC64,Mini Cab Hire for Education,269,"1,040.00",1/31/2012,R,BARCLAYS ASSET & SALES FINANCE
2012 - FEB,CS -Oth Operating Inc & Expend,Trading A/c Surpluses/Deficits,Transport-Contract Hire                 ,J01374,Transport Related Expenditure ,Contract Hire and Op Leasing  ,CC64,Mini Cab Hire for Education,270,"1,483.00",1/31/2012,R,BARCLAYS ASSET & SALES FINANCE
2012 - FEB,CS -Oth Operating Inc & Expend,Trading A/c Surpluses/Deficits,Transport-Contract Hire                 ,J01374,Transport Related Expenditure ,Contract Hire and Op Leasing  ,CC64,Mini Cab Hire for Education,271,"1,102.00",1/31/2012,R,BARCLAYS ASSET & SALES FINANCE
2012 - FEB,CS -Oth Operating Inc & Expend,Trading A/c Surpluses/Deficits,Transport-Contract Hire                 ,J01374,Transport Related Expenditure ,Contract Hire and Op Leasing  ,CC64,Mini Cab Hire for Education,272,"8,720.00",2/5/2012,R,KINGSTON ACCESSIBILITY TRAN LT
2012 - FEB,CS -Oth Operating Inc & Expend,Trading A/c Surpluses/Deficits,Transport-Contract Hire                 ,J01374,Transport Related Expenditure ,Contract Hire and Op Leasing  ,CC64,Mini Cab Hire for Education,273,"1,032.00",1/31/2012,R,SILVERBURN FINANCE (UK) LTD   
2012 - FEB,CS -Oth Operating Inc & Expend,Trading A/c Surpluses/Deficits,Transport-Contract Hire                 ,J01374,Transport Related Expenditure ,Contract Hire and Op Leasing  ,CC64,Mini Cab Hire for Education,274,595,1/31/2012,R,AERIAL CAR SERVICES LTD       
2012 - FEB,CS -Oth Operating Inc & Expend,Trading A/c Surpluses/Deficits,Transport-Contract Hire                 ,J01374,Transport Related Expenditure ,Contract Hire and Op Leasing  ,CC64,Mini Cab Hire for Education,275,748,1/31/2012,R,AERIAL CAR SERVICES LTD       
2012 - FEB,CS -Oth Operating Inc & Expend,Trading A/c Surpluses/Deficits,Transport-Contract Hire                 ,J01374,Transport Related Expenditure ,Contract Hire and Op Leasing  ,CC64,Mini Cab Hire for Education,276,"1,344.00",1/31/2012,R,NVCAR HIRE LTD                
2012 - FEB,CS -Oth Operating Inc & Expend,Trading A/c Surpluses/Deficits,Transport-Contract Hire                 ,J01374,Transport Related Expenditure ,Contract Hire and Op Leasing  ,CC64,Mini Cab Hire for Education,277,"1,786.00",1/31/2012,R,NVCAR HIRE LTD                
2012 - FEB,CS -Oth Operating Inc & Expend,Trading A/c Surpluses/Deficits,Transport-Contract Hire                 ,J01374,Transport Related Expenditure ,Contract Hire and Op Leasing  ,CC64,Mini Cab Hire for Education,278,"1,140.00",1/31/2012,R,CHEAM STATION CARS            
2012 - FEB,CS -Oth Operating Inc & Expend,Trading A/c Surpluses/Deficits,Transport-Contract Hire                 ,J01374,Transport Related Expenditure ,Contract Hire and Op Leasing  ,CC64,Mini Cab Hire for Education,279,"1,120.00",1/31/2012,R,CHEAM STATION CARS            
2012 - FEB,CS -Oth Operating Inc & Expend,Trading A/c Surpluses/Deficits,Transport-Contract Hire                 ,J01374,Transport Related Expenditure ,Contract Hire and Op Leasing  ,CC64,Mini Cab Hire for Education,280,"1,292.00",1/31/2012,R,BRUNSWICK CARS LTD            
2012 - FEB,CS -Oth Operating Inc & Expend,Trading A/c Surpluses/Deficits,Transport-Contract Hire                 ,J01374,Transport Related Expenditure ,Contract Hire and Op Leasing  ,CC64,Mini Cab Hire for Education,281,855,1/31/2012,R,CAPITAL CARS                  
2012 - FEB,CS -Oth Operating Inc & Expend,Trading A/c Surpluses/Deficits,Transport-Contract Hire                 ,J01374,Transport Related Expenditure ,Contract Hire and Op Leasing  ,CC64,Mini Cab Hire for Education,282,665,1/31/2012,R,CAPITAL CARS                  
2012 - FEB,CS -Oth Operating Inc & Expend,Trading A/c Surpluses/Deficits,Transport-Contract Hire                 ,J01374,Transport Related Expenditure ,Contract Hire and Op Leasing  ,CC64,Mini Cab Hire for Education,283,"2,210.00",1/31/2012,R,CAPITAL CARS                  
2012 - FEB,CS -Oth Operating Inc & Expend,Trading A/c Surpluses/Deficits,Transport-Contract Hire                 ,J01374,Transport Related Expenditure ,Contract Hire and Op Leasing  ,CC64,Mini Cab Hire for Education,284,"1,000.00",1/31/2012,R,CAPITAL CARS                  
2012 - FEB,CS -Oth Operating Inc & Expend,Trading A/c Surpluses/Deficits,Transport-Contract Hire                 ,J01374,Transport Related Expenditure ,Contract Hire and Op Leasing  ,CC64,Mini Cab Hire for Education,285,"1,080.00",1/31/2012,R,CAPITAL CARS                  
2012 - FEB,CS -Oth Operating Inc & Expend,Trading A/c Surpluses/Deficits,Transport-Contract Hire                 ,J01374,Transport Related Expenditure ,Contract Hire and Op Leasing  ,CC64,Mini Cab Hire for Education,286,"8,630.00",2/12/2012,R,KINGSTON ACCESSIBILITY TRAN LT
2012 - FEB,CS -Oth Operating Inc & Expend,Trading A/c Surpluses/Deficits,Transport-Contract Hire                 ,J01374,Transport Related Expenditure ,Contract Hire and Op Leasing  ,CC64,Mini Cab Hire for Education,287,"2,470.00",1/30/2012,R,CALVERTON FACTORS LTD         
2012 - FEB,CS -Oth Operating Inc & Expend,Trading A/c Surpluses/Deficits,Transport-Contract Hire                 ,J01374,Transport Related Expenditure ,Contract Hire and Op Leasing  ,CC64,Mini Cab Hire for Education,288,912,1/31/2012,R,NVCAR HIRE LTD                
2012 - FEB,CS -Oth Operating Inc & Expend,Trading A/c Surpluses/Deficits,Transport-Contract Hire                 ,J01374,Transport Related Expenditure ,Contract Hire and Op Leasing  ,CC64,Mini Cab Hire for Education,289,"1,974.00",1/31/2012,R,OLYMPIC (SOUTH) LIMITED       
2012 - FEB,CS -Oth Operating Inc & Expend,Trading A/c Surpluses/Deficits,Transport-Contract Hire                 ,J01374,Transport Related Expenditure ,Contract Hire and Op Leasing  ,CC64,Mini Cab Hire for Education,290,"2,788.80",1/31/2012,R,OLYMPIC (SOUTH) LIMITED       
2012 - FEB,CS -Oth Operating Inc & Expend,Trading A/c Surpluses/Deficits,Transport-Contract Hire                 ,J01374,Transport Related Expenditure ,Contract Hire and Op Leasing  ,CC64,Mini Cab Hire for Education,291,"1,200.00",1/31/2012,R,OLYMPIC (SOUTH) LIMITED       
2012 - FEB,CS -Oth Operating Inc & Expend,Trading A/c Surpluses/Deficits,Transport-Contract Hire                 ,J01374,Transport Related Expenditure ,Contract Hire and Op Leasing  ,CC64,Mini Cab Hire for Education,292,"1,476.00",1/31/2012,R,OLYMPIC (SOUTH) LIMITED       
2012 - FEB,CS -Oth Operating Inc & Expend,Trading A/c Surpluses/Deficits,Transport-Contract Hire                 ,J01374,Transport Related Expenditure ,Contract Hire and Op Leasing  ,CC64,Mini Cab Hire for Education,293,"1,036.00",1/31/2012,R,OLYMPIC (SOUTH) LIMITED       
2012 - FEB,CS -Oth Operating Inc & Expend,Trading A/c Surpluses/Deficits,Transport-Contract Hire                 ,J01374,Transport Related Expenditure ,Contract Hire and Op Leasing  ,CC64,Mini Cab Hire for Education,294,"1,320.00",1/31/2012,R,OLYMPIC (SOUTH) LIMITED       
2012 - FEB,CS -Oth Operating Inc & Expend,Trading A/c Surpluses/Deficits,Transport-Contract Hire                 ,J01374,Transport Related Expenditure ,Contract Hire and Op Leasing  ,CC64,Mini Cab Hire for Education,295,612,1/31/2012,R,OLYMPIC (SOUTH) LIMITED       
2012 - FEB,CS -Oth Operating Inc & Expend,Trading A/c Surpluses/Deficits,Transport-Contract Hire                 ,J01374,Transport Related Expenditure ,Contract Hire and Op Leasing  ,CC64,Mini Cab Hire for Education,296,"1,754.00",1/31/2012,R,OLYMPIC (SOUTH) LIMITED       
2012 - FEB,CS -Oth Operating Inc & Expend,Trading A/c Surpluses/Deficits,Transport-Contract Hire                 ,J01374,Transport Related Expenditure ,Contract Hire and Op Leasing  ,CC64,Mini Cab Hire for Education,297,"1,536.00",1/31/2012,R,OLYMPIC (SOUTH) LIMITED       
2012 - FEB,CS -Oth Operating Inc & Expend,Trading A/c Surpluses/Deficits,Transport-Contract Hire                 ,J01374,Transport Related Expenditure ,Contract Hire and Op Leasing  ,CC64,Mini Cab Hire for Education,298,"1,430.00",1/31/2012,R,OLYMPIC (SOUTH) LIMITED       
2012 - FEB,CS -Oth Operating Inc & Expend,Trading A/c Surpluses/Deficits,Transport-Contract Hire                 ,J01374,Transport Related Expenditure ,Contract Hire and Op Leasing  ,CC64,Mini Cab Hire for Education,299,800,1/31/2012,R,OLYMPIC (SOUTH) LIMITED       
2012 - FEB,CS -Oth Operating Inc & Expend,Trading A/c Surpluses/Deficits,Transport-Contract Hire                 ,J01374,Transport Related Expenditure ,Contract Hire and Op Leasing  ,CC64,Mini Cab Hire for Education,300,800,1/31/2012,R,OLYMPIC (SOUTH) LIMITED       
2012 - FEB,CS -Oth Operating Inc & Expend,Trading A/c Surpluses/Deficits,Transport-Contract Hire                 ,J01374,Transport Related Expenditure ,Contract Hire and Op Leasing  ,CC64,Mini Cab Hire for Education,301,840,1/31/2012,R,OLYMPIC (SOUTH) LIMITED       
2012 - FEB,CS -Oth Operating Inc & Expend,Trading A/c Surpluses/Deficits,Transport-Contract Hire                 ,J01374,Transport Related Expenditure ,Contract Hire and Op Leasing  ,CC64,Mini Cab Hire for Education,302,684,1/31/2012,R,OLYMPIC (SOUTH) LIMITED       
2012 - FEB,CS -Oth Operating Inc & Expend,Trading A/c Surpluses/Deficits,Transport-Contract Hire                 ,J01374,Transport Related Expenditure ,Contract Hire and Op Leasing  ,CC64,Mini Cab Hire for Education,303,"1,388.80",1/31/2012,R,OLYMPIC (SOUTH) LIMITED       
2012 - FEB,CS -Oth Operating Inc & Expend,Trading A/c Surpluses/Deficits,Transport-Contract Hire                 ,J01374,Transport Related Expenditure ,Contract Hire and Op Leasing  ,CC64,Mini Cab Hire for Education,304,720,1/31/2012,R,OLYMPIC (SOUTH) LIMITED       
2012 - FEB,CS -Oth Operating Inc & Expend,Trading A/c Surpluses/Deficits,Transport-Contract Hire                 ,J01374,Transport Related Expenditure ,Contract Hire and Op Leasing  ,CC64,Mini Cab Hire for Education,305,"2,320.00",1/31/2012,R,BARCLAYS ASSET & SALES FINANCE
2012 - FEB,CS -Oth Operating Inc & Expend,Trading A/c Surpluses/Deficits,Transport-Contract Hire                 ,J01374,Transport Related Expenditure ,Contract Hire and Op Leasing  ,CC64,Mini Cab Hire for Education,306,580,2/1/2012,R,SHERWOOD TRANSPORT GROUP      
2012 - FEB,CS -Oth Operating Inc & Expend,Trading A/c Surpluses/Deficits,Transport-Contract Hire                 ,J01374,Transport Related Expenditure ,Contract Hire and Op Leasing  ,CC64,Mini Cab Hire for Education,307,"3,021.00",2/1/2012,R,SHERWOOD TRANSPORT GROUP      
2012 - FEB,CS -Oth Operating Inc & Expend,Trading A/c Surpluses/Deficits,Transport-Contract Hire                 ,J01374,Transport Related Expenditure ,Contract Hire and Op Leasing  ,CC64,Mini Cab Hire for Education,308,908.6,2/1/2012,R,SHERWOOD TRANSPORT GROUP      
2012 - FEB,CS -Oth Operating Inc & Expend,Trading A/c Surpluses/Deficits,Transport-Contract Hire                 ,J01374,Transport Related Expenditure ,Contract Hire and Op Leasing  ,CC64,Mini Cab Hire for Education,309,"1,362.90",2/1/2012,R,SHERWOOD TRANSPORT GROUP      
2012 - FEB,CS -Oth Operating Inc & Expend,Trading A/c Surpluses/Deficits,Transport-Contract Hire                 ,J01374,Transport Related Expenditure ,Contract Hire and Op Leasing  ,CC64,Mini Cab Hire for Education,310,"2,123.80",2/1/2012,R,SHERWOOD TRANSPORT GROUP      
2012 - FEB,CS -Oth Operating Inc & Expend,Trading A/c Surpluses/Deficits,Transport-Contract Hire                 ,J01374,Transport Related Expenditure ,Contract Hire and Op Leasing  ,CC64,Mini Cab Hire for Education,311,880,2/1/2012,R,SHERWOOD TRANSPORT GROUP      
2012 - FEB,CS -Oth Operating Inc & Expend,Trading A/c Surpluses/Deficits,Transport-Contract Hire                 ,J01374,Transport Related Expenditure ,Contract Hire and Op Leasing  ,CC64,Mini Cab Hire for Education,312,935,2/1/2012,R,SHERWOOD TRANSPORT GROUP      
2012 - FEB,CS -Oth Operating Inc & Expend,Trading A/c Surpluses/Deficits,Transport-Contract Hire                 ,J01374,Transport Related Expenditure ,Contract Hire and Op Leasing  ,CC64,Mini Cab Hire for Education,313,"1,820.00",2/1/2012,R,SHERWOOD TRANSPORT GROUP      
2012 - FEB,CS -Oth Operating Inc & Expend,Trading A/c Surpluses/Deficits,Transport-Contract Hire                 ,J01374,Transport Related Expenditure ,Contract Hire and Op Leasing  ,CC64,Mini Cab Hire for Education,314,"1,330.00",2/1/2012,R,SHERWOOD TRANSPORT GROUP      
2012 - FEB,CS -Oth Operating Inc & Expend,Trading A/c Surpluses/Deficits,Transport-Contract Hire                 ,J01374,Transport Related Expenditure ,Contract Hire and Op Leasing  ,CC64,Mini Cab Hire for Education,315,720,1/31/2012,R,GALPINS SERVICE               
2012 - FEB,CS -Oth Operating Inc & Expend,Trading A/c Surpluses/Deficits,Transport-Contract Hire                 ,J01374,Transport Related Expenditure ,Contract Hire and Op Leasing  ,CC64,Mini Cab Hire for Education,316,"1,638.00",1/31/2012,R,GALPINS SERVICE               
2012 - FEB,CS -Oth Operating Inc & Expend,Trading A/c Surpluses/Deficits,Transport-Contract Hire                 ,J01374,Transport Related Expenditure ,Contract Hire and Op Leasing  ,CC64,Mini Cab Hire for Education,317,851,1/31/2012,R,CAPITAL CARS                  
2012 - FEB,CS -Oth Operating Inc & Expend,Trading A/c Surpluses/Deficits,Transport-Contract Hire                 ,J01374,Transport Related Expenditure ,Contract Hire and Op Leasing  ,CC65,Vehicle Hire for Education,318,"3,724.00",1/31/2012,R,BARCLAYS ASSET & SALES FINANCE
2012 - FEB,CS -Oth Operating Inc & Expend,Trading A/c Surpluses/Deficits,Transport-Contract Hire                 ,J01374,Transport Related Expenditure ,Contract Hire and Op Leasing  ,CC65,Vehicle Hire for Education,319,"2,890.00",1/31/2012,R,BARCLAYS ASSET & SALES FINANCE
2012 - FEB,CS -Oth Operating Inc & Expend,Trading A/c Surpluses/Deficits,Transport-Contract Hire                 ,J01374,Transport Related Expenditure ,Contract Hire and Op Leasing  ,CC65,Vehicle Hire for Education,320,"2,781.00",1/31/2012,R,BARCLAYS ASSET & SALES FINANCE
2012 - FEB,CS -Oth Operating Inc & Expend,Trading A/c Surpluses/Deficits,Transport-Contract Hire                 ,J01374,Transport Related Expenditure ,Contract Hire and Op Leasing  ,CC65,Vehicle Hire for Education,321,630,1/31/2012,R,BARCLAYS ASSET & SALES FINANCE
2012 - FEB,CS -Oth Operating Inc & Expend,Trading A/c Surpluses/Deficits,Transport-Contract Hire                 ,J01374,Transport Related Expenditure ,Contract Hire and Op Leasing  ,CC65,Vehicle Hire for Education,322,665,1/31/2012,R,BARCLAYS ASSET & SALES FINANCE
2012 - FEB,CS -Oth Operating Inc & Expend,Trading A/c Surpluses/Deficits,Transport-Contract Hire                 ,J01374,Transport Related Expenditure ,Contract Hire and Op Leasing  ,CC66,Mini Cab Hire -Soc Serv -Child,323,"1,148.00",1/29/2012,R,KINGSTON ACCESSIBILITY TRAN LT
2012 - FEB,CS -Oth Operating Inc & Expend,Trading A/c Surpluses/Deficits,Transport-Contract Hire                 ,J01374,Transport Related Expenditure ,Contract Hire and Op Leasing  ,CC66,Mini Cab Hire -Soc Serv -Child,324,560,1/31/2012,R,BARCLAYS ASSET & SALES FINANCE
2012 - FEB,CS -Oth Operating Inc & Expend,Trading A/c Surpluses/Deficits,Transport-Contract Hire                 ,J01374,Transport Related Expenditure ,Contract Hire and Op Leasing  ,CC66,Mini Cab Hire -Soc Serv -Child,325,"1,148.00",2/5/2012,R,KINGSTON ACCESSIBILITY TRAN LT
2012 - FEB,CS -Oth Operating Inc & Expend,Trading A/c Surpluses/Deficits,Transport-Contract Hire                 ,J01374,Transport Related Expenditure ,Contract Hire and Op Leasing  ,CC66,Mini Cab Hire -Soc Serv -Child,326,630,1/31/2012,R,CHEAM STATION CARS            
2012 - FEB,CS -Oth Operating Inc & Expend,Trading A/c Surpluses/Deficits,Transport-Contract Hire                 ,J01374,Transport Related Expenditure ,Contract Hire and Op Leasing  ,CC66,Mini Cab Hire -Soc Serv -Child,327,"1,000.00",1/31/2012,R,CHEAM STATION CARS            
2012 - FEB,CS -Oth Operating Inc & Expend,Trading A/c Surpluses/Deficits,Transport-Contract Hire                 ,J01374,Transport Related Expenditure ,Contract Hire and Op Leasing  ,CC66,Mini Cab Hire -Soc Serv -Child,328,"1,103.00",2/12/2012,R,KINGSTON ACCESSIBILITY TRAN LT
2012 - FEB,CS -Oth Operating Inc & Expend,Trading A/c Surpluses/Deficits,Transport-Contract Hire                 ,J01374,Transport Related Expenditure ,Contract Hire and Op Leasing  ,CC66,Mini Cab Hire -Soc Serv -Child,329,"1,960.00",1/30/2012,R,CALVERTON FACTORS LTD         
2012 - FEB,CS -Oth Operating Inc & Expend,Trading A/c Surpluses/Deficits,Transport-Contract Hire                 ,J01374,Transport Related Expenditure ,Contract Hire and Op Leasing  ,CC67,Mini Cab Hire -Soc Serv -Adult,330,"1,283.00",1/29/2012,R,KINGSTON ACCESSIBILITY TRAN LT
2012 - FEB,CS -Oth Operating Inc & Expend,Trading A/c Surpluses/Deficits,Transport-Contract Hire                 ,J01374,Transport Related Expenditure ,Contract Hire and Op Leasing  ,CC67,Mini Cab Hire -Soc Serv -Adult,331,"1,008.00",1/31/2012,R,BARCLAYS ASSET & SALES FINANCE
2012 - FEB,CS -Oth Operating Inc & Expend,Trading A/c Surpluses/Deficits,Transport-Contract Hire                 ,J01374,Transport Related Expenditure ,Contract Hire and Op Leasing  ,CC67,Mini Cab Hire -Soc Serv -Adult,332,"1,244.00",1/31/2012,R,BARCLAYS ASSET & SALES FINANCE
2012 - FEB,CS -Oth Operating Inc & Expend,Trading A/c Surpluses/Deficits,Transport-Contract Hire                 ,J01374,Transport Related Expenditure ,Contract Hire and Op Leasing  ,CC67,Mini Cab Hire -Soc Serv -Adult,333,896,1/31/2012,R,BARCLAYS ASSET & SALES FINANCE
2012 - FEB,CS -Oth Operating Inc & Expend,Trading A/c Surpluses/Deficits,Transport-Contract Hire                 ,J01374,Transport Related Expenditure ,Contract Hire and Op Leasing  ,CC67,Mini Cab Hire -Soc Serv -Adult,334,"1,979.00",1/31/2012,R,BARCLAYS ASSET & SALES FINANCE
2012 - FEB,CS -Oth Operating Inc & Expend,Trading A/c Surpluses/Deficits,Transport-Contract Hire                 ,J01374,Transport Related Expenditure ,Contract Hire and Op Leasing  ,CC67,Mini Cab Hire -Soc Serv -Adult,335,576,1/31/2012,R,BARCLAYS ASSET & SALES FINANCE
2012 - FEB,CS -Oth Operating Inc & Expend,Trading A/c Surpluses/Deficits,Transport-Contract Hire                 ,J01374,Transport Related Expenditure ,Contract Hire and Op Leasing  ,CC67,Mini Cab Hire -Soc Serv -Adult,336,"1,300.00",1/31/2012,R,BARCLAYS ASSET & SALES FINANCE
2012 - FEB,CS -Oth Operating Inc & Expend,Trading A/c Surpluses/Deficits,Transport-Contract Hire                 ,J01374,Transport Related Expenditure ,Contract Hire and Op Leasing  ,CC67,Mini Cab Hire -Soc Serv -Adult,337,696,1/31/2012,R,BARCLAYS ASSET & SALES FINANCE
2012 - FEB,CS -Oth Operating Inc & Expend,Trading A/c Surpluses/Deficits,Transport-Contract Hire                 ,J01374,Transport Related Expenditure ,Contract Hire and Op Leasing  ,CC67,Mini Cab Hire -Soc Serv -Adult,338,696,1/31/2012,R,BARCLAYS ASSET & SALES FINANCE
2012 - FEB,CS -Oth Operating Inc & Expend,Trading A/c Surpluses/Deficits,Transport-Contract Hire                 ,J01374,Transport Related Expenditure ,Contract Hire and Op Leasing  ,CC67,Mini Cab Hire -Soc Serv -Adult,339,"1,596.00",1/31/2012,R,BARCLAYS ASSET & SALES FINANCE
2012 - FEB,CS -Oth Operating Inc & Expend,Trading A/c Surpluses/Deficits,Transport-Contract Hire                 ,J01374,Transport Related Expenditure ,Contract Hire and Op Leasing  ,CC67,Mini Cab Hire -Soc Serv -Adult,340,560,1/31/2012,R,BARCLAYS ASSET & SALES FINANCE
2012 - FEB,CS -Oth Operating Inc & Expend,Trading A/c Surpluses/Deficits,Transport-Contract Hire                 ,J01374,Transport Related Expenditure ,Contract Hire and Op Leasing  ,CC67,Mini Cab Hire -Soc Serv -Adult,341,"1,008.00",1/31/2012,R,BARCLAYS ASSET & SALES FINANCE
2012 - FEB,CS -Oth Operating Inc & Expend,Trading A/c Surpluses/Deficits,Transport-Contract Hire                 ,J01374,Transport Related Expenditure ,Contract Hire and Op Leasing  ,CC67,Mini Cab Hire -Soc Serv -Adult,342,525.5,1/31/2012,R,BARCLAYS ASSET & SALES FINANCE
2012 - FEB,CS -Oth Operating Inc & Expend,Trading A/c Surpluses/Deficits,Transport-Contract Hire                 ,J01374,Transport Related Expenditure ,Contract Hire and Op Leasing  ,CC67,Mini Cab Hire -Soc Serv -Adult,343,"1,128.00",2/5/2012,R,KINGSTON ACCESSIBILITY TRAN LT
2012 - FEB,CS -Oth Operating Inc & Expend,Trading A/c Surpluses/Deficits,Transport-Contract Hire                 ,J01374,Transport Related Expenditure ,Contract Hire and Op Leasing  ,CC67,Mini Cab Hire -Soc Serv -Adult,344,974.26,1/31/2012,R,SILVERBURN FINANCE (UK) LTD   
2012 - FEB,CS -Oth Operating Inc & Expend,Trading A/c Surpluses/Deficits,Transport-Contract Hire                 ,J01374,Transport Related Expenditure ,Contract Hire and Op Leasing  ,CC67,Mini Cab Hire -Soc Serv -Adult,345,851,1/31/2012,R,AERIAL CAR SERVICES LTD       
2012 - FEB,CS -Oth Operating Inc & Expend,Trading A/c Surpluses/Deficits,Transport-Contract Hire                 ,J01374,Transport Related Expenditure ,Contract Hire and Op Leasing  ,CC67,Mini Cab Hire -Soc Serv -Adult,346,840,1/31/2012,R,AERIAL CAR SERVICES LTD       
2012 - FEB,CS -Oth Operating Inc & Expend,Trading A/c Surpluses/Deficits,Transport-Contract Hire                 ,J01374,Transport Related Expenditure ,Contract Hire and Op Leasing  ,CC67,Mini Cab Hire -Soc Serv -Adult,347,"1,320.00",1/31/2012,R,NVCAR HIRE LTD                
2012 - FEB,CS -Oth Operating Inc & Expend,Trading A/c Surpluses/Deficits,Transport-Contract Hire                 ,J01374,Transport Related Expenditure ,Contract Hire and Op Leasing  ,CC67,Mini Cab Hire -Soc Serv -Adult,348,882,1/31/2012,R,CAPITAL CARS                  
2012 - FEB,CS -Oth Operating Inc & Expend,Trading A/c Surpluses/Deficits,Transport-Contract Hire                 ,J01374,Transport Related Expenditure ,Contract Hire and Op Leasing  ,CC67,Mini Cab Hire -Soc Serv -Adult,349,"1,138.00",1/31/2012,R,CAPITAL CARS                  
2012 - FEB,CS -Oth Operating Inc & Expend,Trading A/c Surpluses/Deficits,Transport-Contract Hire                 ,J01374,Transport Related Expenditure ,Contract Hire and Op Leasing  ,CC67,Mini Cab Hire -Soc Serv -Adult,350,"1,146.00",2/12/2012,R,KINGSTON ACCESSIBILITY TRAN LT
2012 - FEB,CS -Oth Operating Inc & Expend,Trading A/c Surpluses/Deficits,Transport-Contract Hire                 ,J01374,Transport Related Expenditure ,Contract Hire and Op Leasing  ,CC68,Vehicle Hire Special Projects,351,"1,632.00",1/29/2012,R,KINGSTON ACCESSIBILITY TRAN LT
2012 - FEB,CS -Oth Operating Inc & Expend,Trading A/c Surpluses/Deficits,Transport-Contract Hire                 ,J01374,Transport Related Expenditure ,Contract Hire and Op Leasing  ,CC68,Vehicle Hire Special Projects,352,"1,344.00",2/1/2012,R,BARCLAYS ASSET & SALES FINANCE
2012 - FEB,CS -Oth Operating Inc & Expend,Trading A/c Surpluses/Deficits,Transport-Contract Hire                 ,J01374,Transport Related Expenditure ,Contract Hire and Op Leasing  ,CC68,Vehicle Hire Special Projects,353,"2,809.24",1/31/2012,R,BARCLAYS ASSET & SALES FINANCE
2012 - FEB,CS -Oth Operating Inc & Expend,Trading A/c Surpluses/Deficits,Transport-Contract Hire                 ,J01374,Transport Related Expenditure ,Contract Hire and Op Leasing  ,CC68,Vehicle Hire Special Projects,354,"2,734.00",1/31/2012,R,BARCLAYS ASSET & SALES FINANCE
2012 - FEB,CS -Oth Operating Inc & Expend,Trading A/c Surpluses/Deficits,Transport-Contract Hire                 ,J01374,Transport Related Expenditure ,Contract Hire and Op Leasing  ,CC68,Vehicle Hire Special Projects,355,"1,071.00",1/31/2012,R,BARCLAYS ASSET & SALES FINANCE
2012 - FEB,CS -Oth Operating Inc & Expend,Trading A/c Surpluses/Deficits,Transport-Contract Hire                 ,J01374,Transport Related Expenditure ,Contract Hire and Op Leasing  ,CC68,Vehicle Hire Special Projects,356,"1,764.00",1/31/2012,R,BARCLAYS ASSET & SALES FINANCE
2012 - FEB,CS -Oth Operating Inc & Expend,Trading A/c Surpluses/Deficits,Transport-Contract Hire                 ,J01374,Transport Related Expenditure ,Contract Hire and Op Leasing  ,CC68,Vehicle Hire Special Projects,357,"1,216.00",1/31/2012,R,BARCLAYS ASSET & SALES FINANCE
2012 - FEB,CS -Oth Operating Inc & Expend,Trading A/c Surpluses/Deficits,Transport-Contract Hire                 ,J01374,Transport Related Expenditure ,Contract Hire and Op Leasing  ,CC68,Vehicle Hire Special Projects,358,"2,481.75",1/31/2012,R,BARCLAYS ASSET & SALES FINANCE
2012 - FEB,CS -Oth Operating Inc & Expend,Trading A/c Surpluses/Deficits,Transport-Contract Hire                 ,J01374,Transport Related Expenditure ,Contract Hire and Op Leasing  ,CC68,Vehicle Hire Special Projects,359,"1,632.00",2/5/2012,R,KINGSTON ACCESSIBILITY TRAN LT
2012 - FEB,CS -Oth Operating Inc & Expend,Trading A/c Surpluses/Deficits,Transport-Contract Hire                 ,J01374,Transport Related Expenditure ,Contract Hire and Op Leasing  ,CC68,Vehicle Hire Special Projects,360,"1,632.00",2/12/2012,R,KINGSTON ACCESSIBILITY TRAN LT
2012 - FEB,CS -Oth Operating Inc & Expend,Trading A/c Surpluses/Deficits,Transport-Contract Hire                 ,J01374,Transport Related Expenditure ,Contract Hire and Op Leasing  ,CC68,Vehicle Hire Special Projects,361,627,1/31/2012,R,GALPINS SERVICE               
2012 - FEB,CS -Oth Operating Inc & Expend,Trading A/c Surpluses/Deficits,Transport-Contract Hire                 ,J01374,Transport Related Expenditure ,Contract Hire and Op Leasing  ,CC68,Vehicle Hire Special Projects,362,960,1/31/2012,R,GALPINS SERVICE               
2012 - FEB,CS -Oth Operating Inc & Expend,Trading A/c Surpluses/Deficits,Transport-Contract Hire                 ,J01374,Supplies & Services           ,Equip Furniture/Materials     ,DA01,Equipment - R & M,363,562.5,1/28/2012,R,SUNLIGHT SERVICE GROUP LTD    
2012 - FEB,CS -Oth Operating Inc & Expend,Trading A/c Surpluses/Deficits,Transport-Contract Hire                 ,J01374,Supplies & Services           ,Equip Furniture/Materials     ,DA01,Equipment - R & M,364,695.86,1/31/2012,R,V L TEST SYSTEMS LTD          
2012 - FEB,CS -Oth Operating Inc & Expend,Trading A/c Surpluses/Deficits,Transport-Contract Hire                 ,J01374,Supplies & Services           ,Equip Furniture/Materials     ,DA09,Equip-Purchases,365,629.32,2/1/2012,R,C.N. UNWIN LTD                
2012 - FEB,CS -Oth Operating Inc & Expend,Trading A/c Surpluses/Deficits,Transport-Contract Hire                 ,J01374,Supplies & Services           ,Equip Furniture/Materials     ,DA09,Equip-Purchases,366,782.44,1/24/2012,R,BOND MAILROOM LTD             
2012 - FEB,CS -Oth Operating Inc & Expend,Trading A/c Surpluses/Deficits,Transport-Workshop                      ,J01376,Premises Related Expenditure  ,RepairsAlterations&MtceOfBldgs,BA29,Build Maint Mgt Fees,367,"1,153.62",9/30/2011,R,COFELY LIMITED                
2012 - FEB,CS -Oth Operating Inc & Expend,Trading A/c Surpluses/Deficits,Transport-Workshop                      ,J01376,Premises Related Expenditure  ,Energy Costs                  ,BB03,Gas (incl. Butane),368,605.2,1/9/2012,R,KENT COUNTY COUNCIL           
2012 - FEB,CS -Oth Operating Inc & Expend,Trading A/c Surpluses/Deficits,Transport-Workshop                      ,J01376,Premises Related Expenditure  ,Energy Costs                  ,BB03,Gas (incl. Butane),369,732.14,1/9/2012,R,KENT COUNTY COUNCIL           
2012 - FEB,CS -Oth Operating Inc & Expend,Trading A/c Surpluses/Deficits,Transport-Workshop                      ,J01376,Transport Related Expenditure ,Direct Transport Costs        ,CA02,Tyres,370,"1,230.00",1/24/2012,R,MORDEN TYRE SERVICES LTD      
2012 - FEB,CS -Oth Operating Inc & Expend,Trading A/c Surpluses/Deficits,Transport-Workshop                      ,J01376,Transport Related Expenditure ,Direct Transport Costs        ,CA02,Tyres,371,705,2/3/2012,R,MORDEN TYRE SERVICES LTD      
2012 - FEB,CS -Oth Operating Inc & Expend,Trading A/c Surpluses/Deficits,Transport-Workshop                      ,J01376,Transport Related Expenditure ,Direct Transport Costs        ,CA02,Tyres,372,500,2/3/2012,R,MORDEN TYRE SERVICES LTD      
2012 - FEB,CS -Oth Operating Inc & Expend,Trading A/c Surpluses/Deficits,Transport-Workshop                      ,J01376,Transport Related Expenditure ,Direct Transport Costs        ,CA55,Specialist Maint. (Off Site),373,953.53,1/31/2012,R,FLEETSPEED COACHWORKS LTD.    
2012 - FEB,CS -Oth Operating Inc & Expend,Trading A/c Surpluses/Deficits,Transport-Workshop                      ,J01376,Transport Related Expenditure ,Direct Transport Costs        ,CA55,Specialist Maint. (Off Site),374,835.5,2/1/2012,R,GREEN MACHINES                
2012 - FEB,CS -Oth Operating Inc & Expend,Trading A/c Surpluses/Deficits,Transport-Workshop                      ,J01376,Transport Related Expenditure ,Direct Transport Costs        ,CA56,Specialist Maint. (On Site),375,825,1/24/2012,R,R.J.H.WELDING                 
2012 - FEB,CS -Oth Operating Inc & Expend,Trading A/c Surpluses/Deficits,Transport-Workshop                      ,J01376,Transport Related Expenditure ,Direct Transport Costs        ,CA56,Specialist Maint. (On Site),376,"1,105.08",2/1/2012,R,R.J.H.WELDING                 
2012 - FEB,CS -Oth Operating Inc & Expend,Trading A/c Surpluses/Deficits,Transport-Workshop                      ,J01376,Transport Related Expenditure ,Direct Transport Costs        ,CA56,Specialist Maint. (On Site),377,917.58,2/1/2012,R,R.J.H.WELDING                 
2012 - FEB,CS -Oth Operating Inc & Expend,Trading A/c Surpluses/Deficits,Transport-Workshop                      ,J01376,Transport Related Expenditure ,Direct Transport Costs        ,CA72,Vehicle Parts,378,608.64,1/23/2012,R,COMMERCIAL & PLANT LTD        
2012 - FEB,CS -Oth Operating Inc & Expend,Trading A/c Surpluses/Deficits,Transport-Workshop                      ,J01376,Transport Related Expenditure ,Direct Transport Costs        ,CA72,Vehicle Parts,379,851.73,1/24/2012,R,R.J.H.WELDING                 
2012 - FEB,CS -Oth Operating Inc & Expend,Trading A/c Surpluses/Deficits,Transport-Workshop                      ,J01376,Transport Related Expenditure ,Direct Transport Costs        ,CA72,Vehicle Parts,380,"4,106.90",1/19/2012,R,OPTIMUM OILS LTD              
2012 - FEB,CS -Oth Operating Inc & Expend,Trading A/c Surpluses/Deficits,Transport-Workshop                      ,J01376,Transport Related Expenditure ,Direct Transport Costs        ,CA72,Vehicle Parts,381,632.1,1/30/2012,R,COMMERCIAL & PLANT LTD        
2012 - FEB,CS -Oth Operating Inc & Expend,Trading A/c Surpluses/Deficits,Transport-Workshop                      ,J01376,Transport Related Expenditure ,Direct Transport Costs        ,CA72,Vehicle Parts,382,583.16,1/23/2012,R,DENNIS EAGLE LIMITED          
2012 - FEB,CS -Oth Operating Inc & Expend,Trading A/c Surpluses/Deficits,Transport-Workshop                      ,J01376,Transport Related Expenditure ,Direct Transport Costs        ,CA72,Vehicle Parts,383,739.83,1/27/2012,R,GEESINK NORBA                 
2012 - FEB,CS -Oth Operating Inc & Expend,Trading A/c Surpluses/Deficits,Transport-Workshop                      ,J01376,Transport Related Expenditure ,Direct Transport Costs        ,CA72,Vehicle Parts,384,"1,163.06",1/31/2012,R,GEESINK NORBA                 
2012 - FEB,CS -Oth Operating Inc & Expend,Trading A/c Surpluses/Deficits,Transport-Workshop                      ,J01376,Transport Related Expenditure ,Direct Transport Costs        ,CA72,Vehicle Parts,385,808.17,2/8/2012,R,GEESINK NORBA                 
2012 - FEB,CS -Oth Operating Inc & Expend,Trading A/c Surpluses/Deficits,Transport-Workshop                      ,J01376,Transport Related Expenditure ,Direct Transport Costs        ,CA72,Vehicle Parts,386,763.5,2/8/2012,R,SCANIA(GREAT BRITAIN)LIMITED  
2012 - FEB,CS -Oth Operating Inc & Expend,Trading A/c Surpluses/Deficits,Transport-Workshop                      ,J01376,Transport Related Expenditure ,Direct Transport Costs        ,CA72,Vehicle Parts,387,998.06,2/13/2012,R,GRAYS TRUCK CENTRE LIMITED    
2012 - FEB,CS -Oth Operating Inc & Expend,Trading A/c Surpluses/Deficits,Transport-Workshop                      ,J01376,Transport Related Expenditure ,Contract Hire and Op Leasing  ,CC57,Plant Hire for Housing,388,702,1/22/2012,R,KENT COUNTY COUNCIL           
2012 - FEB,CS -Oth Operating Inc & Expend,Trading A/c Surpluses/Deficits,Transport-Workshop                      ,J01376,Transport Related Expenditure ,Contract Hire and Op Leasing  ,CC60,Vehicle Hire for LB Sutton,389,"2,064.00",1/31/2012,R,BRUNSWICK CARS LTD            
2012 - FEB,CS -Oth Operating Inc & Expend,Trading A/c Surpluses/Deficits,Transport-Workshop                      ,J01376,Transport Related Expenditure ,Contract Hire and Op Leasing  ,CC60,Vehicle Hire for LB Sutton,390,"1,800.00",1/30/2012,R,CALVERTON FACTORS LTD         
2012 - FEB,CS -Oth Operating Inc & Expend,Trading A/c Surpluses/Deficits,Transport-Workshop                      ,J01376,Transport Related Expenditure ,Contract Hire and Op Leasing  ,CC60,Vehicle Hire for LB Sutton,391,"1,520.00",1/30/2012,R,CALVERTON FACTORS LTD         
2012 - FEB,CS -Oth Operating Inc & Expend,Trading A/c Surpluses/Deficits,Transport-Workshop                      ,J01376,Transport Related Expenditure ,Contract Hire and Op Leasing  ,CC60,Vehicle Hire for LB Sutton,392,"1,080.00",1/30/2012,R,CALVERTON FACTORS LTD         
2012 - FEB,CS -Oth Operating Inc & Expend,Trading A/c Surpluses/Deficits,Transport-Workshop                      ,J01376,Transport Related Expenditure ,Contract Hire and Op Leasing  ,CC60,Vehicle Hire for LB Sutton,393,"2,055.00",1/30/2012,R,CALVERTON FACTORS LTD         
2012 - FEB,CS -Oth Operating Inc & Expend,Trading A/c Surpluses/Deficits,Transport-Workshop                      ,J01376,Transport Related Expenditure ,Contract Hire and Op Leasing  ,CC60,Vehicle Hire for LB Sutton,394,964.5,1/30/2012,R,CALVERTON FACTORS LTD         
2012 - FEB,CS -Oth Operating Inc & Expend,Trading A/c Surpluses/Deficits,Transport-Workshop                      ,J01376,Transport Related Expenditure ,Contract Hire and Op Leasing  ,CC60,Vehicle Hire for LB Sutton,395,545,2/1/2012,R,KENDALL CARS                  
2012 - FEB,CS -Oth Operating Inc & Expend,Trading A/c Surpluses/Deficits,Transport-Workshop                      ,J01376,Transport Related Expenditure ,Contract Hire and Op Leasing  ,CC60,Vehicle Hire for LB Sutton,396,"1,170.00",2/1/2012,R,KENDALL CARS                  
2012 - FEB,CS -Oth Operating Inc & Expend,Trading A/c Surpluses/Deficits,Transport-Workshop                      ,J01376,Transport Related Expenditure ,Contract Hire and Op Leasing  ,CC64,Mini Cab Hire for Education,397,"1,034.22",1/4/2012,R,DAWSON RENTALS BUS AND COACH  
2012 - FEB,CS -Oth Operating Inc & Expend,Trading A/c Surpluses/Deficits,Transport-Workshop                      ,J01376,Transport Related Expenditure ,Contract Hire and Op Leasing  ,CC64,Mini Cab Hire for Education,398,"1,034.21",1/4/2012,R,DAWSON RENTALS BUS AND COACH  
2012 - FEB,CS -Oth Operating Inc & Expend,Trading A/c Surpluses/Deficits,Transport-Workshop                      ,J01376,Transport Related Expenditure ,Contract Hire and Op Leasing  ,CC64,Mini Cab Hire for Education,399,"1,376.00",1/31/2012,R,BRUNSWICK CARS LTD            
2012 - FEB,CS -Oth Operating Inc & Expend,Trading A/c Surpluses/Deficits,Transport-Workshop                      ,J01376,Transport Related Expenditure ,Contract Hire and Op Leasing  ,CC65,Vehicle Hire for Education,400,"9,168.00",1/26/2012,R,KENT COUNTY COUNCIL           
2012 - FEB,CS -Oth Operating Inc & Expend,Trading A/c Surpluses/Deficits,Transport-Workshop                      ,J01376,Transport Related Expenditure ,Contract Hire and Op Leasing  ,CC65,Vehicle Hire for Education,401,"1,407.00",1/31/2012,R,BURNT TREE VEHICLE RENTAL     
2012 - FEB,CS -Oth Operating Inc & Expend,Trading A/c Surpluses/Deficits,Transport-Workshop                      ,J01376,Transport Related Expenditure ,Contract Hire and Op Leasing  ,CC65,Vehicle Hire for Education,402,"1,407.00",1/31/2012,R,BURNT TREE VEHICLE RENTAL     
2012 - FEB,CS -Oth Operating Inc & Expend,Trading A/c Surpluses/Deficits,Transport-Workshop                      ,J01376,Transport Related Expenditure ,Contract Hire and Op Leasing  ,CC65,Vehicle Hire for Education,403,"1,407.00",1/31/2012,R,BURNT TREE VEHICLE RENTAL     
2012 - FEB,CS -Oth Operating Inc & Expend,Trading A/c Surpluses/Deficits,Transport-Workshop                      ,J01376,Transport Related Expenditure ,Contract Hire and Op Leasing  ,CC65,Vehicle Hire for Education,404,"1,785.00",1/31/2012,R,REDACTED
2012 - FEB,CS -Oth Operating Inc & Expend,INVESTMENT PROPERTIES,Other Misc Props Budget                 ,J01526,Premises Related Expenditure  ,Energy Costs                  ,BB03,Gas (incl. Butane),405,"1,369.00",1/10/2012,R,SOUTHERN ELECTRIC             
2012 - FEB,CS -Oth Operating Inc & Expend,INVESTMENT PROPERTIES,Durnsford Rd Budget                     ,J01580,Premises Related Expenditure  ,RepairsAlterations&MtceOfBldgs,BA79,Security of Premises,406,"1,040.00",12/31/2011,R,OM METROPOLITAN TOTAL SEC.LTD 
2012 - FEB,CS -Oth Operating Inc & Expend,INVESTMENT PROPERTIES,Durnsford Rd Budget                     ,J01580,Premises Related Expenditure  ,RepairsAlterations&MtceOfBldgs,BA79,Security of Premises,407,"1,014.00",2/1/2012,R,OM METROPOLITAN TOTAL SEC.LTD 
2012 - FEB,CS -Oth Operating Inc & Expend,INVESTMENT PROPERTIES,Community Centres Unlocated             ,J08070,Premises Related Expenditure  ,Energy Costs                  ,BB03,Gas (incl. Butane),408,"1,853.41",1/25/2012,R,FLOGAS CO UK                  
2012 - FEB,CS -Oth Operating Inc & Expend,INVESTMENT PROPERTIES,Pollards Hill Comm Cntre                ,J08074,Premises Related Expenditure  ,RepairsAlterations&MtceOfBldgs,BA03,DDM - Mechanical,409,636.36,2/2/2012,R,COFELY LIMITED                
2012 - FEB,Childrens & Education Services,Assuring Access To Schools,Stouthall                               ,K09082,Premises Related Expenditure  ,Ground Maintenance Costs      ,BL03,Maintenance of Grounds,410,555,1/21/2012,R,PAUL WHITEHEAD CONTRACTORS LTD
2012 - FEB,Cultural Env Reg&Plan Services,SMSS (Cult),Leisure Developmt Manager               ,P04061,Supplies & Services           ,Expenses                      ,DH50,Special Projects,411,"2,000.00",2/15/2012,R,ATTIC THEATRE COMPANY         
2012 - FEB,Cultural Env Reg&Plan Services,Open Spaces,"Pks,Rec Grds (Unloc)                    ",P05005,Premises Related Expenditure  ,Ground Maintenance Costs      ,BL03,Maintenance of Grounds,412,"4,245.00",12/2/2011,R,TREES INC                     
2012 - FEB,Cultural Env Reg&Plan Services,Open Spaces,"Pks,Rec Grds (Unloc)                    ",P05005,Premises Related Expenditure  ,Ground Maintenance Costs      ,BL03,Maintenance of Grounds,413,980,12/2/2011,R,TREES INC                     
2012 - FEB,Cultural Env Reg&Plan Services,Open Spaces,"Pks,Rec Grds (Unloc)                    ",P05005,Premises Related Expenditure  ,Ground Maintenance Costs      ,BL03,Maintenance of Grounds,414,"1,040.00",12/8/2011,R,TREELINE SERVICES LTD         
2012 - FEB,Cultural Env Reg&Plan Services,Open Spaces,"Pks,Rec Grds (Unloc)                    ",P05005,Premises Related Expenditure  ,Ground Maintenance Costs      ,BL03,Maintenance of Grounds,415,"1,400.00",1/18/2012,R,TREELINE SERVICES LTD         
2012 - FEB,Cultural Env Reg&Plan Services,Open Spaces,"Pks,Rec Grds (Unloc)                    ",P05005,Premises Related Expenditure  ,Ground Maintenance Costs      ,BL03,Maintenance of Grounds,416,520,2/7/2012,R,TREELINE SERVICES LTD         
2012 - FEB,Cultural Env Reg&Plan Services,Open Spaces,"Pks,Rec Grds (Unloc)                    ",P05005,Supplies & Services           ,Grants and Subscriptions      ,DJ04,Subscriptions,417,"2,250.00",3/31/2011,R,LDN PARKS & GREEN SPACES FORUM
2012 - FEB,Cultural Env Reg&Plan Services,Open Spaces,Morden Rec Ground                       ,P05031,Premises Related Expenditure  ,Energy Costs                  ,BB03,Gas (incl. Butane),418,"2,856.50",11/23/2011,R,KENT COUNTY COUNCIL           
2012 - FEB,CS -Oth Operating Inc & Expend,INVESTMENT PROPERTIES,Wimbledon Park                          ,P05050,Premises Related Expenditure  ,Energy Costs                  ,BB02,Electricity,419,"2,564.25",1/11/2012,R,EDF ENERGY 1 LIMITED          
2012 - FEB,CS -Oth Operating Inc & Expend,INVESTMENT PROPERTIES,Wimbledon Park                          ,P05050,Supplies & Services           ,Services                      ,DF09,Miscellaneous Fees,420,600,2/6/2012,R,HERCULES WIMBLEDON ATHELETICS 
2012 - FEB,Cultural Env Reg&Plan Services,Recreation & Sport,London Youth Games                      ,P05067,Supplies & Services           ,Clothing Unfrms Laundry       ,DC02,Clothing & Uniforms,421,"1,000.00",1/18/2012,R,THE ULTIMATE PROMOTION CO LTD 
2012 - FEB,Cultural Env Reg&Plan Services,Recreation & Sport,London Youth Games                      ,P05067,Supplies & Services           ,Expenses                      ,DH52,London Youth Games,422,"3,900.00",1/11/2012,R,LONDON YOUTH GAMES LIMITED    
2012 - FEB,Cultural Env Reg&Plan Services,Recreation & Sport,Leisure Development                     ,P05068,Employees                     ,Direct Employee Expenses      ,AA17,Agency Staff & Casual Paymts,423,"1,800.00",2/14/2012,R,RIDGWAY STABLES               
2012 - FEB,Cultural Env Reg&Plan Services,Recreation & Sport,Leisure Development                     ,P05068,Supplies & Services           ,Equip Furniture/Materials     ,DA04,Materials,424,580,1/25/2012,R,BOUNCE CREATIVE DESIGNS       
2012 - FEB,Cultural Env Reg&Plan Services,Recreation & Sport,Leisure Development                     ,P05068,Supplies & Services           ,Equip Furniture/Materials     ,DA09,Equip-Purchases,425,500,12/1/2011,R,REDACTED
2012 - FEB,Cultural Env Reg&Plan Services,Open Spaces,Nursery road                            ,P05083,Premises Related Expenditure  ,Water Services                ,BE01,Use of Water (Metered),426,"3,401.25",1/16/2012,R,THAMES WATER UTILITIES LTD    
2012 - FEB,Cultural Env Reg&Plan Services,Open Spaces,Mitcham Parks                           ,P05109,Supplies & Services           ,Equip Furniture/Materials     ,DA09,Equip-Purchases,427,"1,295.60",1/20/2012,R,MOWERSURE                     
2012 - FEB,Cultural Env Reg&Plan Services,Open Spaces,Mitcham Parks                           ,P05109,Supplies & Services           ,Services                      ,DF03,Consultants,428,"1,500.00",12/22/2011,R,REDACTED
2012 - FEB,Cultural Env Reg&Plan Services,Open Spaces,Wimbledon Parks                         ,P05111,Premises Related Expenditure  ,Fixtures and Fittings         ,BF01,Fixtures and Fittings,429,711.23,1/3/2012,R,SALTASH ENTERPRISES LTD       
2012 - FEB,Cultural Env Reg&Plan Services,Open Spaces,Wimbledon Parks                         ,P05111,Supplies & Services           ,Equip Furniture/Materials     ,DA04,Materials,430,587.51,2/21/2012,R,TECHNICLEAN SUPPLY COMPANY    
2012 - FEB,Cultural Env Reg&Plan Services,Open Spaces,Martin Way - WH                         ,P06109,Premises Related Expenditure  ,Water Services                ,BE01,Use of Water (Metered),431,"1,343.19",1/20/2012,R,THAMES WATER UTILITIES LTD    
2012 - FEB,Cultural Env Reg&Plan Services,Open Spaces,"Trans,Plnt WHA(Unl)                     ",P08110,Transport Related Expenditure ,Direct Transport Costs        ,CA02,Tyres,432,651,2/6/2012,R,MORDEN TYRE SERVICES LTD      
2012 - FEB,Cultural Env Reg&Plan Services,Open Spaces,"Trans,Plnt WHA(Unl)                     ",P08110,Transport Related Expenditure ,Direct Transport Costs        ,CA04,R & M of Veh - General,433,869.85,2/8/2012,R,SPALDINGS (UK) LTD            
2012 - FEB,Cultural Env Reg&Plan Services,Recreation & Sport,Morden Assem Hall                       ,P12144,Premises Related Expenditure  ,Cleaning and Domestic Supplies,BH03,Cleaning Services,434,675.14,1/20/2012,R,SUNLIGHT SERVICE GROUP LTD    
2012 - FEB,Cultural Env Reg&Plan Services,Culture & Heritage,Cultural Diversity Fund                 ,P14173,Supplies & Services           ,Grants and Subscriptions      ,DJ01,Grants,435,"1,200.00",2/22/2012,R,WORLD TAMIL ORGANISATION (UK) 
2012 - FEB,Cultural Env Reg&Plan Services,Recreation & Sport,Clnt Offrs-CivicCntr                    ,P17203,Supplies & Services           ,Services                      ,DF03,Consultants,436,905,1/31/2012,R,FMG CONSULTING LTD            
2012 - FEB,Cultural Env Reg&Plan Services,Recreation & Sport,Clnt Offrs-CivicCntr                    ,P17203,Third Party Payments          ,Joint Authorities             ,EC01,Contract Payments,437,"16,056.00",1/30/2012,R,GREENWICH LEISURE LTD         
2012 - FEB,Cultural Env Reg&Plan Services,SMSS (Cult),Tree Safety (Schools)                   ,P18320,Premises Related Expenditure  ,Ground Maintenance Costs      ,BL03,Maintenance of Grounds,438,"5,000.00",2/2/2012,R,BARCHAM TREES P.L.C.          
2012 - FEB,,,Mtchm Cmmon Consvtors,W0000W,Premises Related Expenditure  ,Ground Maintenance Costs      ,BL03,Maintenance of Grounds,439,750,1/31/2012,R,REDACTED
2012 - FEB,Central Services,Fully rechargeable Overheads,NON-STATUTORY MARKETING & COMM ,A02019,Supplies & Services           ,Prntng Stnry Gen Off Exp      ,DE22,Marketing,440,500,11/11/2011,R,WHITGIFT CROYDON              
2012 - FEB,Central Services,Fully rechargeable Overheads,NON-STATUTORY MARKETING & COMM ,A02019,Supplies & Services           ,Services                      ,DF02,Misc Advertising/Publicity,441,602,2/7/2012,R,BAAF REGISTERED CHARITY       
2012 - FEB,Central Services,Fully rechargeable Overheads,Democratic Services                     ,A02023,Employees                     ,Direct Employee Expenses      ,AA17,Agency Staff & Casual Paymts,442,900,1/16/2012,R,REDACTED
2012 - FEB,Central Services,Fully rechargeable Overheads,Democratic Services                     ,A02023,Employees                     ,Direct Employee Expenses      ,AA17,Agency Staff & Casual Paymts,443,"1,818.75",2/13/2012,R,REDACTED
2012 - FEB,Central Services,Fully rechargeable Overheads,Democratic Services                     ,A02023,Supplies & Services           ,Expenses                      ,DH79,Incoming Mayor (May-March),444,736.95,2/15/2012,R,REDACTED
2012 - FEB,Central Services,Fully rechargeable Overheads,Press and Public Relations.             ,A02026,Supplies & Services           ,Prntng Stnry Gen Off Exp      ,DE20,Council Magazine,445,"3,548.02",2/7/2012,R,LONDON LETTERBOX MARKETING    
2012 - FEB,Central Services,Fully rechargeable Overheads,Press and Public Relations.             ,A02026,Supplies & Services           ,Prntng Stnry Gen Off Exp      ,DE20,Council Magazine,446,"7,282.00",3/2/2012,R,ENGAGE GROUP LTD              
2012 - FEB,CS -Oth Operating Inc & Expend,Trading A/c Surpluses/Deficits,Prtng Jobs - Ext Agncy                  ,A03041,Supplies & Services           ,Prntng Stnry Gen Off Exp      ,DE01,External Printing,447,679,1/31/2012,R,COMMERCIAL COLOUR PRESS       
2012 - FEB,CS -Oth Operating Inc & Expend,Trading A/c Surpluses/Deficits,Prtng Jobs - Ext Agncy                  ,A03041,Supplies & Services           ,Prntng Stnry Gen Off Exp      ,DE01,External Printing,448,757,2/10/2012,R,IMPRESS PRINT SERVICES LTD    
2012 - FEB,CS -Oth Operating Inc & Expend,Trading A/c Surpluses/Deficits,Prtng Jobs - Ext Agncy                  ,A03041,Supplies & Services           ,Prntng Stnry Gen Off Exp      ,DE01,External Printing,449,"1,047.55",2/16/2012,R,CLIFFE ENTERPRISE             
2012 - FEB,CS -Oth Operating Inc & Expend,Trading A/c Surpluses/Deficits,Prtng Jobs - Ext Agncy                  ,A03041,Supplies & Services           ,Prntng Stnry Gen Off Exp      ,DE01,External Printing,450,"1,567.00",2/20/2012,R,ULTIMATE INVOICE FINANCE LTD  
2012 - FEB,CS -Oth Operating Inc & Expend,Trading A/c Surpluses/Deficits,Prtng Jobs - Ext Agncy                  ,A03041,Supplies & Services           ,Prntng Stnry Gen Off Exp      ,DE01,External Printing,451,561.6,2/16/2012,R,CLIFFE ENTERPRISE             
2012 - FEB,CS -Oth Operating Inc & Expend,Trading A/c Surpluses/Deficits,Prtng Jobs - Ext Agncy                  ,A03041,Supplies & Services           ,Prntng Stnry Gen Off Exp      ,DE01,External Printing,452,892,2/22/2012,R,BELMONT PRESS LIMITED         
2012 - FEB,CS -Oth Operating Inc & Expend,Trading A/c Surpluses/Deficits,Translation Services                    ,A04060,Supplies & Services           ,Services                      ,DF45,Payment of Sessional workers,453,"1,175.00",1/31/2012,R,COSMIC EUROPE LIMTED          
2012 - FEB,Central Services,Fully rechargeable Overheads,Merton Link                             ,A04070,Premises Related Expenditure  ,Cleaning and Domestic Supplies,BH03,Cleaning Services,454,"1,653.69",2/6/2012,R,DYNAMIQ CLEANING LIMITED      
2012 - FEB,Central Services,Fully rechargeable Overheads,Merton Link                             ,A04070,Premises Related Expenditure  ,Cleaning and Domestic Supplies,BH03,Cleaning Services,455,"1,653.69",3/5/2012,R,DYNAMIQ CLEANING LIMITED      
2012 - FEB,Central Services,Fully rechargeable Overheads,Local Strategic Partnership             ,A04080,Supplies & Services           ,Grants and Subscriptions      ,DJ01,Grants,456,"10,654.00",12/16/2011,R,MERTON VOLUNTARY SERV COUNCIL 
2012 - FEB,Central Services,Gen Grants Bequest & Donations,VOLUNTARY SECTOR COORDINATION   ,A04082,Supplies & Services           ,Grants and Subscriptions      ,DJ01,Grants,457,"2,090.00",1/19/2012,R,MERTON VOLUNTARY SERV COUNCIL 
2012 - FEB,Central Services,Gen Grants Bequest & Donations,VOLUNTARY SECTOR COORDINATION   ,A04082,Supplies & Services           ,Grants and Subscriptions      ,DJ01,Grants,458,"3,382.00",2/6/2012,R,SOUTH LONDON CVS PARTNERSHIP  
2012 - FEB,Central Services,Gen Grants Bequest & Donations,VOLUNTARY SECTOR COORDINATION   ,A04082,Supplies & Services           ,Grants and Subscriptions      ,DJ04,Subscriptions,459,"94,742.87",12/28/2011,R,LONDON COUNCILS               
2012 - FEB,Central Services,Emergency Planning (CS),Emergency Planning                      ,B06138,Supplies & Services           ,Comms and Computing           ,DG05,Telephones - Gen-Creditors,460,"3,518.55",2/9/2012,R,AIRWAVE SOLUTIONS LTD         
2012 - FEB,Central Services,Registr'n Birth/Death/Marriage,Reg of B. Deaths & Ms                   ,B06143,Employees                     ,Direct Employee Expenses      ,AA04,Shared Services Salaries,461,"6,887.27",1/24/2012,R,LONDON BOROUGH OF SUTTON      
2012 - FEB,Central Services,Registr'n Birth/Death/Marriage,Reg of B. Deaths & Ms                   ,B06143,Premises Related Expenditure  ,RepairsAlterations&MtceOfBldgs,BA06,Repairs & Maintenance General,462,"1,190.00",1/28/2012,R,RITEC DECORATORS LIMITED      
2012 - FEB,Central Services,Registr'n Birth/Death/Marriage,Reg of B. Deaths & Ms                   ,B06143,Premises Related Expenditure  ,RepairsAlterations&MtceOfBldgs,BA06,Repairs & Maintenance General,463,930,2/17/2012,R,RITEC DECORATORS LIMITED      
2012 - FEB,Central Services,Registr'n Birth/Death/Marriage,Reg of B. Deaths & Ms                   ,B06143,Premises Related Expenditure  ,RepairsAlterations&MtceOfBldgs,BA06,Repairs & Maintenance General,464,"1,230.00",2/17/2012,R,RITEC DECORATORS LIMITED      
2012 - FEB,Central Services,Registr'n Birth/Death/Marriage,Reg of B. Deaths & Ms                   ,B06143,Supplies & Services           ,Prntng Stnry Gen Off Exp      ,DE03,Stationery,465,906.62,2/13/2012,R,OFFICE DEPOT UK LTD           
2012 - FEB,Central Services,Registr'n Birth/Death/Marriage,Reg of B. Deaths & Ms                   ,B06143,Supplies & Services           ,Prntng Stnry Gen Off Exp      ,DE03,Stationery,466,"1,295.92",2/13/2012,R,OFFICE DEPOT UK LTD           
2012 - FEB,Central Services,Registr'n Birth/Death/Marriage,Reg of B. Deaths & Ms                   ,B06143,Supplies & Services           ,Comms and Computing           ,DG09,Computer Purchases - Misc,467,540,2/1/2012,R,INCOM TELECOMMUNICATIONS      
2012 - FEB,Central Services,Fully rechargeable Overheads,Learning and Development                ,B06146,Employees                     ,Indirect Employee Expenses    ,AB56,Internal Training Costs,468,500,2/10/2012,R,REDACTED
2012 - FEB,Central Services,Fully rechargeable Overheads,Learning and Development                ,B06146,Employees                     ,Indirect Employee Expenses    ,AB57,External Training Costs,469,"4,000.00",12/30/2011,R,LOCAL GOVERNMENT ASSOCIATION  
2012 - FEB,CS -Oth Operating Inc & Expend,Trading A/c Surpluses/Deficits,CHAS Scheme                             ,B06150,Supplies & Services           ,Services                      ,DF88,Assessor Fees,470,585,1/20/2012,R,REDACTED
2012 - FEB,CS -Oth Operating Inc & Expend,Trading A/c Surpluses/Deficits,CHAS Scheme                             ,B06150,Supplies & Services           ,Services                      ,DF88,Assessor Fees,471,755,1/23/2012,R,REDACTED
2012 - FEB,CS -Oth Operating Inc & Expend,Trading A/c Surpluses/Deficits,CHAS Scheme                             ,B06150,Supplies & Services           ,Services                      ,DF88,Assessor Fees,472,754.41,1/31/2012,R,REDACTED
2012 - FEB,CS -Oth Operating Inc & Expend,Trading A/c Surpluses/Deficits,CHAS Scheme                             ,B06150,Supplies & Services           ,Services                      ,DF88,Assessor Fees,473,755,1/21/2012,R,REDACTED
2012 - FEB,CS -Oth Operating Inc & Expend,Trading A/c Surpluses/Deficits,CHAS Scheme                             ,B06150,Supplies & Services           ,Services                      ,DF88,Assessor Fees,474,"1,655.00",1/20/2012,R,REDACTED
2012 - FEB,CS -Oth Operating Inc & Expend,Trading A/c Surpluses/Deficits,CHAS Scheme                             ,B06150,Supplies & Services           ,Services                      ,DF88,Assessor Fees,475,635,1/24/2012,R,REDACTED
2012 - FEB,CS -Oth Operating Inc & Expend,Trading A/c Surpluses/Deficits,CHAS Scheme                             ,B06150,Supplies & Services           ,Services                      ,DF88,Assessor Fees,476,811.05,1/20/2012,R,REDACTED
2012 - FEB,CS -Oth Operating Inc & Expend,Trading A/c Surpluses/Deficits,CHAS Scheme                             ,B06150,Supplies & Services           ,Services                      ,DF88,Assessor Fees,477,"1,185.00",1/17/2012,R,REDACTED
2012 - FEB,CS -Oth Operating Inc & Expend,Trading A/c Surpluses/Deficits,CHAS Scheme                             ,B06150,Supplies & Services           ,Services                      ,DF88,Assessor Fees,478,930,1/23/2012,R,TERN ASSOCIATES LTD           
2012 - FEB,CS -Oth Operating Inc & Expend,Trading A/c Surpluses/Deficits,CHAS Scheme                             ,B06150,Supplies & Services           ,Services                      ,DF88,Assessor Fees,479,"1,305.00",12/31/2011,R,REDACTED
2012 - FEB,CS -Oth Operating Inc & Expend,Trading A/c Surpluses/Deficits,CHAS Scheme                             ,B06150,Supplies & Services           ,Services                      ,DF88,Assessor Fees,480,650,1/24/2012,R,MCG HEALTH & SAFETY LTD       
2012 - FEB,CS -Oth Operating Inc & Expend,Trading A/c Surpluses/Deficits,CHAS Scheme                             ,B06150,Supplies & Services           ,Services                      ,DF88,Assessor Fees,481,635,1/27/2012,R,REDACTED
2012 - FEB,CS -Oth Operating Inc & Expend,Trading A/c Surpluses/Deficits,CHAS Scheme                             ,B06150,Supplies & Services           ,Services                      ,DF88,Assessor Fees,482,760,1/29/2012,R,REDACTED
2012 - FEB,CS -Oth Operating Inc & Expend,Trading A/c Surpluses/Deficits,CHAS Scheme                             ,B06150,Supplies & Services           ,Services                      ,DF88,Assessor Fees,483,595,1/24/2012,R,REDACTED
2012 - FEB,CS -Oth Operating Inc & Expend,Trading A/c Surpluses/Deficits,CHAS Scheme                             ,B06150,Supplies & Services           ,Services                      ,DF88,Assessor Fees,484,"2,300.00",1/31/2012,R,2ND NATURE SAFETY SOLUTIONS UK
2012 - FEB,CS -Oth Operating Inc & Expend,Trading A/c Surpluses/Deficits,CHAS Scheme                             ,B06150,Supplies & Services           ,Services                      ,DF88,Assessor Fees,485,"1,480.00",1/31/2012,R,REDACTED
2012 - FEB,CS -Oth Operating Inc & Expend,Trading A/c Surpluses/Deficits,CHAS Scheme                             ,B06150,Supplies & Services           ,Services                      ,DF88,Assessor Fees,486,"1,250.00",1/22/2012,R,REDACTED
2012 - FEB,CS -Oth Operating Inc & Expend,Trading A/c Surpluses/Deficits,CHAS Scheme                             ,B06150,Supplies & Services           ,Services                      ,DF88,Assessor Fees,487,"3,855.00",1/3/2012,R,ARC ASSOCIATES (UK)           
2012 - FEB,CS -Oth Operating Inc & Expend,Trading A/c Surpluses/Deficits,CHAS Scheme                             ,B06150,Supplies & Services           ,Services                      ,DF88,Assessor Fees,488,"1,885.00",1/28/2012,R,REDACTED
2012 - FEB,CS -Oth Operating Inc & Expend,Trading A/c Surpluses/Deficits,CHAS Scheme                             ,B06150,Supplies & Services           ,Services                      ,DF88,Assessor Fees,489,630,1/31/2012,R,REDACTED
2012 - FEB,CS -Oth Operating Inc & Expend,Trading A/c Surpluses/Deficits,CHAS Scheme                             ,B06150,Supplies & Services           ,Services                      ,DF88,Assessor Fees,490,"2,095.00",1/31/2012,R,MGW SAFETY SERVICES           
2012 - FEB,CS -Oth Operating Inc & Expend,Trading A/c Surpluses/Deficits,CHAS Scheme                             ,B06150,Supplies & Services           ,Services                      ,DF88,Assessor Fees,491,"1,215.00",1/31/2012,R,REDACTED
2012 - FEB,CS -Oth Operating Inc & Expend,Trading A/c Surpluses/Deficits,CHAS Scheme                             ,B06150,Supplies & Services           ,Services                      ,DF88,Assessor Fees,492,"1,795.00",1/31/2012,R,REDACTED
2012 - FEB,CS -Oth Operating Inc & Expend,Trading A/c Surpluses/Deficits,CHAS Scheme                             ,B06150,Supplies & Services           ,Services                      ,DF88,Assessor Fees,493,600,1/31/2012,R,REDACTED
2012 - FEB,CS -Oth Operating Inc & Expend,Trading A/c Surpluses/Deficits,CHAS Scheme                             ,B06150,Supplies & Services           ,Services                      ,DF88,Assessor Fees,494,"2,655.67",1/31/2012,R,SOUTH EAST HEALTH & SAFETY LTD
2012 - FEB,CS -Oth Operating Inc & Expend,Trading A/c Surpluses/Deficits,CHAS Scheme                             ,B06150,Supplies & Services           ,Services                      ,DF88,Assessor Fees,495,750,1/31/2012,R,REDACTED
2012 - FEB,CS -Oth Operating Inc & Expend,Trading A/c Surpluses/Deficits,CHAS Scheme                             ,B06150,Supplies & Services           ,Services                      ,DF88,Assessor Fees,496,630,1/31/2012,R,REDACTED
2012 - FEB,CS -Oth Operating Inc & Expend,Trading A/c Surpluses/Deficits,CHAS Scheme                             ,B06150,Supplies & Services           ,Services                      ,DF88,Assessor Fees,497,"1,715.00",2/1/2012,R,REDACTED
2012 - FEB,CS -Oth Operating Inc & Expend,Trading A/c Surpluses/Deficits,CHAS Scheme                             ,B06150,Supplies & Services           ,Services                      ,DF88,Assessor Fees,498,"1,131.72",1/30/2012,R,REDACTED
2012 - FEB,CS -Oth Operating Inc & Expend,Trading A/c Surpluses/Deficits,CHAS Scheme                             ,B06150,Supplies & Services           ,Services                      ,DF88,Assessor Fees,499,"1,457.62",2/3/2012,R,REDACTED
2012 - FEB,CS -Oth Operating Inc & Expend,Trading A/c Surpluses/Deficits,CHAS Scheme                             ,B06150,Supplies & Services           ,Services                      ,DF88,Assessor Fees,500,"2,245.00",1/31/2012,R,REDACTED
2012 - FEB,CS -Oth Operating Inc & Expend,Trading A/c Surpluses/Deficits,CHAS Scheme                             ,B06150,Supplies & Services           ,Services                      ,DF88,Assessor Fees,501,810,2/2/2012,R,REDACTED
2012 - FEB,CS -Oth Operating Inc & Expend,Trading A/c Surpluses/Deficits,CHAS Scheme                             ,B06150,Supplies & Services           ,Services                      ,DF88,Assessor Fees,502,"1,175.00",2/1/2012,R,REDACTED
2012 - FEB,CS -Oth Operating Inc & Expend,Trading A/c Surpluses/Deficits,CHAS Scheme                             ,B06150,Supplies & Services           ,Services                      ,DF88,Assessor Fees,503,500,1/31/2012,R,REDACTED
2012 - FEB,CS -Oth Operating Inc & Expend,Trading A/c Surpluses/Deficits,CHAS Scheme                             ,B06150,Supplies & Services           ,Services                      ,DF88,Assessor Fees,504,"1,045.00",1/31/2012,R,REDACTED
2012 - FEB,CS -Oth Operating Inc & Expend,Trading A/c Surpluses/Deficits,CHAS Scheme                             ,B06150,Supplies & Services           ,Services                      ,DF88,Assessor Fees,505,715,2/1/2012,R,REDACTED
2012 - FEB,CS -Oth Operating Inc & Expend,Trading A/c Surpluses/Deficits,CHAS Scheme                             ,B06150,Supplies & Services           ,Services                      ,DF88,Assessor Fees,506,675,1/31/2012,R,REDACTED
2012 - FEB,CS -Oth Operating Inc & Expend,Trading A/c Surpluses/Deficits,CHAS Scheme                             ,B06150,Supplies & Services           ,Services                      ,DF88,Assessor Fees,507,"1,200.00",2/2/2012,R,REDACTED
2012 - FEB,CS -Oth Operating Inc & Expend,Trading A/c Surpluses/Deficits,CHAS Scheme                             ,B06150,Supplies & Services           ,Services                      ,DF88,Assessor Fees,508,"1,135.00",1/31/2012,R,REDACTED
2012 - FEB,CS -Oth Operating Inc & Expend,Trading A/c Surpluses/Deficits,CHAS Scheme                             ,B06150,Supplies & Services           ,Services                      ,DF88,Assessor Fees,509,500,2/1/2012,R,REDACTED
2012 - FEB,CS -Oth Operating Inc & Expend,Trading A/c Surpluses/Deficits,CHAS Scheme                             ,B06150,Supplies & Services           ,Services                      ,DF88,Assessor Fees,510,"1,295.00",1/28/2012,R,WOODS CONSULTANCY SERVICES LTD
2012 - FEB,CS -Oth Operating Inc & Expend,Trading A/c Surpluses/Deficits,CHAS Scheme                             ,B06150,Supplies & Services           ,Services                      ,DF88,Assessor Fees,511,535,2/7/2012,R,REDACTED
2012 - FEB,CS -Oth Operating Inc & Expend,Trading A/c Surpluses/Deficits,CHAS Scheme                             ,B06150,Supplies & Services           ,Services                      ,DF88,Assessor Fees,512,613.05,1/31/2012,R,SELECT SAFETY LIMITED         
2012 - FEB,CS -Oth Operating Inc & Expend,Trading A/c Surpluses/Deficits,CHAS Scheme                             ,B06150,Supplies & Services           ,Services                      ,DF88,Assessor Fees,513,500,1/31/2012,R,REDACTED
2012 - FEB,CS -Oth Operating Inc & Expend,Trading A/c Surpluses/Deficits,CHAS Scheme                             ,B06150,Supplies & Services           ,Services                      ,DF88,Assessor Fees,514,"2,825.00",1/27/2012,R,ALIMOR SAFETY LTD             
2012 - FEB,CS -Oth Operating Inc & Expend,Trading A/c Surpluses/Deficits,CHAS Scheme                             ,B06150,Supplies & Services           ,Services                      ,DF88,Assessor Fees,515,965,2/4/2012,R,REDACTED
2012 - FEB,CS -Oth Operating Inc & Expend,Trading A/c Surpluses/Deficits,CHAS Scheme                             ,B06150,Supplies & Services           ,Services                      ,DF88,Assessor Fees,516,755,2/6/2012,R,REDACTED
2012 - FEB,CS -Oth Operating Inc & Expend,Trading A/c Surpluses/Deficits,CHAS Scheme                             ,B06150,Supplies & Services           ,Services                      ,DF88,Assessor Fees,517,610,1/31/2012,R,REDACTED
2012 - FEB,CS -Oth Operating Inc & Expend,Trading A/c Surpluses/Deficits,CHAS Scheme                             ,B06150,Supplies & Services           ,Services                      ,DF88,Assessor Fees,518,"1,820.00",2/4/2012,R,REDACTED
2012 - FEB,CS -Oth Operating Inc & Expend,Trading A/c Surpluses/Deficits,CHAS Scheme                             ,B06150,Supplies & Services           ,Services                      ,DF88,Assessor Fees,519,605,2/8/2012,R,REDACTED
2012 - FEB,CS -Oth Operating Inc & Expend,Trading A/c Surpluses/Deficits,CHAS Scheme                             ,B06150,Supplies & Services           ,Services                      ,DF88,Assessor Fees,520,630,2/11/2012,R,REDACTED
2012 - FEB,CS -Oth Operating Inc & Expend,Trading A/c Surpluses/Deficits,CHAS Scheme                             ,B06150,Supplies & Services           ,Services                      ,DF88,Assessor Fees,521,720,2/12/2012,R,REDACTED
2012 - FEB,CS -Oth Operating Inc & Expend,Trading A/c Surpluses/Deficits,CHAS Scheme                             ,B06150,Supplies & Services           ,Services                      ,DF88,Assessor Fees,522,"6,605.00",1/31/2012,R,STALLARD KANE ASSOCIATES LTD  
2012 - FEB,CS -Oth Operating Inc & Expend,Trading A/c Surpluses/Deficits,CHAS Scheme                             ,B06150,Supplies & Services           ,Services                      ,DF88,Assessor Fees,523,"2,025.00",2/7/2012,R,REDACTED
2012 - FEB,CS -Oth Operating Inc & Expend,Trading A/c Surpluses/Deficits,CHAS Scheme                             ,B06150,Supplies & Services           ,Services                      ,DF88,Assessor Fees,524,670,2/13/2012,R,REDACTED
2012 - FEB,CS -Oth Operating Inc & Expend,Trading A/c Surpluses/Deficits,CHAS Scheme                             ,B06150,Supplies & Services           ,Services                      ,DF88,Assessor Fees,525,"2,715.00",1/31/2012,R,REDACTED
2012 - FEB,CS -Oth Operating Inc & Expend,Trading A/c Surpluses/Deficits,CHAS Scheme                             ,B06150,Supplies & Services           ,Services                      ,DF88,Assessor Fees,526,"1,460.00",2/6/2012,R,REDACTED
2012 - FEB,CS -Oth Operating Inc & Expend,Trading A/c Surpluses/Deficits,CHAS Scheme                             ,B06150,Supplies & Services           ,Services                      ,DF88,Assessor Fees,527,915,2/12/2012,R,REDACTED
2012 - FEB,CS -Oth Operating Inc & Expend,Trading A/c Surpluses/Deficits,CHAS Scheme                             ,B06150,Supplies & Services           ,Services                      ,DF88,Assessor Fees,528,"3,960.00",2/3/2012,R,ARC ASSOCIATES (UK)           
2012 - FEB,CS -Oth Operating Inc & Expend,Trading A/c Surpluses/Deficits,CHAS Scheme                             ,B06150,Supplies & Services           ,Services                      ,DF88,Assessor Fees,529,630,1/31/2012,R,REDACTED
2012 - FEB,CS -Oth Operating Inc & Expend,Trading A/c Surpluses/Deficits,CHAS Scheme                             ,B06150,Supplies & Services           ,Services                      ,DF88,Assessor Fees,530,755,1/29/2012,R,REDACTED
2012 - FEB,CS -Oth Operating Inc & Expend,Trading A/c Surpluses/Deficits,CHAS Scheme                             ,B06150,Supplies & Services           ,Services                      ,DF88,Assessor Fees,531,595,2/7/2012,R,REDACTED
2012 - FEB,CS -Oth Operating Inc & Expend,Trading A/c Surpluses/Deficits,CHAS Scheme                             ,B06150,Supplies & Services           ,Services                      ,DF88,Assessor Fees,532,"1,355.00",2/14/2012,R,REDACTED
2012 - FEB,CS -Oth Operating Inc & Expend,Trading A/c Surpluses/Deficits,CHAS Scheme                             ,B06150,Supplies & Services           ,Services                      ,DF88,Assessor Fees,533,655,2/12/2012,R,REDACTED
2012 - FEB,CS -Oth Operating Inc & Expend,Trading A/c Surpluses/Deficits,CHAS Scheme                             ,B06150,Supplies & Services           ,Services                      ,DF88,Assessor Fees,534,"3,065.00",2/13/2012,R,REDACTED
2012 - FEB,CS -Oth Operating Inc & Expend,Trading A/c Surpluses/Deficits,CHAS Scheme                             ,B06150,Supplies & Services           ,Services                      ,DF88,Assessor Fees,535,755.42,2/17/2012,R,REDACTED
2012 - FEB,CS -Oth Operating Inc & Expend,Trading A/c Surpluses/Deficits,CHAS Scheme                             ,B06150,Supplies & Services           ,Services                      ,DF88,Assessor Fees,536,"1,375.00",2/17/2012,R,TERN ASSOCIATES LTD           
2012 - FEB,CS -Oth Operating Inc & Expend,Trading A/c Surpluses/Deficits,CHAS Scheme                             ,B06150,Supplies & Services           ,Services                      ,DF88,Assessor Fees,537,"2,340.00",2/16/2012,R,REDACTED
2012 - FEB,CS -Oth Operating Inc & Expend,Trading A/c Surpluses/Deficits,CHAS Scheme                             ,B06150,Supplies & Services           ,Services                      ,DF88,Assessor Fees,538,625,2/15/2012,R,REDACTED
2012 - FEB,CS -Oth Operating Inc & Expend,Trading A/c Surpluses/Deficits,CHAS Scheme                             ,B06150,Supplies & Services           ,Services                      ,DF88,Assessor Fees,539,"1,305.00",2/2/2012,R,REDACTED
2012 - FEB,CS -Oth Operating Inc & Expend,Trading A/c Surpluses/Deficits,CHAS Scheme                             ,B06150,Supplies & Services           ,Services                      ,DF88,Assessor Fees,540,"3,265.00",2/15/2012,R,REDACTED
2012 - FEB,CS -Oth Operating Inc & Expend,Trading A/c Surpluses/Deficits,CHAS Scheme                             ,B06150,Supplies & Services           ,Comms and Computing           ,DG08,Computer Hardware,541,"1,237.50",2/16/2012,R,ORGANISED COMPUTER SYSTEMS LTD
2012 - FEB,,,Civic Centre refurbishment              ,CF001AB,New Construction Conversion and Renovation,,B4,Site Works - Contractor,542,"1,736.00",12/20/2011,C,HART DECORATORS LIMITED       
2012 - FEB,,,Civic Centre refurbishment              ,CF001AB,New Construction Conversion and Renovation,,B4,Site Works - Contractor,543,527.5,12/31/2011,C,EDE'S (U.K.) LTD              
2012 - FEB,,,Civic Centre refurbishment              ,CF001AB,New Construction Conversion and Renovation,,B4,Site Works - Contractor,544,"4,697.00",2/17/2012,C,HART DECORATORS LIMITED       
2012 - FEB,,,Canons RG -Windows&Roofs&Redec          ,CF002CA,New Construction Conversion and Renovation,,B4,Site Works - Contractor,545,935.55,1/14/2012,C,RITEC DECORATORS LIMITED      
2012 - FEB,,,New Wim Theatre - Ext Repairs           ,CF004BA,New Construction Conversion and Renovation,,B4,Site Works - Contractor,546,"4,320.72",2/17/2012,C,MOY CONSTRUCTION CO LTD       
2012 - FEB,,,Asbestos Risk Assessment Work           ,CF004SB,New Construction Conversion and Renovation,,B4,Site Works - Contractor,547,863.17,1/3/2012,C,SALTASH ENTERPRISES LTD       
2012 - FEB,,,Asbestos Risk Assessment Work           ,CF004SB,New Construction Conversion and Renovation,,B4,Site Works - Contractor,548,543.13,1/3/2012,C,SALTASH ENTERPRISES LTD       
2012 - FEB,,,Water Risk Assessment Works             ,CF004SC,New Construction Conversion and Renovation,,B4,Site Works - Contractor,549,570,1/3/2012,C,SALTASH ENTERPRISES LTD       
2012 - FEB,,,Water Risk Assessment Works             ,CF004SC,New Construction Conversion and Renovation,,B4,Site Works - Contractor,550,"6,060.00",1/3/2012,C,SALTASH ENTERPRISES LTD       
2012 - FEB,,,Building Condition Surveys              ,CF004SD,New Construction Conversion and Renovation,,B1,Design and Supervision - Consultants Fee,551,"1,229.56",1/25/2012,C,COMPLEMENT CONSULTING LIMITED 
2012 - FEB,,,Fire Risk Assessment Wrks               ,CF004SJ,New Construction Conversion and Renovation,,B4,Site Works - Contractor,552,"2,988.22",1/27/2012,C,SALTASH ENTERPRISES LTD       
2012 - FEB,,,Roadway-Chapl Orchrd&Worsfld H          ,CF006AB,New Construction Conversion and Renovation,,B4,Site Works - Contractor,553,"19,000.00",2/17/2012,C,FM CONWAY LTD                 
2012 - FEB,,,Roadway-Chapl Orchrd&Worsfld H          ,CF006AB,New Construction Conversion and Renovation,,B4,Site Works - Contractor,554,"5,413.31",2/17/2012,C,FM CONWAY LTD                 
2012 - FEB,,,Wim Lib/ Marlborough Hall-Lift          ,CF006SA,Acquisition of Land and Existing Buildings,,A4,Other Acquisition Costs,555,"3,385.47",2/7/2012,C,J T ENTERPRISES               
2012 - FEB,,,Eastway- Electrical Switchgear          ,CF054AB,New Construction Conversion and Renovation,,B4,Site Works - Contractor,556,814.78,1/31/2012,C,MORTON FAIRVIEW ELEC SERVICES 
2012 - FEB,,,Gifford House Legal Move                ,CF060AB,New Construction Conversion and Renovation,,B3,Design and Supervision - Other Expenses,557,769.5,1/31/2012,C,EDE'S (U.K.) LTD              
2012 - FEB,,,Gifford House Legal Move                ,CF060AB,New Construction Conversion and Renovation,,B4,Site Works - Contractor,558,"5,852.00",1/31/2012,C,EDE'S (U.K.) LTD              
2012 - FEB,,,Gifford House Legal Move                ,CF060AB,New Construction Conversion and Renovation,,B4,Site Works - Contractor,559,883.5,1/31/2012,C,EDE'S (U.K.) LTD              
2012 - FEB,,,Gifford House Legal Move                ,CF060AB,New Construction Conversion and Renovation,,B4,Site Works - Contractor,560,541.5,1/31/2012,C,EDE'S (U.K.) LTD              
2012 - FEB,,,Gifford House Legal Move                ,CF060AB,New Construction Conversion and Renovation,,B4,Site Works - Contractor,561,627,1/31/2012,C,EDE'S (U.K.) LTD              
2012 - FEB,,,Gifford House Legal Move                ,CF060AB,New Construction Conversion and Renovation,,B4,Site Works - Contractor,562,532,2/17/2012,C,EDE'S (U.K.) LTD              
2012 - FEB,,,Gifford House Legal Move                ,CF060AB,Vehicles Plant Equipment and Machinery,,D4,Specialist Furniture,563,"1,670.00",1/31/2012,C,UNIQUE OFFICE SOLUTIONS LTD   
2012 - FEB,,,Mitcham CAB -Lighting Fittings          ,CPRM2NB,New Construction Conversion and Renovation,,2N,Capital main contractor payments,564,700,10/17/2011,C,COFELY LIMITED                
2012 - FEB,,,IT Equipment                            ,CT006EA,Vehicles Plant Equipment and Machinery,,D3,Equipment,565,"1,305.98",1/31/2012,C,INSIGHT DIRECT (UK) LTD       
2012 - FEB,,,IT Equipment                            ,CT006EA,Vehicles Plant Equipment and Machinery,,D3,Equipment,566,"25,000.00",12/30/2011,C,NETWORK TECHNOLOGY SOLUTIONS  
2012 - FEB,,,IT Equipment                            ,CT006EA,Vehicles Plant Equipment and Machinery,,D3,Equipment,567,"1,909.44",2/22/2012,C,ORGANISED COMPUTER SYSTEMS LTD
2012 - FEB,,,IT Equipment                            ,CT006EA,Other Capital Expenditure,,E3,Miscellaneous Capital Expenditure,568,539.8,1/20/2012,C,MISCO                         
2012 - FEB,,,IT Equipment                            ,CT006EA,Other Capital Expenditure,,E3,Miscellaneous Capital Expenditure,569,539.8,2/1/2012,C,MISCO                         
2012 - FEB,,,IT Equipment                            ,CT006EA,Other Capital Expenditure,,E3,Miscellaneous Capital Expenditure,570,539.8,2/8/2012,C,MISCO                         
2012 - FEB,,,FMIS Version Upgrade                    ,CT007EC,Other Capital Expenditure,,E3,Miscellaneous Capital Expenditure,571,"6,562.68",1/31/2012,C,INFOR GLOBAL SOLUTIONS-FRIMLEY
2012 - FEB,,,PABX                                    ,CT009EA,Other Capital Expenditure,,E3,Miscellaneous Capital Expenditure,572,"1,073.38",2/2/2012,C,ORGANISED COMPUTER SYSTEMS LTD
2012 - FEB,,,PABX                                    ,CT009EA,Other Capital Expenditure,,E3,Miscellaneous Capital Expenditure,573,"6,755.98",2/2/2012,C,ORGANISED COMPUTER SYSTEMS LTD
2012 - FEB,Central Services,Local Tax Collection,Local Taxation Services                 ,E02100,Supplies & Services           ,Comms and Computing           ,DG02,Software Licences,574,"19,080.00",1/6/2012,R,ONESTEP SOLUTIONS PLC         
2012 - FEB,Central Services,Local Tax Collection,Local Taxation Services                 ,E02100,Supplies & Services           ,Comms and Computing           ,DG09,Computer Purchases - Misc,575,"1,900.00",2/15/2012,R,CIVICA UK LIMITED             
2012 - FEB,Central Services,Local Tax Collection,Local Taxation Bailiffs                 ,E02101,Supplies & Services           ,Services                      ,DF18,Bailiffs' fees,576,550,1/16/2012,R,GREASBY'S AUCTION ROOMS       
2012 - FEB,Housing Services,Housing Benefit Administration,Benefits Administration                 ,E02120,Employees                     ,Direct Employee Expenses      ,AA17,Agency Staff & Casual Paymts,577,556.14,1/18/2012,R,THE SYNERGY GROUP LIMITED     
2012 - FEB,Housing Services,Housing Benefit Administration,Benefits Administration                 ,E02120,Employees                     ,Direct Employee Expenses      ,AA17,Agency Staff & Casual Paymts,578,690.69,1/25/2012,R,THE SYNERGY GROUP LIMITED     
2012 - FEB,Housing Services,Housing Benefit Administration,Benefits Administration                 ,E02120,Supplies & Services           ,Comms and Computing           ,DG09,Computer Purchases - Misc,579,"4,000.00",2/13/2012,R,CIVICA UK LIMITED             
2012 - FEB,Central Services,Fully rechargeable Overheads,Payroll                                 ,E02140,Supplies & Services           ,Services                      ,DF03,Consultants,580,"1,443.75",12/30/2011,R,LINDEN ALLIANCE LIMITED       
2012 - FEB,Central Services,Fully rechargeable Overheads,Post Room                               ,E02220,Supplies & Services           ,Prntng Stnry Gen Off Exp      ,DE30,General Office Expenses,581,762,1/26/2012,R,TRAVELCARE                    
2012 - FEB,Central Services,Fully rechargeable Overheads,Post Room                               ,E02220,Third Party Payments          ,Private Contractors           ,EH02,Miscellaneous Hired Services,582,600,1/26/2012,R,TRAVELCARE                    
2012 - FEB,Central Services,Fully rechargeable Overheads,Civic Centre                            ,E02222,Premises Related Expenditure  ,Cleaning and Domestic Supplies,BH02,Window Cleaning,583,552.19,2/6/2012,R,DYNAMIQ CLEANING LIMITED      
2012 - FEB,Central Services,Fully rechargeable Overheads,Civic Centre                            ,E02222,Premises Related Expenditure  ,Cleaning and Domestic Supplies,BH03,Cleaning Services,584,"3,089.34",2/6/2012,R,DYNAMIQ CLEANING LIMITED      
2012 - FEB,Central Services,Fully rechargeable Overheads,Civic Centre                            ,E02222,Premises Related Expenditure  ,Cleaning and Domestic Supplies,BH03,Cleaning Services,585,"9,019.98",2/6/2012,R,DYNAMIQ CLEANING LIMITED      
2012 - FEB,Central Services,Fully rechargeable Overheads,Civic Centre                            ,E02222,Premises Related Expenditure  ,Cleaning and Domestic Supplies,BH03,Cleaning Services,586,"1,461.29",2/6/2012,R,DYNAMIQ CLEANING LIMITED      
2012 - FEB,Central Services,Fully rechargeable Overheads,Civic Centre                            ,E02222,Premises Related Expenditure  ,Cleaning and Domestic Supplies,BH03,Cleaning Services,587,"1,451.44",2/6/2012,R,DYNAMIQ CLEANING LIMITED      
2012 - FEB,Central Services,Fully rechargeable Overheads,Civic Centre                            ,E02222,Premises Related Expenditure  ,Cleaning and Domestic Supplies,BH03,Cleaning Services,588,"1,451.44",3/5/2012,R,DYNAMIQ CLEANING LIMITED      
2012 - FEB,Central Services,Fully rechargeable Overheads,Civic Centre                            ,E02222,Third Party Payments          ,Private Contractors           ,EH10,Contract Payments,589,"4,366.05",1/12/2012,R,ISS COLLECTIONS LTD           
2012 - FEB,Central Services,Fully rechargeable Overheads,Gifford House                           ,E02223,Premises Related Expenditure  ,Cleaning and Domestic Supplies,BH03,Cleaning Services,590,841.16,2/6/2012,R,DYNAMIQ CLEANING LIMITED      
2012 - FEB,Central Services,Fully rechargeable Overheads,Gifford House                           ,E02223,Premises Related Expenditure  ,Cleaning and Domestic Supplies,BH03,Cleaning Services,591,591.69,2/29/2012,R,DYNAMIQ CLEANING LIMITED      
2012 - FEB,Central Services,Fully rechargeable Overheads,Gifford House                           ,E02223,Premises Related Expenditure  ,Cleaning and Domestic Supplies,BH03,Cleaning Services,592,841.16,3/5/2012,R,DYNAMIQ CLEANING LIMITED      
2012 - FEB,Central Services,Fully rechargeable Overheads,Worsfold House                          ,E02224,Premises Related Expenditure  ,Cleaning and Domestic Supplies,BH03,Cleaning Services,593,"1,141.15",2/6/2012,R,DYNAMIQ CLEANING LIMITED      
2012 - FEB,Central Services,Fully rechargeable Overheads,Worsfold House                          ,E02224,Premises Related Expenditure  ,Cleaning and Domestic Supplies,BH03,Cleaning Services,594,"1,141.15",3/5/2012,R,DYNAMIQ CLEANING LIMITED      
2012 - FEB,Central Services,Fully rechargeable Overheads,Morden Park House                       ,E02229,Premises Related Expenditure  ,Cleaning and Domestic Supplies,BH03,Cleaning Services,595,"1,579.28",2/6/2012,R,DYNAMIQ CLEANING LIMITED      
2012 - FEB,Central Services,Fully rechargeable Overheads,Facilities                              ,E02231,Supplies & Services           ,Equip Furniture/Materials     ,DA09,Equip-Purchases,596,"1,380.00",2/16/2012,R,GEMINI DATA LOGGERS (UK) LTD  
2012 - FEB,Central Services,Fully rechargeable Overheads,FM External Fees                        ,E02239,Premises Related Expenditure  ,RepairsAlterations&MtceOfBldgs,BA29,Build Maint Mgt Fees,597,"3,270.00",1/31/2012,R,CADLINE LTD                   
2012 - FEB,Central Services,Fully rechargeable Overheads,FM External Fees                        ,E02239,Premises Related Expenditure  ,RepairsAlterations&MtceOfBldgs,BA29,Build Maint Mgt Fees,598,525,2/2/2012,R,ANDREW GODDARD ASSOCIATES LTD 
2012 - FEB,Central Services,Fully rechargeable Overheads,Corporate Services Buildings            ,E02240,Premises Related Expenditure  ,RepairsAlterations&MtceOfBldgs,BA01,DDM - General Building,599,635,1/31/2012,R,ACCORDIAL                     
2012 - FEB,Central Services,Fully rechargeable Overheads,Corporate Services Buildings            ,E02240,Premises Related Expenditure  ,RepairsAlterations&MtceOfBldgs,BA01,DDM - General Building,600,"1,850.00",2/8/2012,R,KH FLOORING LTD               
2012 - FEB,Central Services,Fully rechargeable Overheads,Corporate Services Buildings            ,E02240,Premises Related Expenditure  ,RepairsAlterations&MtceOfBldgs,BA01,DDM - General Building,601,"1,850.00",2/8/2012,R,KH FLOORING LTD               
2012 - FEB,Central Services,Fully rechargeable Overheads,Corporate Services Buildings            ,E02240,Premises Related Expenditure  ,RepairsAlterations&MtceOfBldgs,BA01,DDM - General Building,602,"1,720.00",2/9/2012,R,RITEC DECORATORS LIMITED      
2012 - FEB,Central Services,Fully rechargeable Overheads,Corporate Services Buildings            ,E02240,Premises Related Expenditure  ,RepairsAlterations&MtceOfBldgs,BA01,DDM - General Building,603,690,1/19/2012,R,KC DRAINS LTD                 
2012 - FEB,Central Services,Fully rechargeable Overheads,Corporate Services Buildings            ,E02240,Premises Related Expenditure  ,RepairsAlterations&MtceOfBldgs,BA01,DDM - General Building,604,"1,721.11",1/27/2012,R,SALTASH ENTERPRISES LTD       
2012 - FEB,Central Services,Fully rechargeable Overheads,Corporate Services Buildings            ,E02240,Premises Related Expenditure  ,RepairsAlterations&MtceOfBldgs,BA01,DDM - General Building,605,800,1/27/2012,R,SALTASH ENTERPRISES LTD       
2012 - FEB,Central Services,Fully rechargeable Overheads,Corporate Services Buildings            ,E02240,Premises Related Expenditure  ,RepairsAlterations&MtceOfBldgs,BA03,DDM - Mechanical,606,889.5,11/15/2011,R,COFELY LIMITED                
2012 - FEB,Central Services,Fully rechargeable Overheads,Corporate Services Buildings            ,E02240,Premises Related Expenditure  ,RepairsAlterations&MtceOfBldgs,BA03,DDM - Mechanical,607,"4,634.22",2/9/2012,R,COFELY LIMITED                
2012 - FEB,Central Services,Fully rechargeable Overheads,Corporate Services Buildings            ,E02240,Premises Related Expenditure  ,RepairsAlterations&MtceOfBldgs,BA03,DDM - Mechanical,608,"1,264.56",2/9/2012,R,COFELY LIMITED                
2012 - FEB,Central Services,Fully rechargeable Overheads,Corporate Services Buildings            ,E02240,Premises Related Expenditure  ,RepairsAlterations&MtceOfBldgs,BA03,DDM - Mechanical,609,"4,634.22",2/7/2012,R,COFELY LIMITED                
2012 - FEB,Central Services,Fully rechargeable Overheads,Corporate Services Buildings            ,E02240,Premises Related Expenditure  ,RepairsAlterations&MtceOfBldgs,BA03,DDM - Mechanical,610,"3,601.67",2/9/2012,R,COFELY LIMITED                
2012 - FEB,Central Services,Fully rechargeable Overheads,Corporate Services Buildings            ,E02240,Premises Related Expenditure  ,RepairsAlterations&MtceOfBldgs,BA05,DDM - Electrical,611,"1,594.50",1/16/2012,R,FIRST CHOICE FACILITIES PLC   
2012 - FEB,Central Services,Fully rechargeable Overheads,Corporate Services Buildings            ,E02240,Premises Related Expenditure  ,RepairsAlterations&MtceOfBldgs,BA05,DDM - Electrical,612,650.36,1/26/2012,R,EDMUNDSON ELECTRICAL LTD      
2012 - FEB,Central Services,Fully rechargeable Overheads,Corporate Services Buildings            ,E02240,Premises Related Expenditure  ,RepairsAlterations&MtceOfBldgs,BA05,DDM - Electrical,613,953.7,1/26/2012,R,EDMUNDSON ELECTRICAL LTD      
2012 - FEB,Central Services,Fully rechargeable Overheads,Corporate Services Buildings            ,E02240,Premises Related Expenditure  ,RepairsAlterations&MtceOfBldgs,BA05,DDM - Electrical,614,"3,567.22",2/2/2012,R,COFELY LIMITED                
2012 - FEB,Central Services,Fully rechargeable Overheads,Corporate Services Buildings            ,E02240,Premises Related Expenditure  ,Energy Costs                  ,BB02,Electricity,615,"1,568.93",1/31/2012,R,EDF ENERGY                    
2012 - FEB,Central Services,Fully rechargeable Overheads,Corporate Services Buildings            ,E02240,Premises Related Expenditure  ,Energy Costs                  ,BB02,Electricity,616,784.65,2/1/2012,R,EDF ENERGY 1 LIMITED          
2012 - FEB,Central Services,Fully rechargeable Overheads,Corporate Services Buildings            ,E02240,Premises Related Expenditure  ,Energy Costs                  ,BB03,Gas (incl. Butane),617,"2,290.73",1/9/2012,R,KENT COUNTY COUNCIL           
2012 - FEB,Central Services,Fully rechargeable Overheads,Corporate Services Buildings            ,E02240,Premises Related Expenditure  ,Energy Costs                  ,BB03,Gas (incl. Butane),618,605.93,1/9/2012,R,KENT COUNTY COUNCIL           
2012 - FEB,Central Services,Fully rechargeable Overheads,Corporate Services Buildings            ,E02240,Premises Related Expenditure  ,Energy Costs                  ,BB03,Gas (incl. Butane),619,"20,494.99",1/27/2012,R,KENT COUNTY COUNCIL           
2012 - FEB,Central Services,Fully rechargeable Overheads,Corporate Services Buildings            ,E02240,Premises Related Expenditure  ,Water Services                ,BE01,Use of Water (Metered),620,799.36,1/27/2012,R,SUTTON AND EAST SURREY WATER  
2012 - FEB,Adult Social Care,Adult u65 Phys/Sensory Impair,C & H Buildings                         ,E02345,Premises Related Expenditure  ,RepairsAlterations&MtceOfBldgs,BA01,DDM - General Building,621,520.83,1/18/2012,R,COFELY LIMITED                
2012 - FEB,Adult Social Care,Adult u65 Phys/Sensory Impair,C & H Buildings                         ,E02345,Premises Related Expenditure  ,RepairsAlterations&MtceOfBldgs,BA05,DDM - Electrical,622,525.75,2/2/2012,R,COFELY LIMITED                
2012 - FEB,Cultural Env Reg&Plan Services,Open Spaces,Leisure Buildings                       ,E02350,Premises Related Expenditure  ,RepairsAlterations&MtceOfBldgs,BA01,DDM - General Building,623,"1,625.00",1/27/2012,R,SALTASH ENTERPRISES LTD       
2012 - FEB,Cultural Env Reg&Plan Services,Open Spaces,Leisure Buildings                       ,E02350,Premises Related Expenditure  ,RepairsAlterations&MtceOfBldgs,BA01,DDM - General Building,624,"1,950.00",1/27/2012,R,SALTASH ENTERPRISES LTD       
2012 - FEB,Cultural Env Reg&Plan Services,Open Spaces,Leisure Buildings                       ,E02350,Premises Related Expenditure  ,RepairsAlterations&MtceOfBldgs,BA03,DDM - Mechanical,625,517.36,2/2/2012,R,COFELY LIMITED                
2012 - FEB,Central Services,Fully rechargeable Overheads,BUSINESS PARTNERS                       ,E04059,Employees                     ,Direct Employee Expenses      ,AA17,Agency Staff & Casual Paymts,626,"9,750.00",2/7/2012,R,REDACTED
2012 - FEB,Central Services,Democ' Representation & Mgt,Corporately Funded Items                ,E04065,Employees                     ,Direct Employee Expenses      ,AA17,Agency Staff & Casual Paymts,627,"9,000.00",1/16/2012,R,REDACTED
2012 - FEB,Central Services,Democ' Representation & Mgt,Corporately Funded Items                ,E04065,Employees                     ,Direct Employee Expenses      ,AA17,Agency Staff & Casual Paymts,628,"15,000.00",2/6/2012,R,REDACTED
2012 - FEB,Central Services,Fully rechargeable Overheads,Internal Audit&Service Review           ,E05101,Supplies & Services           ,Services                      ,DF58,Audit Fee,629,"6,750.00",12/16/2011,R,RSM TENON                     
2012 - FEB,Central Services,Fully rechargeable Overheads,Corporate Accountancy                   ,E06209,Supplies & Services           ,Services                      ,DF58,Audit Fee,630,"35,533.00",1/13/2012,R,AUDIT COMMISSION              
2012 - FEB,Central Services,Fully rechargeable Overheads,Corporate Accountancy                   ,E06209,Supplies & Services           ,Services                      ,DF58,Audit Fee,631,"59,010.00",12/8/2011,R,AUDIT COMMISSION              
2012 - FEB,Central Services,Fully rechargeable Overheads,Corporate Accountancy                   ,E06209,Supplies & Services           ,Services                      ,DF58,Audit Fee,632,"2,684.00",12/8/2011,R,AUDIT COMMISSION              
2012 - FEB,Central Services,Fully rechargeable Overheads,Corporate Accountancy                   ,E06209,Supplies & Services           ,Services                      ,DF58,Audit Fee,633,"2,684.00",1/13/2012,R,AUDIT COMMISSION              
2012 - FEB,Central Services,Fully rechargeable Overheads,Corporate Accountancy                   ,E06209,Supplies & Services           ,Grants and Subscriptions      ,DJ04,Subscriptions,634,"1,500.00",1/19/2012,R,KPMG LLP FEES ACCOUNT         
2012 - FEB,Central Services,Fully rechargeable Overheads,School Cash Collection Contrct          ,E06211,Third Party Payments          ,Private Contractors           ,EH02,Miscellaneous Hired Services,635,"1,120.14",1/31/2012,R,BANKING AUTOMATION LTD        
2012 - FEB,Central Services,Fully rechargeable Overheads,Treasury & Insurance                    ,E06222,Employees                     ,Direct Employee Expenses      ,AA17,Agency Staff & Casual Paymts,636,"1,000.00",1/24/2012,R,RANDSTAD FIN & PROF LTD.      
2012 - FEB,Central Services,Fully rechargeable Overheads,Treasury & Insurance                    ,E06222,Employees                     ,Direct Employee Expenses      ,AA17,Agency Staff & Casual Paymts,637,"2,250.00",1/24/2012,R,RANDSTAD FIN & PROF LTD.      
2012 - FEB,Central Services,Fully rechargeable Overheads,Treasury & Insurance                    ,E06222,Employees                     ,Direct Employee Expenses      ,AA17,Agency Staff & Casual Paymts,638,"4,500.00",1/30/2012,R,RANDSTAD FIN & PROF LTD.      
2012 - FEB,Central Services,Fully rechargeable Overheads,Treasury & Insurance                    ,E06222,Employees                     ,Direct Employee Expenses      ,AA17,Agency Staff & Casual Paymts,639,"2,250.00",2/6/2012,R,RANDSTAD FIN & PROF LTD.      
2012 - FEB,Central Services,Fully rechargeable Overheads,Treasury & Insurance                    ,E06222,Employees                     ,Direct Employee Expenses      ,AA17,Agency Staff & Casual Paymts,640,"2,250.00",2/14/2012,R,RANDSTAD FIN & PROF LTD.      
2012 - FEB,Central Services,Fully rechargeable Overheads,Treasury & Insurance                    ,E06222,Employees                     ,Direct Employee Expenses      ,AA17,Agency Staff & Casual Paymts,641,"1,000.00",2/6/2012,R,RANDSTAD FIN & PROF LTD.      
2012 - FEB,Central Services,Fully rechargeable Overheads,Parking Cash Collect'n Contrct          ,E06225,Third Party Payments          ,Private Contractors           ,EH02,Miscellaneous Hired Services,642,589.55,1/31/2012,R,LOOMIS UK LTD                 
2012 - FEB,Central Services,Fully rechargeable Overheads,Parking Cash Collect'n Contrct          ,E06225,Third Party Payments          ,Private Contractors           ,EH02,Miscellaneous Hired Services,643,"9,302.34",12/30/2011,R,BANKING AUTOMATION LTD        
2012 - FEB,Central Services,Fully rechargeable Overheads,Parking Cash Collect'n Contrct          ,E06225,Third Party Payments          ,Private Contractors           ,EH02,Miscellaneous Hired Services,644,688.16,1/31/2012,R,BANKING AUTOMATION LTD        
2012 - FEB,Central Services,Fully rechargeable Overheads,Establishments' Cash Collect'n          ,E06226,Third Party Payments          ,Private Contractors           ,EH02,Miscellaneous Hired Services,645,"3,229.53",1/16/2012,R,LOOMIS UK LTD                 
2012 - FEB,Central Services,Fully rechargeable Overheads,Service Accountancy                     ,E06227,Employees                     ,Direct Employee Expenses      ,AA17,Agency Staff & Casual Paymts,646,"2,300.00",1/24/2012,R,RANDSTAD FIN & PROF LTD.      
2012 - FEB,Central Services,Fully rechargeable Overheads,Service Accountancy                     ,E06227,Employees                     ,Direct Employee Expenses      ,AA17,Agency Staff & Casual Paymts,647,900,1/24/2012,R,RANDSTAD FIN & PROF LTD.      
2012 - FEB,Central Services,Fully rechargeable Overheads,Service Accountancy                     ,E06227,Employees                     ,Direct Employee Expenses      ,AA17,Agency Staff & Casual Paymts,648,"1,840.00",1/30/2012,R,RANDSTAD FIN & PROF LTD.      
2012 - FEB,Central Services,Fully rechargeable Overheads,Service Accountancy                     ,E06227,Employees                     ,Direct Employee Expenses      ,AA17,Agency Staff & Casual Paymts,649,"1,200.00",1/30/2012,R,RANDSTAD FIN & PROF LTD.      
2012 - FEB,Central Services,Fully rechargeable Overheads,Service Accountancy                     ,E06227,Employees                     ,Direct Employee Expenses      ,AA17,Agency Staff & Casual Paymts,650,"2,300.00",2/6/2012,R,RANDSTAD FIN & PROF LTD.      
2012 - FEB,Central Services,Fully rechargeable Overheads,Service Accountancy                     ,E06227,Employees                     ,Direct Employee Expenses      ,AA17,Agency Staff & Casual Paymts,651,"1,200.00",2/6/2012,R,RANDSTAD FIN & PROF LTD.      
2012 - FEB,Central Services,Fully rechargeable Overheads,Service Accountancy                     ,E06227,Employees                     ,Direct Employee Expenses      ,AA17,Agency Staff & Casual Paymts,652,"1,500.00",2/13/2012,R,RANDSTAD FIN & PROF LTD.      
2012 - FEB,Central Services,Fully rechargeable Overheads,Service Accountancy                     ,E06227,Employees                     ,Direct Employee Expenses      ,AA17,Agency Staff & Casual Paymts,653,"2,300.00",2/13/2012,R,RANDSTAD FIN & PROF LTD.      
2012 - FEB,Central Services,Fully rechargeable Overheads,AD CORPORATE GOVERNANCE               ,E10279,Supplies & Services           ,Grants and Subscriptions      ,DJ04,Subscriptions,654,"3,760.00",2/16/2012,R,CIPFA                         
2012 - FEB,Central Services,Fully rechargeable Overheads,Legal Services                          ,E10282,Employees                     ,Indirect Employee Expenses    ,AB02,Recruitment Adverts,655,"2,223.88",1/12/2012,R,PENNA PLC                     
2012 - FEB,Central Services,Fully rechargeable Overheads,Legal Services                          ,E10282,Supplies & Services           ,Services                      ,DF28,Court Fees,656,885,2/15/2012,R,REDACTED
2012 - FEB,Central Services,Fully rechargeable Overheads,Legal Services                          ,E10282,Supplies & Services           ,Services                      ,DF28,Court Fees,657,"7,920.00",2/27/2012,R,REDACTED
2012 - FEB,Central Services,Fully rechargeable Overheads,Shared Legal Service                    ,E10288,Supplies & Services           ,Equip Furniture/Materials     ,DA80,Books,658,"28,562.00",12/12/2011,R,LEXIS NEXIS                   
2012 - FEB,Central Services,Fully rechargeable Overheads,Shared Legal Service                    ,E10288,Supplies & Services           ,Services                      ,DF11,Counsel's fees,659,840,12/29/2011,R,REDACTED
2012 - FEB,Central Services,Fully rechargeable Overheads,Shared Legal Service                    ,E10288,Supplies & Services           ,Grants and Subscriptions      ,DJ04,Subscriptions,660,"7,232.00",2/3/2012,R,THE LAW SOCIETY               
2012 - FEB,Central Services,Fully rechargeable Overheads,Richmond Legal                          ,E10289,Supplies & Services           ,Services                      ,DF11,Counsel's fees,661,773.25,1/13/2012,R,REDACTED
2012 - FEB,Central Services,Fully rechargeable Overheads,Richmond Legal                          ,E10289,Supplies & Services           ,Services                      ,DF11,Counsel's fees,662,"4,052.60",12/21/2011,R,REDACTED
2012 - FEB,Central Services,Fully rechargeable Overheads,Richmond Legal                          ,E10289,Supplies & Services           ,Services                      ,DF11,Counsel's fees,663,"5,541.05",11/4/2011,R,REDACTED
2012 - FEB,Central Services,Fully rechargeable Overheads,Richmond Legal                          ,E10289,Supplies & Services           ,Services                      ,DF11,Counsel's fees,664,515.5,1/3/2012,R,REDACTED
2012 - FEB,Central Services,Fully rechargeable Overheads,Richmond Legal                          ,E10289,Supplies & Services           ,Services                      ,DF11,Counsel's fees,665,"2,886.80",1/16/2012,R,REDACTED
2012 - FEB,Central Services,Fully rechargeable Overheads,Richmond Legal                          ,E10289,Supplies & Services           ,Services                      ,DF11,Counsel's fees,666,"1,080.00",1/4/2012,R,REDACTED
2012 - FEB,Central Services,Fully rechargeable Overheads,Richmond Legal                          ,E10289,Supplies & Services           ,Services                      ,DF11,Counsel's fees,667,640,1/30/2012,R,REDACTED
2012 - FEB,Central Services,Fully rechargeable Overheads,Richmond Legal                          ,E10289,Supplies & Services           ,Services                      ,DF11,Counsel's fees,668,750,1/26/2012,R,REDACTED
2012 - FEB,Central Services,Fully rechargeable Overheads,Richmond Legal                          ,E10289,Supplies & Services           ,Services                      ,DF11,Counsel's fees,669,800,1/25/2012,R,REDACTED
2012 - FEB,Central Services,Fully rechargeable Overheads,Richmond Legal                          ,E10289,Supplies & Services           ,Services                      ,DF11,Counsel's fees,670,900,1/4/2012,R,REDACTED
2012 - FEB,Central Services,Fully rechargeable Overheads,Richmond Legal                          ,E10289,Supplies & Services           ,Services                      ,DF11,Counsel's fees,671,"1,080.00",1/25/2012,R,REDACTED
2012 - FEB,Central Services,Fully rechargeable Overheads,Richmond Legal                          ,E10289,Supplies & Services           ,Services                      ,DF11,Counsel's fees,672,"2,100.00",1/25/2012,R,REDACTED
2012 - FEB,Central Services,Fully rechargeable Overheads,Richmond Legal                          ,E10289,Supplies & Services           ,Services                      ,DF11,Counsel's fees,673,"1,280.00",1/25/2012,R,REDACTED
2012 - FEB,Central Services,Fully rechargeable Overheads,Richmond Legal                          ,E10289,Supplies & Services           ,Services                      ,DF11,Counsel's fees,674,"1,525.00",1/11/2012,R,REDACTED
2012 - FEB,Central Services,Fully rechargeable Overheads,Richmond Legal                          ,E10289,Supplies & Services           ,Services                      ,DF11,Counsel's fees,675,"15,200.00",12/30/2011,R,REDACTED
2012 - FEB,Central Services,Fully rechargeable Overheads,Richmond Legal                          ,E10289,Supplies & Services           ,Services                      ,DF95,Services from Provider,676,"1,971.10",12/21/2011,R,SHOOSMITHS SOLICITORS         
2012 - FEB,Central Services,Fully rechargeable Overheads,Richmond Legal                          ,E10289,Supplies & Services           ,Services                      ,DF95,Services from Provider,677,"4,456.44",2/29/2012,R,EDGEWEST LAMBETH LTD          
2012 - FEB,Central Services,Fully rechargeable Overheads,AD Business Improvement                 ,E14358,Employees                     ,Direct Employee Expenses      ,AA17,Agency Staff & Casual Paymts,678,"7,750.00",1/25/2012,R,JW MANAGEMENT                 
2012 - FEB,Central Services,Fully rechargeable Overheads,AD Business Improvement                 ,E14358,Employees                     ,Direct Employee Expenses      ,AA17,Agency Staff & Casual Paymts,679,"4,500.00",1/31/2012,R,PENNA PLC                     
2012 - FEB,Central Services,Fully rechargeable Overheads,AD Business Improvement                 ,E14358,Employees                     ,Indirect Employee Expenses    ,AB02,Recruitment Adverts,680,535,1/24/2012,R,PENNA PLC                     
2012 - FEB,Central Services,Fully rechargeable Overheads,AD Business Improvement                 ,E14358,Employees                     ,Indirect Employee Expenses    ,AB02,Recruitment Adverts,681,640,1/24/2012,R,PENNA PLC                     
2012 - FEB,Central Services,Fully rechargeable Overheads,BI IT Projects                          ,E14360,Supplies & Services           ,Services                      ,DF03,Consultants,682,"7,475.00",2/1/2012,R,REDACTED
2012 - FEB,Central Services,Fully rechargeable Overheads,BI IT Projects                          ,E14360,Supplies & Services           ,Comms and Computing           ,DG07,Computer Software,683,"3,880.00",1/19/2012,R,HALAROSE LIMITED              
2012 - FEB,Central Services,Fully rechargeable Overheads,BI IT Projects                          ,E14360,Supplies & Services           ,Comms and Computing           ,DG50,Other IT Expenditure,684,925,1/26/2012,R,CIVICA UK LIMITED             
2012 - FEB,Central Services,Fully rechargeable Overheads,BI IT Projects                          ,E14360,Supplies & Services           ,Comms and Computing           ,DG50,Other IT Expenditure,685,875,1/26/2012,R,CIVICA UK LIMITED             
2012 - FEB,Central Services,Fully rechargeable Overheads,AD I&T                                  ,E14363,Supplies & Services           ,Prntng Stnry Gen Off Exp      ,DE03,Stationery,686,958.08,12/2/2011,R,OVENDEN PAPERS LTD            
2012 - FEB,Central Services,Fully rechargeable Overheads,AD I&T                                  ,E14363,Supplies & Services           ,Comms and Computing           ,DG57,Licences Microsoft Select,687,"1,092.14",2/2/2012,R,CIVICA SERVICES LTD           
2012 - FEB,Central Services,Fully rechargeable Overheads,AD I&T                                  ,E14363,Supplies & Services           ,Comms and Computing           ,DG57,Licences Microsoft Select,688,675,2/2/2012,R,CIVICA SERVICES LTD           
2012 - FEB,Central Services,Fully rechargeable Overheads,AD I&T                                  ,E14363,Supplies & Services           ,Comms and Computing           ,DG57,Licences Microsoft Select,689,961.52,2/2/2012,R,CIVICA SERVICES LTD           
2012 - FEB,Central Services,Fully rechargeable Overheads,AD I&T                                  ,E14363,Supplies & Services           ,Comms and Computing           ,DG57,Licences Microsoft Select,690,536.25,2/2/2012,R,CIVICA SERVICES LTD           
2012 - FEB,Central Services,Fully rechargeable Overheads,Operations & Telecomms                  ,E14367,Premises Related Expenditure  ,RepairsAlterations&MtceOfBldgs,BA05,DDM - Electrical,691,"1,160.00",1/31/2012,R,JCS NETWORKS LTD              
2012 - FEB,Central Services,Fully rechargeable Overheads,Operations & Telecomms                  ,E14367,Supplies & Services           ,Comms and Computing           ,DG15,Network Maintenance,692,"4,000.00",1/4/2012,R,BRITISH TELECOMMUNICATIONS PLC
2012 - FEB,Central Services,Fully rechargeable Overheads,Operations & Telecomms                  ,E14367,Supplies & Services           ,Comms and Computing           ,DG15,Network Maintenance,693,"5,725.00",2/1/2012,R,NEW NET TECHNOLOGIES          
2012 - FEB,Central Services,Fully rechargeable Overheads,Operations & Telecomms                  ,E14367,Supplies & Services           ,Comms and Computing           ,DG54,Corporate Telephones,694,750,10/25/2011,R,VIRGIN MEDIA PAYMENTS LTD     
2012 - FEB,Central Services,Fully rechargeable Overheads,Operations & Telecomms                  ,E14367,Supplies & Services           ,Comms and Computing           ,DG54,Corporate Telephones,695,750,9/22/2011,R,VIRGIN MEDIA PAYMENTS LTD     
2012 - FEB,Central Services,Fully rechargeable Overheads,Operations & Telecomms                  ,E14367,Supplies & Services           ,Comms and Computing           ,DG54,Corporate Telephones,696,750,8/22/2011,R,VIRGIN MEDIA PAYMENTS LTD     
2012 - FEB,Central Services,Fully rechargeable Overheads,Operations & Telecomms                  ,E14367,Supplies & Services           ,Comms and Computing           ,DG54,Corporate Telephones,697,750,6/22/2011,R,VIRGIN MEDIA PAYMENTS LTD     
2012 - FEB,Central Services,Fully rechargeable Overheads,Operations & Telecomms                  ,E14367,Supplies & Services           ,Comms and Computing           ,DG54,Corporate Telephones,698,750,7/22/2011,R,VIRGIN MEDIA PAYMENTS LTD     
2012 - FEB,Central Services,Fully rechargeable Overheads,Operations & Telecomms                  ,E14367,Supplies & Services           ,Comms and Computing           ,DG54,Corporate Telephones,699,"4,816.18",2/4/2012,R,T MOBILE (UK)                 
2012 - FEB,Central Services,Fully rechargeable Overheads,Operations & Telecomms                  ,E14367,Supplies & Services           ,Comms and Computing           ,DG54,Corporate Telephones,700,545.18,12/4/2011,R,T MOBILE (UK)                 
2012 - FEB,Central Services,Fully rechargeable Overheads,Operations & Telecomms                  ,E14367,Supplies & Services           ,Comms and Computing           ,DG54,Corporate Telephones,701,"4,393.31",12/4/2011,R,T MOBILE (UK)                 
2012 - FEB,Central Services,Fully rechargeable Overheads,Operations & Telecomms                  ,E14367,Supplies & Services           ,Comms and Computing           ,DG54,Corporate Telephones,702,815.44,1/4/2012,R,T MOBILE (UK)                 
2012 - FEB,Central Services,Fully rechargeable Overheads,Operations & Telecomms                  ,E14367,Supplies & Services           ,Comms and Computing           ,DG54,Corporate Telephones,703,"4,277.64",1/4/2012,R,T MOBILE (UK)                 
2012 - FEB,Central Services,Fully rechargeable Overheads,Distributed Services                    ,E14368,Supplies & Services           ,Comms and Computing           ,DG63,Software Licences - Data,704,"5,222.42",2/8/2012,R,NORTHGATE ARINSO              
2012 - FEB,Central Services,Fully rechargeable Overheads,Distributed Services                    ,E14368,Supplies & Services           ,Comms and Computing           ,DG63,Software Licences - Data,705,"48,492.18",2/8/2012,R,NORTHGATE ARINSO              
2012 - FEB,Central Services,Fully rechargeable Overheads,Distributed Services                    ,E14368,Supplies & Services           ,Comms and Computing           ,DG63,Software Licences - Data,706,"2,616.00",2/2/2012,R,NETWORLD UK                   
2012 - FEB,Central Services,Fully rechargeable Overheads,Distributed Services                    ,E14368,Supplies & Services           ,Comms and Computing           ,DG63,Software Licences - Data,707,"5,376.00",2/2/2012,R,NETWORLD UK                   
2012 - FEB,Central Services,Fully rechargeable Overheads,Distributed Services                    ,E14368,Supplies & Services           ,Comms and Computing           ,DG65,Application Licences,708,725.55,1/26/2012,R,CIVICA UK LIMITED             
2012 - FEB,,,Raynes Park Sports Pavilion             ,CS003CA,New Construction Conversion and Renovation,,B4,Site Works - Contractor,709,"57,000.00",1/25/2012,C,LENGUARD LIMITED              
2012 - FEB,,,Aragon expansion                        ,CS008AA,New Construction Conversion and Renovation,,B1,Design and Supervision - Consultants Fee,710,601.43,2/20/2012,C,EC HARRIS LLP                 
2012 - FEB,,,Aragon expansion                        ,CS008AA,New Construction Conversion and Renovation,,B2,Design and Supervision - Site Surveys,711,"2,320.50",1/31/2012,C,REDHILLS ENVIRONMENTAL CONSUL.
2012 - FEB,,,Aragon expansion                        ,CS008AA,New Construction Conversion and Renovation,,B2,Design and Supervision - Site Surveys,712,"2,220.00",1/31/2012,C,AOC ARCHAEOLOGY GROUP         
2012 - FEB,,,Aragon expansion                        ,CS008AA,New Construction Conversion and Renovation,,B4,Site Works - Contractor,713,"3,037.50",1/26/2012,C,SHERMAN CONSTRUCTION          
2012 - FEB,,,Aragon expansion                        ,CS008AA,New Construction Conversion and Renovation,,B4,Site Works - Contractor,714,"65,228.93",2/13/2012,C,THOMAS SINDEN CONSTRUCTION LTD
2012 - FEB,,,Benedict expansion                      ,CS009AA,New Construction Conversion and Renovation,,B4,Site Works - Contractor,715,"115,633.40",2/2/2012,C,R DURTNELL & SONS LTD         
2012 - FEB,,,Benedict expansion                      ,CS009AA,New Construction Conversion and Renovation,,B5,Site Works - Suppliers,716,514.76,1/23/2012,C,BLUE CUBE CONNECTIONS LTD     
2012 - FEB,,,Hollymount Permanent Expansion          ,CS011AA,New Construction Conversion and Renovation,,B1,Design and Supervision - Consultants Fee,717,"2,647.00",1/6/2012,C,HAVERSTOCK ASSOCIATES LLP     
2012 - FEB,,,Hollymount Permanent Expansion          ,CS011AA,New Construction Conversion and Renovation,,B3,Design and Supervision - Other Expenses,718,"3,500.00",1/24/2012,C,JHAI LTD                      
2012 - FEB,,,Hollymount Permanent Expansion          ,CS011AA,New Construction Conversion and Renovation,,B4,Site Works - Contractor,719,"199,000.00",1/26/2012,C,R DURTNELL & SONS LTD         
2012 - FEB,,,Hollymount Permanent Expansion          ,CS011AA,Vehicles Plant Equipment and Machinery,,D3,Equipment,720,"4,177.04",2/23/2012,C,SCHOOL BUSINESS SERVICES LTD  
2012 - FEB,,,Joseph Hood Permanent Expansn           ,CS012AA,New Construction Conversion and Renovation,,B4,Site Works - Contractor,721,"229,000.00",2/13/2012,C,GEE CONSTRUCTION LTD          
2012 - FEB,,,Garden PCP                              ,CS013AA,New Construction Conversion and Renovation,,B1,Design and Supervision - Consultants Fee,722,"3,808.38",12/16/2011,C,EC HARRIS LLP                 
2012 - FEB,,,Garden PCP                              ,CS013AA,New Construction Conversion and Renovation,,B1,Design and Supervision - Consultants Fee,723,700,2/24/2012,C,AREA LANDSCAPE ARCHITECTS     
2012 - FEB,,,SS Peter & Paul PCP                     ,CS014RA,New Construction Conversion and Renovation,,B4,Site Works - Contractor,724,"79,974.36",1/27/2012,C,GEE CONSTRUCTION LTD          
2012 - FEB,,,Gorringe Park expansion                 ,CS018AB,New Construction Conversion and Renovation,,B1,Design and Supervision - Consultants Fee,725,"53,937.00",1/6/2012,C,HAVERSTOCK ASSOCIATES LLP     
2012 - FEB,,,Gorringe Park expansion                 ,CS018AB,New Construction Conversion and Renovation,,B2,Design and Supervision - Site Surveys,726,"3,200.00",1/11/2012,C,SCACOUSTICS                   
2012 - FEB,,,Gorringe Park expansion                 ,CS018AB,New Construction Conversion and Renovation,,B4,Site Works - Contractor,727,"75,000.00",1/27/2012,C,GEE CONSTRUCTION LTD          
2012 - FEB,,,Gorringe Park expansion                 ,CS018AB,New Construction Conversion and Renovation,,B5,Site Works - Suppliers,728,530.2,1/11/2012,C,BLUE CUBE CONNECTIONS LTD     
2012 - FEB,,,Gorringe Park expansion                 ,CS018AB,New Construction Conversion and Renovation,,B5,Site Works - Suppliers,729,"4,234.89",1/11/2012,C,BLUE CUBE CONNECTIONS LTD     
2012 - FEB,,,Hillcross School Expansion              ,CS020AC,New Construction Conversion and Renovation,,B4,Site Works - Contractor,730,"3,297.50",2/23/2012,C,STP SOLUTIONS                 
2012 - FEB,,,Cricket Gn-Imprved site access          ,CS026AB,New Construction Conversion and Renovation,,B2,Design and Supervision - Site Surveys,731,715,1/27/2012,C,ABN AMRO COMMERCIAL FINANCE   
2012 - FEB,,,Dundonald expansion                     ,CS031AC,New Construction Conversion and Renovation,,B1,Design and Supervision - Consultants Fee,732,"50,014.00",1/13/2012,C,HAVERSTOCK ASSOCIATES LLP     
2012 - FEB,,,Dundonald expansion                     ,CS031AC,New Construction Conversion and Renovation,,B1,Design and Supervision - Consultants Fee,733,"2,400.00",1/30/2012,C,SYNERGY CPC LLP               
2012 - FEB,,,Dundonald expansion                     ,CS031AC,New Construction Conversion and Renovation,,B2,Design and Supervision - Site Surveys,734,"5,295.55",2/9/2012,C,JMP CONSULTANTS LTD           
2012 - FEB,,,Dundonald expansion                     ,CS031AC,New Construction Conversion and Renovation,,B2,Design and Supervision - Site Surveys,735,"4,625.00",2/13/2012,C,AQUA-JET SPEC DRAINAGE LTD    
2012 - FEB,,,St Anns - Primary                       ,CS032AB,New Construction Conversion and Renovation,,B4,Site Works - Contractor,736,680.34,2/1/2012,C,PORTAKABIN LIMITED            
2012 - FEB,,,St Anns - Primary                       ,CS032AB,New Construction Conversion and Renovation,,B5,Site Works - Suppliers,737,"3,714.23",1/25/2012,C,BOSHIRE LTD                   
2012 - FEB,,,Wimbledon Chase DCSF grant              ,CS033AA,New Construction Conversion and Renovation,,B4,Site Works - Contractor,738,"50,000.00",1/26/2012,C,GEE CONSTRUCTION LTD          
2012 - FEB,,,Liberty expansion                       ,CS036AB,New Construction Conversion and Renovation,,B1,Design and Supervision - Consultants Fee,739,"23,131.00",1/16/2012,C,ATKINS LIMITED                
2012 - FEB,,,Liberty expansion                       ,CS036AB,New Construction Conversion and Renovation,,B1,Design and Supervision - Consultants Fee,740,800,1/26/2012,C,METHOD CONSULTING LLP         
2012 - FEB,,,Liberty expansion                       ,CS036AB,New Construction Conversion and Renovation,,B4,Site Works - Contractor,741,"30,301.72",1/24/2012,C,R DURTNELL & SONS LTD         
2012 - FEB,,,Holy Trinity Expansion                  ,CS044RA,New Construction Conversion and Renovation,,B4,Site Works - Contractor,742,"106,276.89",1/12/2012,C,R DURTNELL & SONS LTD         
2012 - FEB,,,Singlegate expansion                    ,CS049AA,New Construction Conversion and Renovation,,B4,Site Works - Contractor,743,"44,000.00",1/13/2012,C,MANSELL CONSTRUCTION SERVICES 
2012 - FEB,,,Wimbledon Park expansion                ,CS050AA,New Construction Conversion and Renovation,,B1,Design and Supervision - Consultants Fee,744,582.8,1/20/2012,C,PLANET EARTH LTD              
2012 - FEB,,,Wimbledon Park expansion                ,CS050AA,New Construction Conversion and Renovation,,B1,Design and Supervision - Consultants Fee,745,"41,359.56",2/2/2012,C,CURL LA TOURELLE ARCHITECTS   
2012 - FEB,,,Wimbledon Park expansion                ,CS050AA,New Construction Conversion and Renovation,,B1,Design and Supervision - Consultants Fee,746,"2,000.00",1/30/2012,C,SYNERGY CPC LLP               
2012 - FEB,,,Wimbledon Park expansion                ,CS050AA,New Construction Conversion and Renovation,,B2,Design and Supervision - Site Surveys,747,650,1/10/2012,C,MIDDLEMARCH ENVIRONMENTAL LTD 
2012 - FEB,,,Youth Centre Buildings                  ,CS062SA,New Construction Conversion and Renovation,,B4,Site Works - Contractor,748,"8,950.00",2/16/2012,C,LIFESTYLE WINDOW SYSTEMS      
2012 - FEB,,,Youth Centre Buildings                  ,CS062SA,New Construction Conversion and Renovation,,B4,Site Works - Contractor,749,754,1/27/2012,C,SALTASH ENTERPRISES LTD       
2012 - FEB,,,Primary Capital Programme               ,CS070SA,New Construction Conversion and Renovation,,B2,Design and Supervision - Site Surveys,750,"2,493.75",4/29/2012,C,NOBLE HEALTH & SAFETY CONSULT.
2012 - FEB,,,Various schls-asbestos removal          ,CS080SA,New Construction Conversion and Renovation,,B4,Site Works - Contractor,751,"1,636.80",1/18/2012,C,EUROPEAN ASBESTOS SERVICES    
2012 - FEB,,,Various schls-asbestos removal          ,CS080SA,New Construction Conversion and Renovation,,B4,Site Works - Contractor,752,935,8/31/2011,C,EUROPEAN ASBESTOS SERVICES    
2012 - FEB,,,Various schls-asbestos removal          ,CS080SA,New Construction Conversion and Renovation,,B4,Site Works - Contractor,753,"13,841.00",8/31/2011,C,EUROPEAN ASBESTOS SERVICES    
2012 - FEB,Childrens & Education Services,Schools Strategic Management,Senior Mngt & Support Services          ,K01005,Supplies & Services           ,Services                      ,DF11,Counsel's fees,754,"1,200.00",9/19/2011,R,REDACTED
2012 - FEB,Childrens & Education Services,Schools Strategic Management,Senior Mngt & Support Services          ,K01005,Supplies & Services           ,Services                      ,DF11,Counsel's fees,755,600,10/7/2011,R,REDACTED
2012 - FEB,Childrens & Education Services,Schools Strategic Management,Senior Mngt & Support Services          ,K01005,Supplies & Services           ,Services                      ,DF11,Counsel's fees,756,500,10/19/2011,R,REDACTED
2012 - FEB,Childrens & Education Services,Schools Strategic Management,Senior Mngt & Support Services          ,K01005,Supplies & Services           ,Services                      ,DF11,Counsel's fees,757,800,10/4/2011,R,REDACTED
2012 - FEB,Childrens & Education Services,Schools Strategic Management,Senior Mngt & Support Services          ,K01005,Supplies & Services           ,Services                      ,DF11,Counsel's fees,758,"2,965.00",10/7/2011,R,REDACTED
2012 - FEB,Childrens & Education Services,Schools Strategic Management,Senior Mngt & Support Services          ,K01005,Supplies & Services           ,Services                      ,DF11,Counsel's fees,759,550,9/23/2011,R,REDACTED
2012 - FEB,Childrens & Education Services,Schools Strategic Management,Senior Mngt & Support Services          ,K01005,Supplies & Services           ,Services                      ,DF11,Counsel's fees,760,585,9/26/2011,R,REDACTED
2012 - FEB,Childrens & Education Services,Schools Strategic Management,Senior Mngt & Support Services          ,K01005,Supplies & Services           ,Services                      ,DF11,Counsel's fees,761,935,9/22/2011,R,REDACTED
2012 - FEB,Childrens & Education Services,Schools Strategic Management,Senior Mngt & Support Services          ,K01005,Supplies & Services           ,Services                      ,DF11,Counsel's fees,762,550,12/29/2011,R,REDACTED
2012 - FEB,Childrens & Education Services,Schools Strategic Management,Senior Mngt & Support Services          ,K01005,Supplies & Services           ,Services                      ,DF11,Counsel's fees,763,"2,940.00",1/20/2012,R,REDACTED
2012 - FEB,Childrens & Education Services,Schools Strategic Management,Senior Mngt & Support Services          ,K01005,Supplies & Services           ,Services                      ,DF11,Counsel's fees,764,590,1/9/2012,R,REDACTED
2012 - FEB,Childrens & Education Services,Schools Strategic Management,Senior Mngt & Support Services          ,K01005,Supplies & Services           ,Services                      ,DF11,Counsel's fees,765,850,12/29/2011,R,REDACTED
2012 - FEB,Childrens & Education Services,Schools Strategic Management,Senior Mngt & Support Services          ,K01005,Supplies & Services           ,Services                      ,DF11,Counsel's fees,766,"1,145.00",1/16/2012,R,REDACTED
2012 - FEB,Childrens & Education Services,Schools Strategic Management,Senior Mngt & Support Services          ,K01005,Supplies & Services           ,Services                      ,DF11,Counsel's fees,767,520,11/18/2011,R,REDACTED
2012 - FEB,Childrens & Education Services,Schools Strategic Management,Senior Mngt & Support Services          ,K01005,Supplies & Services           ,Services                      ,DF11,Counsel's fees,768,750,10/12/2011,R,REDACTED
2012 - FEB,Childrens & Education Services,Schools Strategic Management,Senior Mngt & Support Services          ,K01005,Supplies & Services           ,Services                      ,DF11,Counsel's fees,769,"1,100.00",1/9/2012,R,REDACTED
2012 - FEB,Childrens & Education Services,Schools Strategic Management,Senior Mngt & Support Services          ,K01005,Supplies & Services           ,Services                      ,DF11,Counsel's fees,770,625,1/6/2012,R,REDACTED
2012 - FEB,Childrens & Education Services,Schools Strategic Management,Senior Mngt & Support Services          ,K01005,Supplies & Services           ,Services                      ,DF11,Counsel's fees,771,711.25,12/7/2011,R,REDACTED
2012 - FEB,Childrens & Education Services,Schools Strategic Management,Senior Mngt & Support Services          ,K01005,Supplies & Services           ,Services                      ,DF11,Counsel's fees,772,550,12/2/2011,R,REDACTED
2012 - FEB,Childrens & Education Services,Schools Strategic Management,Senior Mngt & Support Services          ,K01005,Supplies & Services           ,Services                      ,DF11,Counsel's fees,773,575,1/9/2012,R,REDACTED
2012 - FEB,Childrens & Education Services,Schools Strategic Management,Senior Mngt & Support Services          ,K01005,Supplies & Services           ,Services                      ,DF11,Counsel's fees,774,570,1/6/2012,R,REDACTED
2012 - FEB,Childrens & Education Services,Schools Strategic Management,Senior Mngt & Support Services          ,K01005,Supplies & Services           ,Services                      ,DF11,Counsel's fees,775,"1,000.00",11/4/2011,R,REDACTED
2012 - FEB,Childrens & Education Services,Schools Strategic Management,Senior Mngt & Support Services          ,K01005,Supplies & Services           ,Services                      ,DF11,Counsel's fees,776,555,1/27/2012,R,REDACTED
2012 - FEB,Childrens & Education Services,Schools Strategic Management,Senior Mngt & Support Services          ,K01005,Supplies & Services           ,Services                      ,DF11,Counsel's fees,777,650,12/14/2011,R,REDACTED
2012 - FEB,Childrens & Education Services,Schools Strategic Management,Senior Mngt & Support Services          ,K01005,Supplies & Services           ,Services                      ,DF11,Counsel's fees,778,"1,360.00",12/2/2011,R,REDACTED
2012 - FEB,Childrens & Education Services,Schools Strategic Management,Senior Mngt & Support Services          ,K01005,Supplies & Services           ,Services                      ,DF11,Counsel's fees,779,967.5,1/27/2012,R,REDACTED
2012 - FEB,Childrens & Education Services,Schools Strategic Management,Senior Mngt & Support Services          ,K01005,Supplies & Services           ,Services                      ,DF11,Counsel's fees,780,525,11/14/2011,R,REDACTED
2012 - FEB,Childrens & Education Services,Schools Strategic Management,Central Administration                  ,K01008,Supplies & Services           ,Catering                      ,DB50,Refreshments,781,805,1/27/2012,R,ISS COLLECTIONS LTD           
2012 - FEB,Childrens & Education Services,Schools Strategic Management,Central Administration                  ,K01008,Supplies & Services           ,Comms and Computing           ,DG04,Postage - General,782,"2,285.90",1/17/2012,R,ITW ENVOPAK                   
2012 - FEB,Childrens & Education Services,Schools Strategic Management,Pension and Redundancy Costs            ,K01010,Employees                     ,Indirect Employee Expenses    ,AB19,Severance-Creditors,783,"1,203.80",1/15/2012,R,TEACHERS PENSION              
2012 - FEB,Childrens & Education Services,Schools Strategic Management,Pension and Redundancy Costs            ,K01010,Employees                     ,Indirect Employee Expenses    ,AB19,Severance-Creditors,784,"1,203.81",2/15/2012,R,TEACHERS PENSION              
2012 - FEB,Childrens & Education Services,Schools Strategic Management,Pension and Redundancy Costs            ,K01010,Employees                     ,Indirect Employee Expenses    ,AB19,Severance-Creditors,785,601.9,3/15/2012,R,TEACHERS PENSION              
2012 - FEB,Childrens & Education Services,Schools Strategic Management,Pension and Redundancy Costs            ,K01010,Employees                     ,Indirect Employee Expenses    ,AB19,Severance-Creditors,786,601.91,3/15/2012,R,TEACHERS PENSION              
2012 - FEB,Childrens & Education Services,Schools Strategic Management,LSC                                     ,K03003,Supplies & Services           ,Services                      ,DF03,Consultants,787,"3,600.00",1/30/2012,R,END USER LTD                  
2012 - FEB,Childrens & Education Services,Assuring Access To Schools,PFI Unitary Charges                     ,K03023,Third Party Payments          ,Private Contractors           ,EH02,Miscellaneous Hired Services,788,"26,239.28",10/24/2011,R,NEWSCHOOLS (MERTON) LIMITED   
2012 - FEB,Childrens & Education Services,Assuring Access To Schools,PFI Unitary Charges                     ,K03023,Third Party Payments          ,Private Contractors           ,EH02,Miscellaneous Hired Services,789,"5,484.97",1/3/2012,R,NEWSCHOOLS (MERTON) LIMITED   
2012 - FEB,Childrens & Education Services,Assuring Access To Schools,PFI Unitary Charges                     ,K03023,Third Party Payments          ,Private Contractors           ,EH02,Miscellaneous Hired Services,790,"6,457.62",10/31/2011,R,NEWSCHOOLS (MERTON) LIMITED   
2012 - FEB,Childrens & Education Services,Assuring Access To Schools,PFI Unitary Charges                     ,K03023,Third Party Payments          ,Private Contractors           ,EH02,Miscellaneous Hired Services,791,"5,000.00",10/31/2011,R,NEWSCHOOLS (MERTON) LIMITED   
2012 - FEB,Childrens & Education Services,Assuring Access To Schools,PFI Unitary Charges                     ,K03023,Third Party Payments          ,Private Contractors           ,EH02,Miscellaneous Hired Services,792,"17,152.62",10/31/2011,R,NEWSCHOOLS (MERTON) LIMITED   
2012 - FEB,Childrens & Education Services,Assuring Access To Schools,PFI Unitary Charges                     ,K03023,Third Party Payments          ,Private Contractors           ,EH02,Miscellaneous Hired Services,793,"2,250.70",2/8/2012,R,NEWSCHOOLS (MERTON) LIMITED   
2012 - FEB,Childrens & Education Services,Assuring Access To Schools,PFI Unitary Charges                     ,K03023,Third Party Payments          ,Private Contractors           ,EH02,Miscellaneous Hired Services,794,"1,000.00",10/31/2011,R,OLD RUTLISHIANS R.F.C.        
2012 - FEB,Childrens & Education Services,Assuring Access To Schools,PFI Unitary Charges                     ,K03023,Third Party Payments          ,Private Contractors           ,EH02,Miscellaneous Hired Services,795,840,11/30/2011,R,OLD RUTLISHIANS R.F.C.        
2012 - FEB,Childrens & Education Services,Supporting SEN,Education Psychology.                   ,K04018,Employees                     ,Direct Employee Expenses      ,AA17,Agency Staff & Casual Paymts,796,"1,125.00",1/12/2012,R,REDACTED
2012 - FEB,Childrens & Education Services,Supporting SEN,Education Psychology.                   ,K04018,Employees                     ,Direct Employee Expenses      ,AA17,Agency Staff & Casual Paymts,797,"4,875.00",1/28/2012,R,REDACTED
2012 - FEB,Childrens & Education Services,Supporting SEN,Statementing-Transport                  ,K04023,Transport Related Expenditure ,Public Transport              ,CD50,Home Sch/Coll Trans(Trav Exps),798,660.6,1/24/2012,R,EAST SUSSEX COUNTY COUNCIL    
2012 - FEB,Childrens & Education Services,Supporting SEN,Statement Support Team                  ,K04034,Employees                     ,Indirect Employee Expenses    ,AB02,Recruitment Adverts,799,"7,174.90",1/26/2012,R,PENNA PLC                     
2012 - FEB,Childrens & Education Services,Pre-School Ed (inc Nursery),Provider Support                        ,K05078,Supplies & Services           ,Comms and Computing           ,DG02,Software Licences,800,"1,032.50",2/3/2012,R,CACI LIMITED                  
2012 - FEB,Childrens & Education Services,Supporting SEN,Expanded Pupil Referral Unit            ,K05099,Third Party Payments          ,Private Contractors           ,EH01,Miscellaneous Agency Services,801,"5,312.18",1/27/2012,R,SW LONDON ST GEORGES NHS TRUST
2012 - FEB,Childrens & Education Services,Pre-School Ed (inc Nursery),GSSG Workforce Development              ,K05111,Employees                     ,Indirect Employee Expenses    ,AB56,Internal Training Costs,802,699,1/17/2012,R,CRECHENDO TRAINING            
2012 - FEB,Childrens & Education Services,Pre-School Ed (inc Nursery),GSSG Workforce Development              ,K05111,Employees                     ,Indirect Employee Expenses    ,AB56,Internal Training Costs,803,800,1/30/2012,R,ACTUAL FIRST AID LTD          
2012 - FEB,Childrens & Education Services,Pre-School Ed (inc Nursery),GSSG Workforce Development              ,K05111,Employees                     ,Indirect Employee Expenses    ,AB56,Internal Training Costs,804,880,1/30/2012,R,ACTUAL FIRST AID LTD          
2012 - FEB,Childrens & Education Services,Pre-School Ed (inc Nursery),GSSG Workforce Development              ,K05111,Employees                     ,Indirect Employee Expenses    ,AB56,Internal Training Costs,805,760,2/9/2012,R,ACTUAL FIRST AID LTD          
2012 - FEB,Childrens & Education Services,Pre-School Ed (inc Nursery),GSSG Workforce Development              ,K05111,Employees                     ,Indirect Employee Expenses    ,AB56,Internal Training Costs,806,750,2/6/2012,R,REDACTED
2012 - FEB,Childrens & Education Services,Pre-School Ed (inc Nursery),GSSG Workforce Development              ,K05111,Employees                     ,Indirect Employee Expenses    ,AB56,Internal Training Costs,807,600,2/23/2012,R,REDACTED
2012 - FEB,Childrens & Education Services,Pre-School Ed (inc Nursery),GSSG Workforce Development              ,K05111,Employees                     ,Indirect Employee Expenses    ,AB57,External Training Costs,808,"1,125.00",2/2/2012,R,REDACTED
2012 - FEB,Childrens & Education Services,Pre-School Ed (inc Nursery),GSSG Workforce Development              ,K05111,Supplies & Services           ,Services                      ,DF03,Consultants,809,"1,400.00",12/30/2011,R,REDACTED
2012 - FEB,Childrens & Education Services,Pre-School Ed (inc Nursery),GSSG Workforce Development              ,K05111,Supplies & Services           ,Services                      ,DF03,Consultants,810,600,1/31/2012,R,REDACTED
2012 - FEB,Childrens & Education Services,Pre-School Ed (inc Nursery),GSSG Workforce Development              ,K05111,Supplies & Services           ,Services                      ,DF03,Consultants,811,"2,000.00",1/31/2012,R,REDACTED
2012 - FEB,Childrens & Education Services,Pre-School Ed (inc Nursery),GSSG Workforce Development              ,K05111,Third Party Payments          ,Private Contractors           ,EH68,Management Contract,812,"11,227.65",1/26/2012,R,MERTON PRE-SCH LEARN ALLIANCE 
2012 - FEB,Childrens & Education Services,Pre-School Ed (inc Nursery),Children's centres                      ,K05137,Supplies & Services           ,Grants and Subscriptions      ,DJ01,Grants,813,"5,532.20",1/30/2012,R,MERTON PRE-SCH LEARN ALLIANCE 
2012 - FEB,Childrens & Education Services,Pre-School Ed (inc Nursery),GSSG Central Administration             ,K05400,Employees                     ,Indirect Employee Expenses    ,AB57,External Training Costs,814,"1,125.00",2/2/2012,R,REDACTED
2012 - FEB,Childrens & Education Services,Pre-School Ed (inc Nursery),GSSG Central Administration             ,K05400,Employees                     ,Indirect Employee Expenses    ,AB57,External Training Costs,815,980,2/2/2012,R,TRIANGLE CONSULTING SOCIAL ENT
2012 - FEB,Childrens & Education Services,Pre-School Ed (inc Nursery),GSSG Central Administration             ,K05400,Employees                     ,Indirect Employee Expenses    ,AB57,External Training Costs,816,700,2/6/2012,R,THE OPEN UNIVERSITY           
2012 - FEB,Childrens & Education Services,Pre-School Ed (inc Nursery),GSSG Central Administration             ,K05400,Supplies & Services           ,Expenses                      ,DH02,Conferences,817,750,1/12/2012,R,GRENFELL HOUSING & TRAINING   
2012 - FEB,Childrens & Education Services,Pre-School Ed (inc Nursery),GSSG Central Administration             ,K05400,Supplies & Services           ,Expenses                      ,DH02,Conferences,818,"10,000.00",1/31/2012,R,TRIBAL EDUCATION LIMITED      
2012 - FEB,Childrens & Education Services,Pre-School Ed (inc Nursery),Home Grown Graduate Incentive           ,K05402,Supplies & Services           ,Grants and Subscriptions      ,DJ01,Grants,819,"3,000.00",2/3/2012,R,OAKTREE PRE-SCHOOL NURSERY    
2012 - FEB,Childrens & Education Services,Pre-School Ed (inc Nursery),Home Grown Graduate Incentive           ,K05402,Supplies & Services           ,Grants and Subscriptions      ,DJ01,Grants,820,"3,000.00",2/3/2012,R,HASLEMERE HOUSE DAY NURSERY   
2012 - FEB,Childrens & Education Services,Pre-School Ed (inc Nursery),Home Grown Graduate Incentive           ,K05402,Supplies & Services           ,Grants and Subscriptions      ,DJ01,Grants,821,"3,000.00",2/3/2012,R,PLAYDAYS DAY NURSERY          
2012 - FEB,Childrens & Education Services,Pre-School Ed (inc Nursery),Nursery Grant payment-2 yr old          ,K05408,Supplies & Services           ,Grants and Subscriptions      ,DJ01,Grants,822,756,2/2/2012,R,BOW LANE PRE-SCHOOL           
2012 - FEB,Childrens & Education Services,Pre-School Ed (inc Nursery),Nursery Grant payment-2 yr old          ,K05408,Supplies & Services           ,Grants and Subscriptions      ,DJ01,Grants,823,990,2/2/2012,R,EARLY YEARS NURSERY           
2012 - FEB,Childrens & Education Services,Pre-School Ed (inc Nursery),Nursery Grant payment-2 yr old          ,K05408,Supplies & Services           ,Grants and Subscriptions      ,DJ01,Grants,824,720,2/3/2012,R,CHERUBS @ NEWMINSTER          
2012 - FEB,Childrens & Education Services,Pre-School Ed (inc Nursery),Nursery Grant payment-2 yr old          ,K05408,Supplies & Services           ,Grants and Subscriptions      ,DJ01,Grants,825,810,2/3/2012,R,REDACTED
2012 - FEB,Childrens & Education Services,Pre-School Ed (inc Nursery),Nursery Grant payment-2 yr old          ,K05408,Supplies & Services           ,Grants and Subscriptions      ,DJ01,Grants,826,990,2/3/2012,R,ARK AT SHERWOOD LTD           
2012 - FEB,Childrens & Education Services,Pre-School Ed (inc Nursery),Nursery Grant payment-2 yr old          ,K05408,Supplies & Services           ,Grants and Subscriptions      ,DJ01,Grants,827,900,2/3/2012,R,CHERUBS @ NEWMINSTER          
2012 - FEB,Childrens & Education Services,Pre-School Ed (inc Nursery),Nursery Grant payment-2 yr old          ,K05408,Supplies & Services           ,Grants and Subscriptions      ,DJ01,Grants,828,840,2/3/2012,R,HASLEMERE HOUSE DAY NURSERY   
2012 - FEB,Childrens & Education Services,Pre-School Ed (inc Nursery),Nursery Grant payment-2 yr old          ,K05408,Supplies & Services           ,Grants and Subscriptions      ,DJ01,Grants,829,729,2/3/2012,R,HASLEMERE HOUSE DAY NURSERY   
2012 - FEB,Childrens & Education Services,Pre-School Ed (inc Nursery),Nursery Grant payment-2 yr old          ,K05408,Supplies & Services           ,Grants and Subscriptions      ,DJ01,Grants,830,"1,080.00",2/3/2012,R,HASLEMERE HOUSE DAY NURSERY   
2012 - FEB,Childrens & Education Services,Pre-School Ed (inc Nursery),Nursery Grant payment-2 yr old          ,K05408,Supplies & Services           ,Grants and Subscriptions      ,DJ01,Grants,831,720,2/3/2012,R,CHERUBS @ NEWMINSTER          
2012 - FEB,Childrens & Education Services,Pre-School Ed (inc Nursery),Nursery Grant payment-2 yr old          ,K05408,Supplies & Services           ,Grants and Subscriptions      ,DJ01,Grants,832,810,2/3/2012,R,HASLEMERE HOUSE DAY NURSERY   
2012 - FEB,Childrens & Education Services,Pre-School Ed (inc Nursery),Nursery Grant payment-2 yr old          ,K05408,Supplies & Services           ,Grants and Subscriptions      ,DJ01,Grants,833,"1,080.00",2/6/2012,R,BUMBLE BEES'S DAY NURSERY-COCC
